Body Name,Body Ref,Service Area Categorisation,Expense Type,Payment Date,Transaction Ref,Total Amount,Capital/Revenue,Supplier ID,Supplier Name
Shropshire,00GG,Capital - Corporate Landlord Capital,Non Revenue - Non Revenue,07/04/2021,11276797,"6,336.00",Capital,1000173,Ian Gibbons Building Maintenance Special
Shropshire,00GG,Place - Highways and Transport,Third Party Payments - Transport Operators,07/04/2021,3224557,"4,438.43",Revenue,1000204,Lakeside Coaches Ltd
Shropshire,00GG,Place - Environment and Transport (Public Transport),Third Party Payments - Transport Operators,07/04/2021,3224737,"2,075.08",Revenue,1000204,Lakeside Coaches Ltd
Shropshire,00GG,Place - Environment and Transport (Public Transport),Third Party Payments - Transport Operators,07/04/2021,3224744,"7,507.36",Revenue,1000204,Lakeside Coaches Ltd
Shropshire,00GG,Place - Environment and Transport (Public Transport),Third Party Payments - Transport Operators,07/04/2021,3224752,"1,093.62",Revenue,1000204,Lakeside Coaches Ltd
Shropshire,00GG,Place - Environment and Transport (Public Transport),Third Party Payments - Transport Operators,07/04/2021,3224163,"7,200.00",Revenue,1000218,Minsterley Motors Services Ltd
Shropshire,00GG,Place - Environment and Transport (Public Transport),Third Party Payments - Transport Operators,07/04/2021,3224213,"7,500.00",Revenue,1000218,Minsterley Motors Services Ltd
Shropshire,00GG,Place - Environment and Transport (Public Transport),Third Party Payments - Transport Operators,07/04/2021,3222700,"18,614.45",Revenue,1000220,Arriva Midlands Ltd
Shropshire,00GG,Place - Environment and Transport (Public Transport),Third Party Payments - Transport Operators,07/04/2021,3222715,"21,201.29",Revenue,1000220,Arriva Midlands Ltd
Shropshire,00GG,Place - Environment and Transport (Public Transport),Third Party Payments - Transport Operators,07/04/2021,3222716,"14,095.48",Revenue,1000220,Arriva Midlands Ltd
Shropshire,00GG,Place - Environment and Transport (Public Transport),Third Party Payments - Transport Operators,07/04/2021,3222717,"8,302.65",Revenue,1000220,Arriva Midlands Ltd
Shropshire,00GG,Place - Environment and Transport (Public Transport),Third Party Payments - Transport Operators,07/04/2021,3222721,"27,166.18",Revenue,1000220,Arriva Midlands Ltd
Shropshire,00GG,Place - Outdoor Partnerships,Premises-Related Expenditure - Repairs alterations and maintenance of buildings,07/04/2021,3216347,750.00,Revenue,1000278,Shropshire Wildlife Trust
Shropshire,00GG,Place - Highways and Transport,Third Party Payments - Transport Operators,07/04/2021,3224536,"5,966.16",Revenue,1000378,Tanat Valley Coaches
Shropshire,00GG,Place - Highways (Operations),Supplies & Services - Services,07/04/2021,3216695,"2,412.18",Revenue,1000428,Compass Minerals Uk Limited
Shropshire,00GG,Children's Services - Looked After Children Education,Third Party Payments - Other Establishments,07/04/2021,3224200,"3,570.00",Revenue,1000470,Corbet School Technology & Language Coll
Shropshire,00GG,Place - Environment and Transport (Public Transport),Third Party Payments - Transport Operators,07/04/2021,3224756,"3,664.51",Revenue,1000659,Bennetts Travel (Cranberry) Ltd
Shropshire,00GG,Place - Economic Growth,Supplies & Services - Communications and Computing,07/04/2021,3216260,"3,948.00",Revenue,1000980,Alcium Software Ltd
Shropshire,00GG,Children's Services - Learning & Skills Business Support,Supplies & Services - Grants and Subscriptions,07/04/2021,3216916,"1,154.50",Revenue,1001121,Cascaid
Shropshire,00GG,Children's Services - Children�s Services Management,Supplies & Services - Grants and Subscriptions,07/04/2021,3219424,"3,581.00",Revenue,1001140,Assoc Of Dir Of Childrens Services Ltd
Shropshire,00GG,Place - Property Services Group,Premises-Related Expenditure - Repairs alterations and maintenance of buildings,07/04/2021,3221635,"6,590.00",Revenue,1001274,Derek Griffiths Decorating Contr Ltd
Shropshire,00GG,Place - Outdoor Partnerships,Premises-Related Expenditure - Repairs alterations and maintenance of buildings,07/04/2021,3225123,562.42,Revenue,1001529,Hales Sawmills Ltd
Shropshire,00GG,Place - Outdoor Partnerships,Premises-Related Expenditure - Repairs alterations and maintenance of buildings,07/04/2021,3217815,450.00,Revenue,1001812,Forestart Ltd
Shropshire,00GG,Capital - Housing Services Capital,Non Revenue - Non Revenue,07/04/2021,3224937,"4,560.38",Capital,1001884,A Bate Building Contractor Ltd
Shropshire,00GG,Place - Assistant Director Commercial Services,Supplies & Services - Services,07/04/2021,3221373,"5,040.00",Revenue,1001978,Apse
Shropshire,00GG,Adult Services - Housing Options,Premises-Related Expenditure - Grounds maintenance costs,07/04/2021,3225224,"31,109.12",Revenue,1002235,Taybar Security Limited
Shropshire,00GG,Adult Services - Housing Options,Premises-Related Expenditure - Grounds maintenance costs,07/04/2021,3225228,"62,218.24",Revenue,1002235,Taybar Security Limited
Shropshire,00GG,Workforce and Transformation - Print & Post Services,Supplies & Services - Equipment Furniture and Materials,07/04/2021,3220299,"1,141.92",Revenue,1002635,Impact Mail & Print (Uk) Ltd
Shropshire,00GG,Place - Environment and Transport (Public Transport),Transport-Related Expenditure - Contract Hire and Operating Leases,07/04/2021,3223500,"5,348.40",Revenue,1003158,Car Hire (Day Of Swansea) Ltd
Shropshire,00GG,Children's Services - Looked After Children Education,Third Party Payments - Other Establishments,07/04/2021,3224190,"2,200.00",Revenue,1003515,The Marches School
Shropshire,00GG,Place - Highways and Transport,Third Party Payments - Transport Operators,07/04/2021,3224553,"4,754.95",Revenue,1004060,Diamond Bus Company Ltd
Shropshire,00GG,Children's Services - Looked After Children Education,Third Party Payments - Other Establishments,07/04/2021,3224172,"4,740.00",Revenue,1004073,Woodside Primary School
Shropshire,00GG,"Finance, Governance & Assurance - Commissioning Development & Procurement",Employees - Direct Employee Expenses,07/04/2021,3224412,"239,914.24",Revenue,1004129,Matrix Scm Ltd
Shropshire,00GG,Children's Services - Looked After Children Education,Third Party Payments - Other Establishments,07/04/2021,3224162,800.00,Revenue,1004277,The Priory School
Shropshire,00GG,Children's Services - Looked After Children Education,Third Party Payments - Other Establishments,07/04/2021,3224185,800.00,Revenue,1004656,Stokesay Primary School
Shropshire,00GG,Children's Services - Looked After Children Education,Third Party Payments - Other Establishments,07/04/2021,3224191,"1,200.00",Revenue,1004837,The 3-18 Education Trust T/A William Brookes School
Shropshire,00GG,Place - Environment and Transport (Public Transport),Third Party Payments - Transport Operators,07/04/2021,3224568,"1,059.16",Revenue,1004941,Banga Travel
Shropshire,00GG,Place - Shire Catering,Supplies & Services - Equipment Furniture and Materials,07/04/2021,3221907,986.80,Revenue,1005013,Nobisco Limited
Shropshire,00GG,Place - Museums & Archives,Supplies & Services - Communications and Computing,07/04/2021,3217549,"2,678.76",Revenue,1005022,Axiell Alm Limited
Shropshire,00GG,Place - Museums & Archives,Supplies & Services - Communications and Computing,07/04/2021,3220171,"1,702.44",Revenue,1005022,Axiell Alm Limited
Shropshire,00GG,Children's Services - Looked After Children Education,Third Party Payments - Other Establishments,07/04/2021,3225120,800.00,Revenue,1005186,The Telford Priory School
Shropshire,00GG,Place - Outdoor Partnerships,Premises-Related Expenditure - Repairs alterations and maintenance of buildings,07/04/2021,3220971,590.00,Revenue,1005285,Robert Lee (Plant) Ltd
Shropshire,00GG,Children's Services - Looked After Children Education,Third Party Payments - Other Establishments,07/04/2021,3224207,800.00,Revenue,1005310,Whitchurch CE Junior Academy
Shropshire,00GG,Children's Services - Looked After Children (LAC) Service,Employees - Direct Employee Expenses,07/04/2021,3222568,834.02,Revenue,1006330,Sellick Partnership Limited
Shropshire,00GG,Children's Services - Placements: Residential Placements,Employees - Direct Employee Expenses,07/04/2021,3222942,478.51,Revenue,1006553,Randstad Public Services Ltd
Shropshire,00GG,Children's Services - Placements: Residential Placements,Employees - Direct Employee Expenses,07/04/2021,3222943,614.60,Revenue,1006553,Randstad Public Services Ltd
Shropshire,00GG,Children's Services - Placements: Residential Placements,Employees - Direct Employee Expenses,07/04/2021,3223015,844.30,Revenue,1006553,Randstad Public Services Ltd
Shropshire,00GG,Children's Services - Special Educational Needs & Disability,Third Party Payments - Other Establishments,07/04/2021,3225323,"3,744.75",Revenue,1006612,Wightwick Hall School
Shropshire,00GG,Children's Services - Home to School Transport,Transport-Related Expenditure - Contract Hire and Operating Leases,07/04/2021,3221067,"1,812.50",Revenue,1007466,ABC Cars (Shropshire) Limited
Shropshire,00GG,Children's Services - Special Educational Needs & Disability,Third Party Payments - Other Establishments,07/04/2021,3225215,"4,050.00",Revenue,1008366,Hidden Treasures
Shropshire,00GG,Capital - Housing Services Capital,Non Revenue - Non Revenue,07/04/2021,3224108,"5,395.00",Capital,1009278,Candor Care Limited
Shropshire,00GG,Place - Housing Development and HRA,Supplies & Services - Services,07/04/2021,3222463,"5,223.75",Revenue,1009467,Campbell Tickell Ltd
Shropshire,00GG,Workforce and Transformation - Human Resources Operations,Supplies & Services - Grants and Subscriptions,07/04/2021,3225234,"2,492.36",Revenue,1009650,Nhs Pensionagency
Shropshire,00GG,Place - Outdoor Partnerships,Premises-Related Expenditure - Repairs alterations and maintenance of buildings,07/04/2021,3216535,"2,050.00",Revenue,1009974,M R Owen
Shropshire,00GG,Place - Outdoor Partnerships,Premises-Related Expenditure - Repairs alterations and maintenance of buildings,07/04/2021,3216556,875.00,Revenue,1009974,M R Owen
Shropshire,00GG,Legal and Democratic Services - Legal Services � Child Care,Supplies & Services - Services,07/04/2021,3216362,750.00,Revenue,1010036,Nicola Mcintosh
Shropshire,00GG,Place - Assistant Director Economy & Place,Non Revenue - Non Revenue,07/04/2021,3216431,"7,699.96",Revenue,1010141,Oswestry Bid Limited
Shropshire,00GG,Place - Environment and Transport (Public Transport),Transport-Related Expenditure - Contract Hire and Operating Leases,07/04/2021,3221281,"8,035.83",Revenue,1010159,City Car Club Ltd
Shropshire,00GG,Adult Services - Social Care Community Purchasing,Third Party Payments - Private Contractors,07/04/2021,11277890,665.39,Revenue,1010272,Livability
Shropshire,00GG,Adult Services - Social Care Community Purchasing,Third Party Payments - Private Contractors,07/04/2021,11277891,665.39,Revenue,1010272,Livability
Shropshire,00GG,Adult Services - Social Care Community Purchasing,Third Party Payments - Private Contractors,07/04/2021,11277892,665.39,Revenue,1010272,Livability
Shropshire,00GG,Adult Services - Social Care Community Purchasing,Third Party Payments - Private Contractors,07/04/2021,11277893,532.31,Revenue,1010272,Livability
Shropshire,00GG,Adult Services - Social Care Community Purchasing,Third Party Payments - Private Contractors,07/04/2021,11277895,532.31,Revenue,1010272,Livability
Shropshire,00GG,Adult Services - Social Care Community Purchasing,Third Party Payments - Private Contractors,07/04/2021,11277897,532.31,Revenue,1010272,Livability
Shropshire,00GG,Adult Services - Social Care Community Purchasing,Third Party Payments - Private Contractors,07/04/2021,11277899,"4,825.10",Revenue,1010272,Livability
Shropshire,00GG,Adult Services - Social Care Community Purchasing,Third Party Payments - Private Contractors,07/04/2021,11277900,"4,044.38",Revenue,1010272,Livability
Shropshire,00GG,Adult Services - Social Care Community Purchasing,Third Party Payments - Private Contractors,07/04/2021,11277901,665.39,Revenue,1010272,Livability
Shropshire,00GG,Adult Services - Social Care Community Purchasing,Third Party Payments - Private Contractors,07/04/2021,11277902,665.39,Revenue,1010272,Livability
Shropshire,00GG,Place - Shire Catering,Premises-Related Expenditure - Rents,07/04/2021,3218295,"1,387.50",Revenue,1010416,Shrubbery House Account
Shropshire,00GG,Place - Planning Policy,Supplies & Services - Services,07/04/2021,3218680,612.00,Revenue,1011063,Jeremy Benn Associates Ltd
Shropshire,00GG,Children's Services - Looked After Children Education,Third Party Payments - Other Establishments,07/04/2021,3224166,"1,600.00",Revenue,1011681,Csat T/As Mary Webb School
Shropshire,00GG,Children's Services - Home to School Transport,Transport-Related Expenditure - Contract Hire and Operating Leases,07/04/2021,3224987,"1,080.00",Revenue,1012185,Oswestry Community Action (Qube)
Shropshire,00GG,Children's Services - Home to School Transport,Transport-Related Expenditure - Contract Hire and Operating Leases,07/04/2021,3225015,"1,500.00",Revenue,1012185,Oswestry Community Action (Qube)
Shropshire,00GG,Children's Services - Education Psychology Service,Supplies & Services - Services,07/04/2021,3225208,"3,250.00",Revenue,1012644,Commercial redaction
Shropshire,00GG,Legal and Democratic Services - Legal Services,Supplies & Services - Services,07/04/2021,3216855,583.34,Revenue,1012819,Benjamin Harrison
Shropshire,00GG,Legal and Democratic Services - Legal Services � Child Care,Supplies & Services - Services,07/04/2021,3221248,650.00,Revenue,1013260,Richard Hadley
Shropshire,00GG,Legal and Democratic Services - Legal Services � Child Care,Supplies & Services - Services,07/04/2021,3220740,700.00,Revenue,1013984,Miss Louise Higgins
Shropshire,00GG,Legal and Democratic Services - Legal Services � Child Care,Supplies & Services - Services,07/04/2021,3220744,750.00,Revenue,1013984,Miss Louise Higgins
Shropshire,00GG,Legal and Democratic Services - Legal Services � Child Care,Supplies & Services - Services,07/04/2021,3221236,950.00,Revenue,1013984,Miss Louise Higgins
Shropshire,00GG,Children's Services - Looked After Children Education,Third Party Payments - Other Establishments,07/04/2021,3216217,760.00,Revenue,1014202,J Lucas-Garner T/A Reach for Inclusion
Shropshire,00GG,Children's Services - Looked After Children Education,Third Party Payments - Other Establishments,07/04/2021,3224184,800.00,Revenue,1014710,Whitchurch Ce Infant And Nursery Academy
Shropshire,00GG,Workforce and Transformation - Print & Post Services,Supplies & Services - Communications and Computing,07/04/2021,3220071,881.50,Revenue,1014774,Royal Mail Group Ltd
Shropshire,00GG,Children's Services - Looked After Children Education,Third Party Payments - Other Establishments,07/04/2021,3224212,"2,956.00",Revenue,1015598,Thomas Adams School
Shropshire,00GG,Place - Corporate Landlord - Admin Buildings,Premises-Related Expenditure - Cleaning and domestic supplies,08/04/2021,3221186,468.60,Revenue,1000071,Arrow County Supplies
Shropshire,00GG,Adult Services - Projects,Premises-Related Expenditure - Repairs alterations and maintenance of buildings,08/04/2021,3217550,925.00,Revenue,1000101,Cooper & Williams Ltd
Shropshire,00GG,Place - Leisure,Premises-Related Expenditure - Repairs alterations and maintenance of buildings,08/04/2021,3221626,"1,510.00",Revenue,1000101,Cooper & Williams Ltd
Shropshire,00GG,Capital - Social Care Operations Capital,Non Revenue - Non Revenue,08/04/2021,11274694,561.17,Capital,1000128,R G Edwards & Co Ltd
Shropshire,00GG,Capital - Social Care Operations Capital,Non Revenue - Non Revenue,08/04/2021,11274695,964.69,Capital,1000128,R G Edwards & Co Ltd
Shropshire,00GG,Capital - Social Care Operations Capital,Non Revenue - Non Revenue,08/04/2021,11274696,454.82,Capital,1000128,R G Edwards & Co Ltd
Shropshire,00GG,Capital - Social Care Operations Capital,Non Revenue - Non Revenue,08/04/2021,11275343,430.82,Capital,1000128,R G Edwards & Co Ltd
Shropshire,00GG,Capital - Social Care Operations Capital,Non Revenue - Non Revenue,08/04/2021,11275344,480.42,Capital,1000128,R G Edwards & Co Ltd
Shropshire,00GG,Place - Shire Catering,Supplies & Services - Equipment Furniture and Materials,08/04/2021,3218605,446.00,Revenue,1000156,W V Howe Ltd
Shropshire,00GG,Adult Services - Social Care Community Purchasing,Third Party Payments - Private Contractors,08/04/2021,11279553,"1,656.20",Revenue,1000163,Have A Care
Shropshire,00GG,Adult Services - Social Care Community Purchasing,Third Party Payments - Private Contractors,08/04/2021,11279557,"1,656.20",Revenue,1000163,Have A Care
Shropshire,00GG,Place - Environment and Transport (Public Transport),Supplies & Services - Equipment Furniture and Materials,08/04/2021,3224914,461.50,Revenue,1000188,Crelling Harnesses For Disabled Ltd
Shropshire,00GG,Place - Outdoor Partnerships,Premises-Related Expenditure - Repairs alterations and maintenance of buildings,08/04/2021,3219384,455.20,Revenue,1000197,Loosemores (Transport) Ltd
Shropshire,00GG,Place - Planning Services,Supplies & Services - Services,08/04/2021,3217379,693.00,Revenue,1000228,Midland News Association Ltd
Shropshire,00GG,Adult Services - Internal Providers - Day Services,Supplies & Services - Equipment Furniture and Materials,08/04/2021,3225459,866.91,Revenue,1000260,Victoria Centre Ac
Shropshire,00GG,Place - Libraries,Supplies & Services - Equipment Furniture and Materials,08/04/2021,3217946,"1,966.04",Revenue,1000290,Peters Ltd
Shropshire,00GG,Place - Corporate Landlord - Adult Services,Premises-Related Expenditure - Repairs alterations and maintenance of buildings,08/04/2021,11279492,605.50,Revenue,1000324,David Rogers Electrical Contractors Ltd
Shropshire,00GG,Children's Services - Placements: Adoption Service,Supplies & Services - Services,08/04/2021,3222519,"52,672.93",Revenue,1000347,Staffordshire County Council
Shropshire,00GG,Children's Services - Placements: Residential Placements,Premises-Related Expenditure - Water Services,08/04/2021,3223017,567.29,Revenue,1000349,Severn Trent Water Ltd
Shropshire,00GG,Place - Corporate Landlord - Central Repairs & Maintenance,Premises-Related Expenditure - Repairs alterations and maintenance of buildings,08/04/2021,11279500,"2,365.10",Revenue,1000411,Cool Services Ltd
Shropshire,00GG,Place - Highways (Operations),Third Party Payments - Private Contractors,08/04/2021,3216488,"4,234.00",Revenue,1000730,Vaisala Ltd
Shropshire,00GG,Place - Shire Catering,Supplies & Services - Catering,08/04/2021,3221734,852.48,Revenue,1000926,Options Management
Shropshire,00GG,Corporate Budgets - Business Continuity - Covid 19,Third Party Payments - Private Contractors,08/04/2021,3218155,965.70,Revenue,1001105,Prestige Nursing Ltd
Shropshire,00GG,Corporate Budgets - Business Continuity - Covid 19,Third Party Payments - Private Contractors,08/04/2021,3218160,583.25,Revenue,1001105,Prestige Nursing Ltd
Shropshire,00GG,Capital - Social Care Operations Capital,Non Revenue - Non Revenue,08/04/2021,3216836,595.00,Capital,1001256,R82 Uk Ltd
Shropshire,00GG,Capital - HRA Dwellings Capital,Non Revenue - Non Revenue,08/04/2021,3216726,"4,500.00",Capital,1002203,H M Revenue & Customs
Shropshire,00GG,Adult Services - Housing Options,Premises-Related Expenditure - Grounds maintenance costs,08/04/2021,3225166,"62,218.24",Revenue,1002235,Taybar Security Limited
Shropshire,00GG,Corporate Budgets - Business Continuity - Covid 19,Premises-Related Expenditure - Grounds maintenance costs,08/04/2021,3225170,"62,218.24",Revenue,1002235,Taybar Security Limited
Shropshire,00GG,Workforce and Transformation - Human Resources Operations,Supplies & Services - Services,08/04/2021,3225554,"7,330.00",Revenue,1003010,Penna Plc
Shropshire,00GG,Children's Services - Children�s Case Management,Supplies & Services - Services,08/04/2021,3218447,"1,440.00",Revenue,1003225,Lower Bush Farm
Shropshire,00GG,Adult Services - Adult Services Training,Supplies & Services - Equipment Furniture and Materials,08/04/2021,3219937,"1,616.00",Revenue,1003409,Crisis Prevention Institute
Shropshire,00GG,Place - Highways (Operations),Third Party Payments - Private Contractors,08/04/2021,3218962,"1,729.16",Revenue,1003454,Western Power Distribution
Shropshire,00GG,Place - Highways (Operations),Third Party Payments - Private Contractors,08/04/2021,3219156,"1,584.34",Revenue,1003454,Western Power Distribution
Shropshire,00GG,Place - Highways (Operations),Third Party Payments - Private Contractors,08/04/2021,3219375,"1,946.52",Revenue,1003454,Western Power Distribution
Shropshire,00GG,Adult Services - External Providers,Supplies & Services - Grants and Subscriptions,08/04/2021,3217118,"4,491.00",Revenue,1003925,Energize Shropshire  Telford & Wrekin
Shropshire,00GG,Adult Services - External Providers,Third Party Payments - Private Contractors,08/04/2021,3217127,"12,500.00",Revenue,1003925,Energize Shropshire  Telford & Wrekin
Shropshire,00GG,Adult Services - Care Management - Social Work Teams,Third Party Payments - Private Contractors,08/04/2021,3225544,"1,009.60",Revenue,1004568,Shropshire RCC
Shropshire,00GG,Children's Services - Special Educational Needs & Disability,Supplies & Services - Equipment Furniture and Materials,08/04/2021,3216506,"2,058.06",Revenue,1005014,Activate For Kids Ltd
Shropshire,00GG,Adult Services - Social Care Hospital Interface Purchasing,Third Party Payments - Private Contractors,08/04/2021,11279560,"1,344.00",Revenue,1005098,Veraty Care Solutions Ltd
Shropshire,00GG,Adult Services - Social Care Hospital Interface Purchasing,Third Party Payments - Private Contractors,08/04/2021,11279561,"12,364.80",Revenue,1005098,Veraty Care Solutions Ltd
Shropshire,00GG,Adult Services - Social Care Hospital Interface Purchasing,Third Party Payments - Private Contractors,08/04/2021,11279562,"2,496.00",Revenue,1005098,Veraty Care Solutions Ltd
Shropshire,00GG,Adult Services - Social Care Hospital Interface Purchasing,Third Party Payments - Private Contractors,08/04/2021,11279563,"7,296.00",Revenue,1005098,Veraty Care Solutions Ltd
Shropshire,00GG,Adult Services - Housing Options,Third Party Payments - Private Contractors,08/04/2021,3225582,600.00,Revenue,1005126,E R Hindmarch
Shropshire,00GG,Adult Services - Housing Options,Third Party Payments - Private Contractors,08/04/2021,3225602,900.00,Revenue,1005126,E R Hindmarch
Shropshire,00GG,Children's Services - Compass & Assesment,Supplies & Services - Services,08/04/2021,3218614,"1,280.00",Revenue,1005356,Absolute Interpreting & Translations Ltd
Shropshire,00GG,Place - Corporate Landlord - Adult Services,Premises-Related Expenditure - Rents,08/04/2021,3217719,"7,875.00",Revenue,1005358,Thorne Estates Ltd
Shropshire,00GG,Children's Services - Disabled Children's Team,Employees - Direct Employee Expenses,08/04/2021,3217068,"2,730.00",Revenue,1005988,Nonstop Recruitment Ltd
Shropshire,00GG,Legal and Democratic Services - Legal Services � Child Care,Employees - Direct Employee Expenses,08/04/2021,3217491,"1,473.78",Revenue,1006330,Sellick Partnership Limited
Shropshire,00GG,Legal and Democratic Services - Legal Services � Child Care,Employees - Direct Employee Expenses,08/04/2021,3217510,"1,063.24",Revenue,1006330,Sellick Partnership Limited
Shropshire,00GG,Children's Services - Special Educational Needs & Disability,Third Party Payments - Other Establishments,08/04/2021,3224387,"1,080.00",Revenue,1008392,Farm Friends Day Nursery
Shropshire,00GG,Place - Corporate Landlord - Adult Services,Premises-Related Expenditure - Repairs alterations and maintenance of buildings,08/04/2021,3223862,582.43,Revenue,1008560,M W D Services
Shropshire,00GG,Place - Corporate Landlord - Children's Services,Premises-Related Expenditure - Repairs alterations and maintenance of buildings,08/04/2021,3224528,451.58,Revenue,1008560,M W D Services
Shropshire,00GG,Place - Property Services Group,Premises-Related Expenditure - Repairs alterations and maintenance of buildings,08/04/2021,3224564,"2,247.75",Revenue,1008560,M W D Services
Shropshire,00GG,Place - Property Services Group,Premises-Related Expenditure - Repairs alterations and maintenance of buildings,08/04/2021,3225430,"1,175.45",Revenue,1008560,M W D Services
Shropshire,00GG,Place - Corporate Landlord -  Economic Development,Premises-Related Expenditure - Repairs alterations and maintenance of buildings,08/04/2021,3225439,859.85,Revenue,1008560,M W D Services
Shropshire,00GG,Children's Services - Non-Delegated Primary DSG,Premises-Related Expenditure - Repairs alterations and maintenance of buildings,08/04/2021,3223832,"1,433.10",Revenue,1008569,Premier Carpets & Flooring
Shropshire,00GG,Children's Services - Non-Delegated Primary DSG,Premises-Related Expenditure - Repairs alterations and maintenance of buildings,08/04/2021,3218553,"4,446.00",Revenue,1008582,Asset Surfacing & Construction Ltd
Shropshire,00GG,Children's Services - Early Years,Third Party Payments - Other Establishments,08/04/2021,3225036,"8,725.32",Revenue,1010701,Empower Trust
Shropshire,00GG,Place - Planning Services,Supplies & Services - Services,08/04/2021,3225136,750.00,Revenue,1012185,Oswestry Community Action (Qube)
Shropshire,00GG,Children's Services - Children�s Case Management,Employees - Direct Employee Expenses,08/04/2021,3217069,"1,659.83",Revenue,1013053,Frontline Staffing Ltd
Shropshire,00GG,Legal and Democratic Services - Legal Services � Child Care,Supplies & Services - Services,08/04/2021,3217817,900.00,Revenue,1013260,Richard Hadley
Shropshire,00GG,Children's Services - Looked After Children (LAC) -  Leaving Care Team (18 +),Supplies & Services - Services,08/04/2021,3222537,"2,995.00",Revenue,1013800,Catch 22
Shropshire,00GG,Workforce and Transformation - Print & Post Services,Supplies & Services - Communications and Computing,08/04/2021,3220046,787.00,Revenue,1014774,Royal Mail Group Ltd
Shropshire,00GG,Place - Corporate Landlord - Museums & Culture,Premises-Related Expenditure - Repairs alterations and maintenance of buildings,09/04/2021,3224511,729.50,Revenue,1000101,Cooper & Williams Ltd
Shropshire,00GG,Adult Services - Housing Options,Third Party Payments - Private Contractors,09/04/2021,3218667,"10,307.31",Revenue,1000128,R G Edwards & Co Ltd
Shropshire,00GG,Place - Corporate Landlord - Leisure,Premises-Related Expenditure - Repairs alterations and maintenance of buildings,09/04/2021,3225434,"1,760.00",Revenue,1000128,R G Edwards & Co Ltd
Shropshire,00GG,Adult Services - Social Care Community Purchasing,Transfer Payments - Adult Social Services Clients,09/04/2021,11279752,672.00,Revenue,1000163,Have A Care
Shropshire,00GG,Adult Services - Social Care Hospital Interface Purchasing,Transfer Payments - Adult Social Services Clients,09/04/2021,11279784,"1,209.60",Revenue,1000163,Have A Care
Shropshire,00GG,Adult Services - Social Care Hospital Interface Purchasing,Transfer Payments - Adult Social Services Clients,09/04/2021,11279785,"1,209.60",Revenue,1000163,Have A Care
Shropshire,00GG,Adult Services - Social Care Community Purchasing,Transfer Payments - Adult Social Services Clients,09/04/2021,11279793,"1,077.87",Revenue,1000163,Have A Care
Shropshire,00GG,Adult Services - Social Care Community Purchasing,Transfer Payments - Adult Social Services Clients,09/04/2021,11279846,936.00,Revenue,1000163,Have A Care
Shropshire,00GG,Adult Services - Social Care Mental Health Purchasing,Transfer Payments - Adult Social Services Clients,09/04/2021,11279905,"1,861.03",Revenue,1000163,Have A Care
Shropshire,00GG,Adult Services - Social Care Community Purchasing,Transfer Payments - Adult Social Services Clients,09/04/2021,11280069,"1,209.60",Revenue,1000163,Have A Care
Shropshire,00GG,Adult Services - Social Care Community Purchasing,Transfer Payments - Adult Social Services Clients,09/04/2021,11280070,"1,209.60",Revenue,1000163,Have A Care
Shropshire,00GG,Adult Services - Social Care Community Purchasing,Transfer Payments - Adult Social Services Clients,09/04/2021,11280112,"1,019.20",Revenue,1000163,Have A Care
Shropshire,00GG,Adult Services - Social Care Community Purchasing,Transfer Payments - Adult Social Services Clients,09/04/2021,11280113,"1,019.20",Revenue,1000163,Have A Care
Shropshire,00GG,Adult Services - Social Care Community Purchasing,Transfer Payments - Adult Social Services Clients,09/04/2021,11280149,883.20,Revenue,1000163,Have A Care
Shropshire,00GG,Adult Services - Social Care Community Purchasing,Transfer Payments - Adult Social Services Clients,09/04/2021,11280167,672.00,Revenue,1000163,Have A Care
Shropshire,00GG,Adult Services - Social Care Mental Health Purchasing,Transfer Payments - Adult Social Services Clients,09/04/2021,11280172,"1,075.20",Revenue,1000163,Have A Care
Shropshire,00GG,Adult Services - Social Care Mental Health Purchasing,Transfer Payments - Adult Social Services Clients,09/04/2021,11280173,"1,075.20",Revenue,1000163,Have A Care
Shropshire,00GG,Adult Services - Social Care Community Purchasing,Transfer Payments - Adult Social Services Clients,09/04/2021,11280254,980.80,Revenue,1000163,Have A Care
Shropshire,00GG,Adult Services - Social Care Community Purchasing,Transfer Payments - Adult Social Services Clients,09/04/2021,11280427,902.40,Revenue,1000163,Have A Care
Shropshire,00GG,Adult Services - Social Care Community Purchasing,Transfer Payments - Adult Social Services Clients,09/04/2021,11280472,806.40,Revenue,1000163,Have A Care
Shropshire,00GG,Adult Services - Social Care Community Purchasing,Transfer Payments - Adult Social Services Clients,09/04/2021,11280541,537.60,Revenue,1000163,Have A Care
Shropshire,00GG,Adult Services - Social Care Community Purchasing,Transfer Payments - Adult Social Services Clients,09/04/2021,11280567,940.80,Revenue,1000163,Have A Care
Shropshire,00GG,Adult Services - Social Care Community Purchasing,Transfer Payments - Adult Social Services Clients,09/04/2021,11280568,940.80,Revenue,1000163,Have A Care
Shropshire,00GG,Adult Services - Social Care Community Purchasing,Transfer Payments - Adult Social Services Clients,09/04/2021,11280732,940.80,Revenue,1000163,Have A Care
Shropshire,00GG,Adult Services - Social Care Community Purchasing,Transfer Payments - Adult Social Services Clients,09/04/2021,11280780,"1,209.60",Revenue,1000163,Have A Care
Shropshire,00GG,Adult Services - Social Care Community Purchasing,Transfer Payments - Adult Social Services Clients,09/04/2021,11280847,806.40,Revenue,1000163,Have A Care
Shropshire,00GG,Adult Services - Social Care Community Purchasing,Transfer Payments - Adult Social Services Clients,09/04/2021,11280866,"1,104.00",Revenue,1000163,Have A Care
Shropshire,00GG,Adult Services - Social Care Community Purchasing,Transfer Payments - Adult Social Services Clients,09/04/2021,11280925,"1,209.60",Revenue,1000163,Have A Care
Shropshire,00GG,Adult Services - Social Care Community Purchasing,Transfer Payments - Adult Social Services Clients,09/04/2021,11280963,652.80,Revenue,1000163,Have A Care
Shropshire,00GG,Adult Services - Social Care Community Purchasing,Transfer Payments - Adult Social Services Clients,09/04/2021,11281090,940.80,Revenue,1000163,Have A Care
Shropshire,00GG,Adult Services - Social Care Community Purchasing,Transfer Payments - Adult Social Services Clients,09/04/2021,11281118,"1,377.60",Revenue,1000163,Have A Care
Shropshire,00GG,Adult Services - Social Care Community Purchasing,Transfer Payments - Adult Social Services Clients,09/04/2021,11281138,"1,344.00",Revenue,1000163,Have A Care
Shropshire,00GG,Adult Services - Social Care Community Purchasing,Transfer Payments - Adult Social Services Clients,09/04/2021,11281168,"1,209.60",Revenue,1000163,Have A Care
Shropshire,00GG,Adult Services - Social Care Community Purchasing,Transfer Payments - Adult Social Services Clients,09/04/2021,11281285,806.40,Revenue,1000163,Have A Care
Shropshire,00GG,Adult Services - Social Care Community Purchasing,Transfer Payments - Adult Social Services Clients,09/04/2021,11281331,537.60,Revenue,1000163,Have A Care
Shropshire,00GG,Adult Services - Social Care Community Purchasing,Transfer Payments - Adult Social Services Clients,09/04/2021,11281433,"1,593.60",Revenue,1000163,Have A Care
Shropshire,00GG,Adult Services - Social Care Community Purchasing,Transfer Payments - Adult Social Services Clients,09/04/2021,11281474,940.80,Revenue,1000163,Have A Care
Shropshire,00GG,Adult Services - Social Care Community Purchasing,Transfer Payments - Adult Social Services Clients,09/04/2021,11281555,672.00,Revenue,1000163,Have A Care
Shropshire,00GG,Adult Services - Social Care Community Purchasing,Transfer Payments - Adult Social Services Clients,09/04/2021,11281785,"1,324.80",Revenue,1000163,Have A Care
Shropshire,00GG,Adult Services - Social Care Community Purchasing,Transfer Payments - Adult Social Services Clients,09/04/2021,11281814,"2,213.49",Revenue,1000163,Have A Care
Shropshire,00GG,Adult Services - Social Care Community Purchasing,Transfer Payments - Adult Social Services Clients,09/04/2021,11281889,"1,209.60",Revenue,1000163,Have A Care
Shropshire,00GG,Adult Services - Social Care Community Purchasing,Transfer Payments - Adult Social Services Clients,09/04/2021,11281922,806.40,Revenue,1000163,Have A Care
Shropshire,00GG,Adult Services - Social Care Community Purchasing,Transfer Payments - Adult Social Services Clients,09/04/2021,11281971,"1,209.60",Revenue,1000163,Have A Care
Shropshire,00GG,Adult Services - Social Care Community Purchasing,Transfer Payments - Adult Social Services Clients,09/04/2021,11281972,"1,209.60",Revenue,1000163,Have A Care
Shropshire,00GG,Adult Services - Social Care Community Purchasing,Transfer Payments - Adult Social Services Clients,09/04/2021,11282018,"2,109.44",Revenue,1000163,Have A Care
Shropshire,00GG,Adult Services - Social Care Community Purchasing,Transfer Payments - Adult Social Services Clients,09/04/2021,11282050,"1,075.20",Revenue,1000163,Have A Care
Shropshire,00GG,Adult Services - Social Care Community Purchasing,Transfer Payments - Adult Social Services Clients,09/04/2021,11282143,537.60,Revenue,1000163,Have A Care
Shropshire,00GG,Adult Services - Social Care Community Purchasing,Transfer Payments - Adult Social Services Clients,09/04/2021,11282255,"1,181.25",Revenue,1000163,Have A Care
Shropshire,00GG,Adult Services - Social Care Community Purchasing,Transfer Payments - Adult Social Services Clients,09/04/2021,11282256,"1,181.25",Revenue,1000163,Have A Care
Shropshire,00GG,Adult Services - Social Care Community Purchasing,Transfer Payments - Adult Social Services Clients,09/04/2021,11282264,"1,209.60",Revenue,1000163,Have A Care
Shropshire,00GG,Adult Services - Social Care Community Purchasing,Transfer Payments - Adult Social Services Clients,09/04/2021,11282265,"1,209.60",Revenue,1000163,Have A Care
Shropshire,00GG,Adult Services - Social Care Community Purchasing,Transfer Payments - Adult Social Services Clients,09/04/2021,11282313,940.80,Revenue,1000163,Have A Care
Shropshire,00GG,Adult Services - Social Care Community Purchasing,Transfer Payments - Adult Social Services Clients,09/04/2021,11282370,"2,016.00",Revenue,1000163,Have A Care
Shropshire,00GG,Adult Services - Social Care Community Purchasing,Transfer Payments - Adult Social Services Clients,09/04/2021,11282371,"1,344.00",Revenue,1000163,Have A Care
Shropshire,00GG,Place - Highways (Streetworks),Supplies & Services - Services,09/04/2021,3218230,997.92,Revenue,1000228,Midland News Association Ltd
Shropshire,00GG,Place - Highways (Streetworks),Supplies & Services - Services,09/04/2021,3218238,693.00,Revenue,1000228,Midland News Association Ltd
Shropshire,00GG,Place - Highways (Governance),Supplies & Services - Services,09/04/2021,3218241,554.40,Revenue,1000228,Midland News Association Ltd
Shropshire,00GG,Adult Services - Internal Providers - Day Services,Supplies & Services - Equipment Furniture and Materials,09/04/2021,3225914,609.59,Revenue,1000260,Victoria Centre Ac
Shropshire,00GG,Legal and Democratic Services - Elections,Supplies & Services - Printing Stationery and General Office Expenses,09/04/2021,3217432,422.52,Revenue,1000277,Banner Group Ltd
Shropshire,00GG,Place - Property Services Group,Premises-Related Expenditure - Repairs alterations and maintenance of buildings,09/04/2021,11275403,755.00,Revenue,1000324,David Rogers Electrical Contractors Ltd
Shropshire,00GG,Place - Corporate Landlord - Libraries,Premises-Related Expenditure - Repairs alterations and maintenance of buildings,09/04/2021,11275410,770.55,Revenue,1000324,David Rogers Electrical Contractors Ltd
Shropshire,00GG,Adult Services - Social Care Community Purchasing,Transfer Payments - Adult Social Services Clients,09/04/2021,11279593,"2,419.20",Revenue,1000404,Care At Home
Shropshire,00GG,Adult Services - Social Care Community Purchasing,Transfer Payments - Adult Social Services Clients,09/04/2021,11279594,"2,419.20",Revenue,1000404,Care At Home
Shropshire,00GG,Adult Services - Social Care Community Purchasing,Transfer Payments - Adult Social Services Clients,09/04/2021,11279637,"12,936.00",Revenue,1000404,Care At Home
Shropshire,00GG,Adult Services - Social Care Community Purchasing,Transfer Payments - Adult Social Services Clients,09/04/2021,11279638,"5,675.60",Revenue,1000404,Care At Home
Shropshire,00GG,Adult Services - Social Care Community Purchasing,Transfer Payments - Adult Social Services Clients,09/04/2021,11280006,"2,400.00",Revenue,1000404,Care At Home
Shropshire,00GG,Adult Services - Social Care Community Purchasing,Transfer Payments - Adult Social Services Clients,09/04/2021,11280065,"6,988.80",Revenue,1000404,Care At Home
Shropshire,00GG,Adult Services - Social Care Community Purchasing,Transfer Payments - Adult Social Services Clients,09/04/2021,11281225,"3,203.76",Revenue,1000404,Care At Home
Shropshire,00GG,Adult Services - Social Care Community Purchasing,Transfer Payments - Adult Social Services Clients,09/04/2021,11281387,"2,419.20",Revenue,1000404,Care At Home
Shropshire,00GG,Adult Services - Social Care Community Purchasing,Transfer Payments - Adult Social Services Clients,09/04/2021,11281388,"2,419.20",Revenue,1000404,Care At Home
Shropshire,00GG,Adult Services - Social Care Community Purchasing,Transfer Payments - Adult Social Services Clients,09/04/2021,11281754,"2,150.40",Revenue,1000404,Care At Home
Shropshire,00GG,Adult Services - Social Care Community Purchasing,Transfer Payments - Adult Social Services Clients,09/04/2021,11282344,"2,688.00",Revenue,1000404,Care At Home
Shropshire,00GG,Adult Services - Social Care Community Purchasing,Transfer Payments - Adult Social Services Clients,09/04/2021,11282436,"2,419.20",Revenue,1000404,Care At Home
Shropshire,00GG,Adult Services - Social Care Community Purchasing,Transfer Payments - Adult Social Services Clients,09/04/2021,11282437,"1,344.00",Revenue,1000404,Care At Home
Shropshire,00GG,Place - Corporate Landlord - Libraries,Premises-Related Expenditure - Repairs alterations and maintenance of buildings,09/04/2021,11275423,564.45,Revenue,1000411,Cool Services Ltd
Shropshire,00GG,Place - Highways (Operations),Supplies & Services - Services,09/04/2021,3212189,"7,140.26",Revenue,1000428,Compass Minerals Uk Limited
Shropshire,00GG,Place - Highways (Operations),Supplies & Services - Services,09/04/2021,3212213,"4,755.10",Revenue,1000428,Compass Minerals Uk Limited
Shropshire,00GG,Place - Highways (Operations),Supplies & Services - Services,09/04/2021,3216030,"9,467.98",Revenue,1000428,Compass Minerals Uk Limited
Shropshire,00GG,Place - Highways (Operations),Supplies & Services - Services,09/04/2021,3216142,"4,751.72",Revenue,1000428,Compass Minerals Uk Limited
Shropshire,00GG,Place - Highways (Operations),Supplies & Services - Services,09/04/2021,3218588,"4,858.14",Revenue,1000428,Compass Minerals Uk Limited
Shropshire,00GG,Workforce and Transformation - Print & Post Services,Supplies & Services - Printing Stationery and General Office Expenses,09/04/2021,3218759,"41,564.49",Revenue,1000443,Birmingham City Council
Shropshire,00GG,Adult Services - Social Care Community Purchasing,Transfer Payments - Adult Social Services Clients,09/04/2021,11279878,"1,536.00",Revenue,1000472,Headway Shropshire
Shropshire,00GG,Adult Services - Social Care Community Purchasing,Third Party Payments - Private Contractors,09/04/2021,11279675,"1,277.20",Revenue,1000484,Radis Community Care
Shropshire,00GG,Adult Services - Social Care Community Purchasing,Transfer Payments - Adult Social Services Clients,09/04/2021,11279750,672.84,Revenue,1000484,Radis Community Care
Shropshire,00GG,Adult Services - Social Care Community Purchasing,Transfer Payments - Adult Social Services Clients,09/04/2021,11279779,"2,476.80",Revenue,1000484,Radis Community Care
Shropshire,00GG,Adult Services - Social Care Community Purchasing,Transfer Payments - Adult Social Services Clients,09/04/2021,11279993,682.56,Revenue,1000484,Radis Community Care
Shropshire,00GG,Adult Services - Social Care Community Purchasing,Transfer Payments - Adult Social Services Clients,09/04/2021,11280028,674.70,Revenue,1000484,Radis Community Care
Shropshire,00GG,Adult Services - Social Care Community Purchasing,Transfer Payments - Adult Social Services Clients,09/04/2021,11280217,576.00,Revenue,1000484,Radis Community Care
Shropshire,00GG,Adult Services - Social Care Community Purchasing,Transfer Payments - Adult Social Services Clients,09/04/2021,11280257,566.72,Revenue,1000484,Radis Community Care
Shropshire,00GG,Adult Services - Social Care Community Purchasing,Transfer Payments - Adult Social Services Clients,09/04/2021,11280327,761.20,Revenue,1000484,Radis Community Care
Shropshire,00GG,Adult Services - Social Care Community Purchasing,Transfer Payments - Adult Social Services Clients,09/04/2021,11280369,"1,208.20",Revenue,1000484,Radis Community Care
Shropshire,00GG,Adult Services - Social Care Community Purchasing,Transfer Payments - Adult Social Services Clients,09/04/2021,11280648,672.00,Revenue,1000484,Radis Community Care
Shropshire,00GG,Adult Services - Social Care Community Purchasing,Transfer Payments - Adult Social Services Clients,09/04/2021,11280980,"2,342.40",Revenue,1000484,Radis Community Care
Shropshire,00GG,Adult Services - Social Care Community Purchasing,Transfer Payments - Adult Social Services Clients,09/04/2021,11281028,537.60,Revenue,1000484,Radis Community Care
Shropshire,00GG,Adult Services - Social Care Community Purchasing,Transfer Payments - Adult Social Services Clients,09/04/2021,11281089,"2,390.40",Revenue,1000484,Radis Community Care
Shropshire,00GG,Adult Services - Social Care Community Purchasing,Transfer Payments - Adult Social Services Clients,09/04/2021,11281121,"1,209.60",Revenue,1000484,Radis Community Care
Shropshire,00GG,Adult Services - Social Care Mental Health Purchasing,Transfer Payments - Adult Social Services Clients,09/04/2021,11281159,"1,324.80",Revenue,1000484,Radis Community Care
Shropshire,00GG,Adult Services - Social Care Community Purchasing,Transfer Payments - Adult Social Services Clients,09/04/2021,11281313,672.00,Revenue,1000484,Radis Community Care
Shropshire,00GG,Adult Services - Social Care Community Purchasing,Transfer Payments - Adult Social Services Clients,09/04/2021,11281396,523.32,Revenue,1000484,Radis Community Care
Shropshire,00GG,Adult Services - Social Care Community Purchasing,Transfer Payments - Adult Social Services Clients,09/04/2021,11281541,633.60,Revenue,1000484,Radis Community Care
Shropshire,00GG,Adult Services - Social Care Community Purchasing,Transfer Payments - Adult Social Services Clients,09/04/2021,11281851,"11,328.01",Revenue,1000484,Radis Community Care
Shropshire,00GG,Adult Services - Social Care Community Purchasing,Transfer Payments - Adult Social Services Clients,09/04/2021,11281874,"1,487.80",Revenue,1000484,Radis Community Care
Shropshire,00GG,Adult Services - Social Care Community Purchasing,Transfer Payments - Adult Social Services Clients,09/04/2021,11281893,553.60,Revenue,1000484,Radis Community Care
Shropshire,00GG,Adult Services - Social Care Community Purchasing,Transfer Payments - Adult Social Services Clients,09/04/2021,11282066,"1,089.91",Revenue,1000484,Radis Community Care
Shropshire,00GG,Adult Services - Social Care Community Purchasing,Transfer Payments - Adult Social Services Clients,09/04/2021,11282407,"2,317.50",Revenue,1000484,Radis Community Care
Shropshire,00GG,Adult Services - Social Care Community Purchasing,Transfer Payments - Adult Social Services Clients,09/04/2021,11282408,"2,317.50",Revenue,1000484,Radis Community Care
Shropshire,00GG,Adult Services - Public Health General Management,Third Party Payments - Private Contractors,09/04/2021,3217996,"1,787.50",Revenue,1000530,Shropshire Youth Association
Shropshire,00GG,Adult Services - Public Health General Management,Third Party Payments - Voluntary Associations,09/04/2021,3218189,"3,312.00",Revenue,1000530,Shropshire Youth Association
Shropshire,00GG,Adult Services - Social Care Mental Health Purchasing,Transfer Payments - Adult Social Services Clients,09/04/2021,11279828,608.32,Revenue,1000537,Trident Reach The People Charity
Shropshire,00GG,Adult Services - Social Care Community Purchasing,Transfer Payments - Adult Social Services Clients,09/04/2021,11279852,"1,754.88",Revenue,1000537,Trident Reach The People Charity
Shropshire,00GG,Adult Services - Social Care Community Purchasing,Transfer Payments - Adult Social Services Clients,09/04/2021,11279872,"1,596.84",Revenue,1000537,Trident Reach The People Charity
Shropshire,00GG,Adult Services - Social Care Mental Health Purchasing,Transfer Payments - Adult Social Services Clients,09/04/2021,11279934,"2,129.12",Revenue,1000537,Trident Reach The People Charity
Shropshire,00GG,Adult Services - Social Care Mental Health Purchasing,Transfer Payments - Adult Social Services Clients,09/04/2021,11280202,760.40,Revenue,1000537,Trident Reach The People Charity
Shropshire,00GG,Adult Services - Social Care Community Purchasing,Transfer Payments - Adult Social Services Clients,09/04/2021,11280425,"2,129.12",Revenue,1000537,Trident Reach The People Charity
Shropshire,00GG,Adult Services - Social Care Community Purchasing,Transfer Payments - Adult Social Services Clients,09/04/2021,11281359,608.32,Revenue,1000537,Trident Reach The People Charity
Shropshire,00GG,Adult Services - Social Care Mental Health Purchasing,Transfer Payments - Adult Social Services Clients,09/04/2021,11281778,"1,182.24",Revenue,1000537,Trident Reach The People Charity
Shropshire,00GG,Adult Services - Social Care Community Purchasing,Third Party Payments - Private Contractors,09/04/2021,11282560,"4,687.52",Revenue,1000537,Trident Reach The People Charity
Shropshire,00GG,Adult Services - Social Care Community Purchasing,Third Party Payments - Private Contractors,09/04/2021,11282582,"4,061.68",Revenue,1000537,Trident Reach The People Charity
Shropshire,00GG,Adult Services - Social Care Community Purchasing,Third Party Payments - Private Contractors,09/04/2021,11282589,"4,120.92",Revenue,1000537,Trident Reach The People Charity
Shropshire,00GG,Adult Services - Social Care Community Purchasing,Third Party Payments - Private Contractors,09/04/2021,11282607,"4,120.92",Revenue,1000537,Trident Reach The People Charity
Shropshire,00GG,Adult Services - Social Care Community Purchasing,Third Party Payments - Private Contractors,09/04/2021,11282617,"4,930.76",Revenue,1000537,Trident Reach The People Charity
Shropshire,00GG,Adult Services - Social Care Community Purchasing,Third Party Payments - Private Contractors,09/04/2021,11282643,"8,226.61",Revenue,1000537,Trident Reach The People Charity
Shropshire,00GG,Adult Services - Social Care Community Purchasing,Third Party Payments - Private Contractors,09/04/2021,11282648,"4,120.92",Revenue,1000537,Trident Reach The People Charity
Shropshire,00GG,Adult Services - Social Care Community Purchasing,Third Party Payments - Private Contractors,09/04/2021,11282664,"4,121.12",Revenue,1000537,Trident Reach The People Charity
Shropshire,00GG,Adult Services - Social Care Community Purchasing,Third Party Payments - Private Contractors,09/04/2021,11282704,"4,120.92",Revenue,1000537,Trident Reach The People Charity
Shropshire,00GG,Adult Services - Social Care Community Purchasing,Third Party Payments - Private Contractors,09/04/2021,11282721,"4,102.32",Revenue,1000537,Trident Reach The People Charity
Shropshire,00GG,Adult Services - Social Care Community Purchasing,Third Party Payments - Private Contractors,09/04/2021,11282737,"4,083.96",Revenue,1000537,Trident Reach The People Charity
Shropshire,00GG,Adult Services - Social Care Community Purchasing,Third Party Payments - Private Contractors,09/04/2021,11282857,"4,102.32",Revenue,1000537,Trident Reach The People Charity
Shropshire,00GG,Adult Services - Social Care Community Purchasing,Third Party Payments - Private Contractors,09/04/2021,11283407,"4,083.96",Revenue,1000537,Trident Reach The People Charity
Shropshire,00GG,Adult Services - Social Care Community Purchasing,Third Party Payments - Private Contractors,09/04/2021,11283433,"4,516.44",Revenue,1000537,Trident Reach The People Charity
Shropshire,00GG,Adult Services - Supported Living Properties,Third Party Payments - Private Contractors,09/04/2021,3218186,652.47,Revenue,1000578,**Do Not Use**Connexus Housing One Limited
Shropshire,00GG,Capital - Corporate Landlord Capital,Non Revenue - Non Revenue,09/04/2021,3220078,"82,096.49",Capital,1000579,Pave Aways Ltd
Shropshire,00GG,Workforce and Transformation - ICT Services,Supplies & Services - Communications and Computing,09/04/2021,3218205,"2,716.00",Revenue,1000726,Stoneleigh Consultancy Ltd
Shropshire,00GG,Place - Shire Catering,Supplies & Services - Catering,09/04/2021,3223749,"1,143.00",Revenue,1000769,The Little Food Company Limited
Shropshire,00GG,"Workforce and Transformation - Information, Intelligence & Insight",Supplies & Services - Communications and Computing,09/04/2021,3218090,"3,325.00",Revenue,1000792,The Improvement & Development Agency
Shropshire,00GG,Workforce and Transformation - Print & Post Services,Supplies & Services - Communications and Computing,09/04/2021,3223482,"20,000.00",Revenue,1000793,Pitney Bowes Ltd - Postage by Phone
Shropshire,00GG,Place - Libraries,Third Party Payments - Private Contractors,09/04/2021,3217425,"1,675.06",Revenue,1000795,Bishops Castle & District Lifeline Co Ltd (Enterprise House)
Shropshire,00GG,Place - Shire Catering,Supplies & Services - Catering,09/04/2021,3224369,853.86,Revenue,1000926,Options Management
Shropshire,00GG,Workforce and Transformation - ICT Services,Supplies & Services - Communications and Computing,09/04/2021,3217423,"1,520.00",Revenue,1000933,Xma Ltd
Shropshire,00GG,Workforce and Transformation - ICT Services,Supplies & Services - Communications and Computing,09/04/2021,3218226,"3,576.60",Revenue,1000933,Xma Ltd
Shropshire,00GG,Adult Services - External Providers,Third Party Payments - Private Contractors,09/04/2021,3217885,"7,698.00",Revenue,1000946,Age UK (WIPS)
Shropshire,00GG,Adult Services - External Providers,Third Party Payments - Private Contractors,09/04/2021,3217906,"21,873.00",Revenue,1000946,Age UK (WIPS)
Shropshire,00GG,Children's Services - Looked After Children Education,Third Party Payments - Other Establishments,09/04/2021,3225874,"1,600.00",Revenue,1000948,Telford & Wrekin Council
Shropshire,00GG,Children's Services - Education Improvement Service,Supplies & Services - Services,09/04/2021,3220191,"3,300.00",Revenue,1001000,R E Today Services
Shropshire,00GG,Place - Leisure,Third Party Payments - Other Agencies,09/04/2021,3221671,"23,530.00",Revenue,1001148,South Shropshire Leisure Ltd
Shropshire,00GG,Place - Leisure,Third Party Payments - Other Agencies,09/04/2021,3223797,"100,000.00",Revenue,1001148,South Shropshire Leisure Ltd
Shropshire,00GG,Workforce and Transformation - Print & Post Services,Supplies & Services - Printing Stationery and General Office Expenses,09/04/2021,3220592,620.80,Revenue,1001240,Altodigital Networks Ltd
Shropshire,00GG,Corporate Budgets - Other Corporate Budgets,Supplies & Services - Services,09/04/2021,3221867,"3,012.40",Revenue,1001536,Bevan Brittan Llp Client Account
Shropshire,00GG,Place - Environment and Transport (Parking),Supplies & Services - Equipment Furniture and Materials,09/04/2021,3212378,"10,368.66",Revenue,1001797,Flowbird
Shropshire,00GG,Adult Services - Substance Misuse (Ringfanced),Third Party Payments - Health Authorities,09/04/2021,3217577,"1,872.94",Revenue,1001875,Orion Medical Supplies Ltd
Shropshire,00GG,Legal and Democratic Services - Legal Services � Child Care,Supplies & Services - Services,09/04/2021,3221241,"2,250.00",Revenue,1001886,Victoria Clifford
Shropshire,00GG,Adult Services - Regulatory Services,Supplies & Services - Services,09/04/2021,3217358,"1,281.00",Revenue,1001913,Frank Painter & Sons Ltd
Shropshire,00GG,Workforce and Transformation - Print & Post Services,Supplies & Services - Printing Stationery and General Office Expenses,09/04/2021,3220598,"3,389.82",Revenue,1002095,Ricoh Uk Ltd
Shropshire,00GG,Workforce and Transformation - Print & Post Services,Supplies & Services - Printing Stationery and General Office Expenses,09/04/2021,3220622,"2,199.33",Revenue,1002095,Ricoh Uk Ltd
Shropshire,00GG,Adult Services - Housing Options,Supplies & Services - Services,09/04/2021,3220657,"1,386.58",Revenue,1002210,**Do Not Use**Connexus Housing Three Limited
Shropshire,00GG,Adult Services - Projects,Premises-Related Expenditure - Rents,09/04/2021,3224316,"1,541.02",Revenue,1002210,**Do Not Use**Connexus Housing Three Limited
Shropshire,00GG,"Workforce and Transformation - Information, Intelligence & Insight",Supplies & Services - Communications and Computing,09/04/2021,3218150,"15,876.00",Revenue,1002257,Idox Software Limited
Shropshire,00GG,Adult Services - Trading Standards & Licensing,Supplies & Services - Communications and Computing,09/04/2021,3218960,"1,724.75",Revenue,1002584,Chipside Limited
Shropshire,00GG,Place - Leisure,Third Party Payments - Private Contractors,09/04/2021,3217921,"3,150.00",Revenue,1002644,Nigel Bramall
Shropshire,00GG,Place - Leisure,Third Party Payments - Private Contractors,09/04/2021,3220080,"3,971.25",Revenue,1002644,Nigel Bramall
Shropshire,00GG,Place - Planning Services,Employees - Indirect Employee Expenses,09/04/2021,3219534,"1,440.00",Revenue,1002673,Elmhurst Energy Systems Limited
Shropshire,00GG,Adult Services - Care Management - Social Work Teams,Supplies & Services - Services,09/04/2021,3220185,980.00,Revenue,1002702,Sajkum Ltd t/a Sajeev Kumar Kshemendran
Shropshire,00GG,Adult Services - Professional Development Unit,Supplies & Services - Services,09/04/2021,3220902,"1,662.50",Revenue,1003012,7Video Ltd
Shropshire,00GG,Children's Services - Learning & Skills Business Support,Supplies & Services - Services,09/04/2021,3225628,"2,700.00",Revenue,1003521,Activsports Ltd
Shropshire,00GG,Adult Services - Regulatory Services,Supplies & Services - Services,09/04/2021,3221725,"1,197.64",Revenue,1003585,Public Analyst Scientific Services Ltd
Shropshire,00GG,Children's Services - Early Help General,Supplies & Services - Equipment Furniture and Materials,09/04/2021,3218141,"4,500.00",Revenue,1003678,University Hospitals Birmingham Nhs Foundation Trust Heart of England
Shropshire,00GG,Children's Services - Placements: Adoption Service,Supplies & Services - Services,09/04/2021,11284147,"1,180.00",Revenue,1003719,Newstart Networks Cic
Shropshire,00GG,Place - Corporate Landlord - Adult Services,Premises-Related Expenditure - Rents,09/04/2021,3224683,"1,930.00",Revenue,1003789,Terry Smith Rental
Shropshire,00GG,Place - Leisure,Supplies & Services - Equipment Furniture and Materials,09/04/2021,3226029,"1,032.00",Revenue,1003962,Gym Solutions Ltd
Shropshire,00GG,Legal and Democratic Services - Legal Services � Child Care,Supplies & Services - Services,09/04/2021,3226034,"1,000.00",Revenue,1003968,Mr Christopher Rank
Shropshire,00GG,Legal and Democratic Services - Legal Services � Child Care,Supplies & Services - Services,09/04/2021,3226036,"1,250.00",Revenue,1003968,Mr Christopher Rank
Shropshire,00GG,Legal and Democratic Services - Legal Services � Child Care,Supplies & Services - Services,09/04/2021,3226044,"1,000.00",Revenue,1003968,Mr Christopher Rank
Shropshire,00GG,Children's Services - Home to School Transport,Transport-Related Expenditure - Contract Hire and Operating Leases,09/04/2021,3225038,"4,864.00",Revenue,1003978,Shrewsbury Taxi Service
Shropshire,00GG,Children's Services - Children�s Case Management,Premises-Related Expenditure - Contributions to Premises related provisions,09/04/2021,3223427,642.86,Revenue,1004142,Refuge
Shropshire,00GG,Capital - HRA Dwellings Capital,Non Revenue - Non Revenue,09/04/2021,3216604,"545,249.34",Capital,1004162,Shropshire Towns & Rural Housing Ltd
Shropshire,00GG,Place - Property & Development,Non Revenue - Non Revenue,09/04/2021,3216604,"2,000.00",Revenue,1004162,Shropshire Towns & Rural Housing Ltd
Shropshire,00GG,Children's Services - Special Educational Needs & Disability,Supplies & Services - Services,09/04/2021,3218077,"1,024.00",Revenue,1004263,Positive Leap
Shropshire,00GG,Place - Corporate Landlord - Traveller Sites,Premises-Related Expenditure - Repairs alterations and maintenance of buildings,09/04/2021,11275319,"2,544.00",Revenue,1004402,Rmf (Landscaping) Ltd
Shropshire,00GG,Adult Services - Care Management - Transport,Transport-Related Expenditure - Contract Hire and Operating Leases,09/04/2021,3225864,651.36,Revenue,1004685,Personal redaction
Shropshire,00GG,Capital - Social Care Operations Capital,Non Revenue - Non Revenue,09/04/2021,3219507,"4,078.34",Capital,1004765,M W Knight & Sons Ltd
Shropshire,00GG,Place - Leisure,Premises-Related Expenditure - Repairs alterations and maintenance of buildings,09/04/2021,3218216,479.17,Revenue,1004837,The 3-18 Education Trust T/A William Brookes School
Shropshire,00GG,Place - Leisure,Premises-Related Expenditure - Energy Costs,09/04/2021,3218216,"4,925.06",Revenue,1004837,The 3-18 Education Trust T/A William Brookes School
Shropshire,00GG,Place - Leisure,Premises-Related Expenditure - Rates,09/04/2021,3218216,847.55,Revenue,1004837,The 3-18 Education Trust T/A William Brookes School
Shropshire,00GG,Place - Leisure,Premises-Related Expenditure - Water Services,09/04/2021,3218216,354.91,Revenue,1004837,The 3-18 Education Trust T/A William Brookes School
Shropshire,00GG,Place - Leisure,Premises-Related Expenditure - Cleaning and domestic supplies,09/04/2021,3218216,"1,000.00",Revenue,1004837,The 3-18 Education Trust T/A William Brookes School
Shropshire,00GG,Place - Shire Catering,Premises-Related Expenditure - Rates,09/04/2021,3222390,"1,372.25",Revenue,1004844,Wyre Forest District Council
Shropshire,00GG,Children's Services - Special Educational Needs & Disability,Supplies & Services - Services,09/04/2021,3222451,595.00,Revenue,1004881,Prime Resolution Limited
Shropshire,00GG,Adult Services - Care Management - Social Work Teams,Supplies & Services - Equipment Furniture and Materials,09/04/2021,3218158,876.00,Revenue,1004929,Complete Business Solutions Group Ltd - Wakefield
Shropshire,00GG,Place - Property & Development,Supplies & Services - Services,09/04/2021,3218172,"1,500.00",Revenue,1004995,Kings Chambers
Shropshire,00GG,Adult Services - Social Care Community Purchasing,Transfer Payments - Adult Social Services Clients,09/04/2021,11281444,510.00,Revenue,1005001,Kyrebrook Daycare Centre
Shropshire,00GG,Place - Libraries,Supplies & Services - Communications and Computing,09/04/2021,3217935,500.00,Revenue,1005022,Axiell Alm Limited
Shropshire,00GG,Children's Services - Children�s Case Management,Supplies & Services - Services,09/04/2021,3218328,875.00,Revenue,1005189,Lextox
Shropshire,00GG,Children's Services - Children�s Case Management,Supplies & Services - Services,09/04/2021,3218332,875.00,Revenue,1005189,Lextox
Shropshire,00GG,Legal and Democratic Services - Legal Services � Child Care,Employees - Direct Employee Expenses,09/04/2021,3217800,"2,503.20",Revenue,1005215,The Oyster Partnership Ltd
Shropshire,00GG,Place - Planning Services,Supplies & Services - Services,09/04/2021,3218166,"1,443.00",Revenue,1005215,The Oyster Partnership Ltd
Shropshire,00GG,Place - Planning Services,Supplies & Services - Services,09/04/2021,3218173,"1,612.50",Revenue,1005215,The Oyster Partnership Ltd
Shropshire,00GG,Place - Outdoor Partnerships,Premises-Related Expenditure - Repairs alterations and maintenance of buildings,09/04/2021,3219436,"3,131.44",Revenue,1005285,Robert Lee (Plant) Ltd
Shropshire,00GG,Workforce and Transformation - ICT Services,Supplies & Services - Communications and Computing,09/04/2021,3217486,"8,200.00",Revenue,1005427,Jisc Services Limited
Shropshire,00GG,Place - Property Services Group,Premises-Related Expenditure - Repairs alterations and maintenance of buildings,09/04/2021,11277956,574.10,Revenue,1005630,Kaitakare Ltd
Shropshire,00GG,Place - Environment and Transport (Public Transport),Third Party Payments - Transport Operators,09/04/2021,3218354,990.00,Revenue,1005767,Euclid Limited
Shropshire,00GG,Place - Environment and Transport (Public Transport),Third Party Payments - Transport Operators,09/04/2021,3218355,"4,414.16",Revenue,1005767,Euclid Limited
Shropshire,00GG,Place - Environment and Transport (Public Transport),Third Party Payments - Transport Operators,09/04/2021,3218356,"6,932.64",Revenue,1005767,Euclid Limited
Shropshire,00GG,Place - Environment and Transport (Public Transport),Third Party Payments - Transport Operators,09/04/2021,3218374,"1,199.90",Revenue,1005767,Euclid Limited
Shropshire,00GG,Place - Corporate Landlord - Museums & Culture,Premises-Related Expenditure - Cleaning and domestic supplies,09/04/2021,3218756,683.59,Revenue,1005939,Restore Datashred Limited (formerly Data Solutions)
Shropshire,00GG,Place - Environment and Transport (Strategic),Supplies & Services - Services,09/04/2021,3226035,"1,880.00",Revenue,1006124,Learncycling
Shropshire,00GG,Adult Services - Care Management - Social Work Teams,Third Party Payments - Private Contractors,09/04/2021,3217311,"33,880.00",Revenue,1006130,Nrs Healthcare
Shropshire,00GG,Adult Services - Social Care Community Purchasing,Third Party Payments - Private Contractors,09/04/2021,11284013,"2,035.44",Revenue,1007492,Advinia Care Homes Ltd
Shropshire,00GG,Adult Services - Social Care Community Purchasing,Third Party Payments - Private Contractors,09/04/2021,11282848,"3,000.00",Revenue,1007823,Alexandra House
Shropshire,00GG,Adult Services - Social Care Community Purchasing,Third Party Payments - Private Contractors,09/04/2021,11283304,"3,060.00",Revenue,1007823,Alexandra House
Shropshire,00GG,Adult Services - Social Care Community Purchasing,Third Party Payments - Private Contractors,09/04/2021,11283914,"-1,671.54",Revenue,1007823,Alexandra House
Shropshire,00GG,Adult Services - Social Care Community Purchasing,Third Party Payments - Private Contractors,09/04/2021,11283054,"5,360.00",Revenue,1007824,Springcare (Hatton) Limited
Shropshire,00GG,Adult Services - Social Care Community Purchasing,Third Party Payments - Private Contractors,09/04/2021,11283089,"5,360.00",Revenue,1007824,Springcare (Hatton) Limited
Shropshire,00GG,Adult Services - Social Care Community Purchasing,Third Party Payments - Private Contractors,09/04/2021,11283431,"5,760.00",Revenue,1007824,Springcare (Hatton) Limited
Shropshire,00GG,Adult Services - Social Care Community Purchasing,Third Party Payments - Private Contractors,09/04/2021,11283514,"-8,434.28",Revenue,1007824,Springcare (Hatton) Limited
Shropshire,00GG,Adult Services - Social Care Community Purchasing,Third Party Payments - Private Contractors,09/04/2021,11283921,"-10,528.58",Revenue,1007824,Springcare (Hatton) Limited
Shropshire,00GG,Adult Services - Social Care Community Purchasing,Third Party Payments - Private Contractors,09/04/2021,11283938,"5,760.00",Revenue,1007824,Springcare (Hatton) Limited
Shropshire,00GG,Adult Services - Social Care Community Purchasing,Third Party Payments - Private Contractors,09/04/2021,11283980,"5,652.56",Revenue,1007824,Springcare (Hatton) Limited
Shropshire,00GG,Adult Services - Social Care Community Purchasing,Third Party Payments - Private Contractors,09/04/2021,11284036,"5,760.00",Revenue,1007824,Springcare (Hatton) Limited
Shropshire,00GG,Adult Services - Social Care Community Purchasing,Third Party Payments - Private Contractors,09/04/2021,11282804,"1,800.00",Revenue,1007825,Portland House Care Limited
Shropshire,00GG,Adult Services - Social Care Community Purchasing,Third Party Payments - Private Contractors,09/04/2021,11282982,"3,064.60",Revenue,1007825,Portland House Care Limited
Shropshire,00GG,Adult Services - Social Care Mental Health Purchasing,Third Party Payments - Private Contractors,09/04/2021,11283104,"6,852.44",Revenue,1007825,Portland House Care Limited
Shropshire,00GG,Adult Services - Social Care Community Purchasing,Third Party Payments - Private Contractors,09/04/2021,11283202,"6,964.29",Revenue,1007825,Portland House Care Limited
Shropshire,00GG,Adult Services - Social Care Community Purchasing,Third Party Payments - Private Contractors,09/04/2021,11283493,"3,056.36",Revenue,1007825,Portland House Care Limited
Shropshire,00GG,Adult Services - Social Care Community Purchasing,Third Party Payments - Private Contractors,09/04/2021,11283530,"3,400.00",Revenue,1007825,Portland House Care Limited
Shropshire,00GG,Adult Services - Social Care Community Purchasing,Third Party Payments - Private Contractors,09/04/2021,11283572,"3,071.20",Revenue,1007825,Portland House Care Limited
Shropshire,00GG,Adult Services - Social Care Community Purchasing,Third Party Payments - Private Contractors,09/04/2021,11283607,"3,264.32",Revenue,1007825,Portland House Care Limited
Shropshire,00GG,Adult Services - Social Care Community Purchasing,Third Party Payments - Private Contractors,09/04/2021,11283678,"3,035.76",Revenue,1007825,Portland House Care Limited
Shropshire,00GG,Adult Services - Social Care Community Purchasing,Third Party Payments - Private Contractors,09/04/2021,11283744,"3,056.36",Revenue,1007825,Portland House Care Limited
Shropshire,00GG,Adult Services - Social Care Community Purchasing,Third Party Payments - Private Contractors,09/04/2021,11282599,"3,226.52",Revenue,1007826,The Uplands At Oxon
Shropshire,00GG,Adult Services - Social Care Community Purchasing,Third Party Payments - Private Contractors,09/04/2021,11282718,"3,226.52",Revenue,1007826,The Uplands At Oxon
Shropshire,00GG,Adult Services - Social Care Community Purchasing,Third Party Payments - Private Contractors,09/04/2021,11282746,"3,226.52",Revenue,1007826,The Uplands At Oxon
Shropshire,00GG,Adult Services - Social Care Community Purchasing,Third Party Payments - Private Contractors,09/04/2021,11282775,"3,226.52",Revenue,1007826,The Uplands At Oxon
Shropshire,00GG,Adult Services - Social Care Mental Health Purchasing,Third Party Payments - Private Contractors,09/04/2021,11282792,"3,226.52",Revenue,1007826,The Uplands At Oxon
Shropshire,00GG,Adult Services - Social Care Hospital Interface Purchasing,Third Party Payments - Private Contractors,09/04/2021,11283051,"3,226.52",Revenue,1007826,The Uplands At Oxon
Shropshire,00GG,Adult Services - Social Care Community Purchasing,Third Party Payments - Private Contractors,09/04/2021,11283139,"3,226.52",Revenue,1007826,The Uplands At Oxon
Shropshire,00GG,Adult Services - Social Care Community Purchasing,Third Party Payments - Private Contractors,09/04/2021,11283241,"30,273.60",Revenue,1007826,The Uplands At Oxon
Shropshire,00GG,Adult Services - Social Care Community Purchasing,Third Party Payments - Private Contractors,09/04/2021,11283269,"43,248.00",Revenue,1007826,The Uplands At Oxon
Shropshire,00GG,Adult Services - Social Care Community Purchasing,Third Party Payments - Private Contractors,09/04/2021,11283481,"3,226.52",Revenue,1007826,The Uplands At Oxon
Shropshire,00GG,Adult Services - Social Care Community Purchasing,Third Party Payments - Private Contractors,09/04/2021,11283622,"3,226.52",Revenue,1007826,The Uplands At Oxon
Shropshire,00GG,Adult Services - Social Care Community Purchasing,Third Party Payments - Private Contractors,09/04/2021,11283700,"3,652.68",Revenue,1007826,The Uplands At Oxon
Shropshire,00GG,Adult Services - Social Care Community Purchasing,Third Party Payments - Private Contractors,09/04/2021,11283772,"3,797.96",Revenue,1007826,The Uplands At Oxon
Shropshire,00GG,Adult Services - Social Care Community Purchasing,Third Party Payments - Private Contractors,09/04/2021,11283815,"4,538.60",Revenue,1007826,The Uplands At Oxon
Shropshire,00GG,Adult Services - Social Care Community Purchasing,Third Party Payments - Private Contractors,09/04/2021,11283881,"3,226.52",Revenue,1007826,The Uplands At Oxon
Shropshire,00GG,Adult Services - Social Care Community Purchasing,Third Party Payments - Private Contractors,09/04/2021,11283882,"9,132.70",Revenue,1007826,The Uplands At Oxon
Shropshire,00GG,Adult Services - Social Care Community Purchasing,Third Party Payments - Private Contractors,09/04/2021,11283889,"2,765.59",Revenue,1007826,The Uplands At Oxon
Shropshire,00GG,Adult Services - Social Care Community Purchasing,Third Party Payments - Private Contractors,09/04/2021,11283909,"3,226.52",Revenue,1007826,The Uplands At Oxon
Shropshire,00GG,Adult Services - Social Care Community Purchasing,Third Party Payments - Private Contractors,09/04/2021,11283927,"3,226.52",Revenue,1007826,The Uplands At Oxon
Shropshire,00GG,Adult Services - Social Care Mental Health Purchasing,Third Party Payments - Private Contractors,09/04/2021,11284030,"4,560.00",Revenue,1007826,The Uplands At Oxon
Shropshire,00GG,Adult Services - Social Care Community Purchasing,Third Party Payments - Private Contractors,09/04/2021,11284032,"3,226.52",Revenue,1007826,The Uplands At Oxon
Shropshire,00GG,Adult Services - Social Care Community Purchasing,Third Party Payments - Private Contractors,09/04/2021,11284056,"3,226.52",Revenue,1007826,The Uplands At Oxon
Shropshire,00GG,Adult Services - Social Care Community Purchasing,Third Party Payments - Private Contractors,09/04/2021,11284063,"3,226.52",Revenue,1007826,The Uplands At Oxon
Shropshire,00GG,Adult Services - Social Care Community Purchasing,Third Party Payments - Private Contractors,09/04/2021,11284083,"3,226.52",Revenue,1007826,The Uplands At Oxon
Shropshire,00GG,Adult Services - Social Care Community Purchasing,Third Party Payments - Private Contractors,09/04/2021,11284093,"3,226.52",Revenue,1007826,The Uplands At Oxon
Shropshire,00GG,Adult Services - Social Care Community Purchasing,Third Party Payments - Private Contractors,09/04/2021,11282854,"3,000.00",Revenue,1007827,Mount House Residential Home
Shropshire,00GG,Adult Services - Social Care Community Purchasing,Third Party Payments - Private Contractors,09/04/2021,11283027,"2,941.00",Revenue,1007827,Mount House Residential Home
Shropshire,00GG,Adult Services - Social Care Community Purchasing,Third Party Payments - Private Contractors,09/04/2021,11283379,"2,796.80",Revenue,1007827,Mount House Residential Home
Shropshire,00GG,Adult Services - Social Care Community Purchasing,Third Party Payments - Private Contractors,09/04/2021,11283466,"3,167.20",Revenue,1007827,Mount House Residential Home
Shropshire,00GG,Adult Services - Social Care Community Purchasing,Third Party Payments - Private Contractors,09/04/2021,11283470,"2,801.56",Revenue,1007827,Mount House Residential Home
Shropshire,00GG,Adult Services - Social Care Community Purchasing,Third Party Payments - Private Contractors,09/04/2021,11283529,"3,257.76",Revenue,1007827,Mount House Residential Home
Shropshire,00GG,Adult Services - Social Care Community Purchasing,Third Party Payments - Private Contractors,09/04/2021,11283565,"1,800.00",Revenue,1007827,Mount House Residential Home
Shropshire,00GG,Adult Services - Social Care Community Purchasing,Third Party Payments - Private Contractors,09/04/2021,11283580,"2,941.00",Revenue,1007827,Mount House Residential Home
Shropshire,00GG,Adult Services - Social Care Community Purchasing,Third Party Payments - Private Contractors,09/04/2021,11283589,"2,680.00",Revenue,1007827,Mount House Residential Home
Shropshire,00GG,Adult Services - Social Care Community Purchasing,Third Party Payments - Private Contractors,09/04/2021,11283690,"2,348.08",Revenue,1007827,Mount House Residential Home
Shropshire,00GG,Adult Services - Social Care Community Purchasing,Third Party Payments - Private Contractors,09/04/2021,11283743,"2,941.00",Revenue,1007827,Mount House Residential Home
Shropshire,00GG,Adult Services - Social Care Community Purchasing,Third Party Payments - Private Contractors,09/04/2021,11283988,"3,264.32",Revenue,1007827,Mount House Residential Home
Shropshire,00GG,Adult Services - Social Care Community Purchasing,Third Party Payments - Private Contractors,09/04/2021,11284023,"4,000.00",Revenue,1007827,Mount House Residential Home
Shropshire,00GG,Adult Services - Social Care Community Purchasing,Third Party Payments - Private Contractors,09/04/2021,11284074,"3,407.72",Revenue,1007827,Mount House Residential Home
Shropshire,00GG,Adult Services - Social Care Community Purchasing,Third Party Payments - Private Contractors,09/04/2021,11282831,"2,700.00",Revenue,1007828,Llysfield Nursing Home Ltd
Shropshire,00GG,Adult Services - Social Care Hospital Interface Purchasing,Third Party Payments - Private Contractors,09/04/2021,11283222,"1,452.86",Revenue,1007828,Llysfield Nursing Home Ltd
Shropshire,00GG,Adult Services - Social Care Community Purchasing,Third Party Payments - Private Contractors,09/04/2021,11283223,"2,808.86",Revenue,1007828,Llysfield Nursing Home Ltd
Shropshire,00GG,Adult Services - Social Care Community Purchasing,Third Party Payments - Private Contractors,09/04/2021,11283316,"2,080.00",Revenue,1007828,Llysfield Nursing Home Ltd
Shropshire,00GG,Adult Services - Social Care Community Purchasing,Third Party Payments - Private Contractors,09/04/2021,11283334,"2,799.88",Revenue,1007828,Llysfield Nursing Home Ltd
Shropshire,00GG,Adult Services - Social Care Community Purchasing,Third Party Payments - Private Contractors,09/04/2021,11283513,"1,913.68",Revenue,1007828,Llysfield Nursing Home Ltd
Shropshire,00GG,Adult Services - Social Care Community Purchasing,Third Party Payments - Private Contractors,09/04/2021,11283533,"2,200.00",Revenue,1007828,Llysfield Nursing Home Ltd
Shropshire,00GG,Adult Services - Social Care Community Purchasing,Third Party Payments - Private Contractors,09/04/2021,11283553,"2,680.00",Revenue,1007828,Llysfield Nursing Home Ltd
Shropshire,00GG,Adult Services - Social Care Community Purchasing,Third Party Payments - Private Contractors,09/04/2021,11283557,"2,680.00",Revenue,1007828,Llysfield Nursing Home Ltd
Shropshire,00GG,Adult Services - Social Care Community Purchasing,Third Party Payments - Private Contractors,09/04/2021,11283595,"2,680.00",Revenue,1007828,Llysfield Nursing Home Ltd
Shropshire,00GG,Adult Services - Social Care Community Purchasing,Third Party Payments - Private Contractors,09/04/2021,11283668,"2,476.80",Revenue,1007828,Llysfield Nursing Home Ltd
Shropshire,00GG,Adult Services - Social Care Community Purchasing,Third Party Payments - Private Contractors,09/04/2021,11283926,"3,637.14",Revenue,1007828,Llysfield Nursing Home Ltd
Shropshire,00GG,Adult Services - Social Care Community Purchasing,Third Party Payments - Private Contractors,09/04/2021,11283943,"9,858.57",Revenue,1007828,Llysfield Nursing Home Ltd
Shropshire,00GG,Adult Services - Social Care Community Purchasing,Third Party Payments - Private Contractors,09/04/2021,11284024,"2,416.36",Revenue,1007828,Llysfield Nursing Home Ltd
Shropshire,00GG,Adult Services - Social Care Community Purchasing,Third Party Payments - Private Contractors,09/04/2021,11284105,"1,913.68",Revenue,1007828,Llysfield Nursing Home Ltd
Shropshire,00GG,Adult Services - Social Care Community Purchasing,Transfer Payments - Adult Social Services Clients,09/04/2021,11280836,"1,286.40",Revenue,1007829,English Care Ltd - Lady Forester Nursing Home
Shropshire,00GG,Adult Services - Social Care Community Purchasing,Transfer Payments - Adult Social Services Clients,09/04/2021,11280837,"1,209.60",Revenue,1007829,English Care Ltd - Lady Forester Nursing Home
Shropshire,00GG,Adult Services - Social Care Community Purchasing,Transfer Payments - Adult Social Services Clients,09/04/2021,11282150,"2,227.20",Revenue,1007829,English Care Ltd - Lady Forester Nursing Home
Shropshire,00GG,Adult Services - Social Care Community Purchasing,Transfer Payments - Adult Social Services Clients,09/04/2021,11282151,"1,420.80",Revenue,1007829,English Care Ltd - Lady Forester Nursing Home
Shropshire,00GG,Adult Services - Social Care Community Purchasing,Third Party Payments - Private Contractors,09/04/2021,11282835,"3,277.88",Revenue,1007829,English Care Ltd - Lady Forester Nursing Home
Shropshire,00GG,Adult Services - Social Care Community Purchasing,Third Party Payments - Private Contractors,09/04/2021,11282897,"3,277.88",Revenue,1007829,English Care Ltd - Lady Forester Nursing Home
Shropshire,00GG,Adult Services - Social Care Community Purchasing,Third Party Payments - Private Contractors,09/04/2021,11283072,"3,277.88",Revenue,1007829,English Care Ltd - Lady Forester Nursing Home
Shropshire,00GG,Adult Services - Social Care Community Purchasing,Third Party Payments - Private Contractors,09/04/2021,11283430,"3,277.88",Revenue,1007829,English Care Ltd - Lady Forester Nursing Home
Shropshire,00GG,Adult Services - Social Care Community Purchasing,Third Party Payments - Private Contractors,09/04/2021,11283785,"3,280.00",Revenue,1007829,English Care Ltd - Lady Forester Nursing Home
Shropshire,00GG,Adult Services - Social Care Community Purchasing,Third Party Payments - Private Contractors,09/04/2021,11283942,"3,737.76",Revenue,1007829,English Care Ltd - Lady Forester Nursing Home
Shropshire,00GG,Adult Services - Social Care Community Purchasing,Third Party Payments - Private Contractors,09/04/2021,11283981,"3,277.88",Revenue,1007829,English Care Ltd - Lady Forester Nursing Home
Shropshire,00GG,Adult Services - Social Care Community Purchasing,Third Party Payments - Private Contractors,09/04/2021,11282563,"1,896.68",Revenue,1007830,Holy Cross Care Homes Ltd
Shropshire,00GG,Adult Services - Social Care Community Purchasing,Third Party Payments - Private Contractors,09/04/2021,11282767,"2,080.00",Revenue,1007830,Holy Cross Care Homes Ltd
Shropshire,00GG,Adult Services - Social Care Community Purchasing,Third Party Payments - Private Contractors,09/04/2021,11282793,"1,950.80",Revenue,1007830,Holy Cross Care Homes Ltd
Shropshire,00GG,Adult Services - Social Care Mental Health Purchasing,Third Party Payments - Private Contractors,09/04/2021,11282811,"1,800.00",Revenue,1007830,Holy Cross Care Homes Ltd
Shropshire,00GG,Adult Services - Social Care Community Purchasing,Third Party Payments - Private Contractors,09/04/2021,11282813,"1,800.00",Revenue,1007830,Holy Cross Care Homes Ltd
Shropshire,00GG,Adult Services - Social Care Community Purchasing,Third Party Payments - Private Contractors,09/04/2021,11282815,"2,155.72",Revenue,1007830,Holy Cross Care Homes Ltd
Shropshire,00GG,Adult Services - Social Care Community Purchasing,Third Party Payments - Private Contractors,09/04/2021,11282910,"1,800.00",Revenue,1007830,Holy Cross Care Homes Ltd
Shropshire,00GG,Adult Services - Social Care Community Purchasing,Third Party Payments - Private Contractors,09/04/2021,11282995,668.57,Revenue,1007830,Holy Cross Care Homes Ltd
Shropshire,00GG,Adult Services - Social Care Community Purchasing,Third Party Payments - Private Contractors,09/04/2021,11283079,"2,080.00",Revenue,1007830,Holy Cross Care Homes Ltd
Shropshire,00GG,Adult Services - Social Care Community Purchasing,Third Party Payments - Private Contractors,09/04/2021,11283093,"2,080.00",Revenue,1007830,Holy Cross Care Homes Ltd
Shropshire,00GG,Adult Services - Social Care Community Purchasing,Third Party Payments - Private Contractors,09/04/2021,11283097,"4,011.43",Revenue,1007830,Holy Cross Care Homes Ltd
Shropshire,00GG,Adult Services - Social Care Community Purchasing,Third Party Payments - Private Contractors,09/04/2021,11283158,"2,080.00",Revenue,1007830,Holy Cross Care Homes Ltd
Shropshire,00GG,Adult Services - Social Care Hospital Interface Purchasing,Third Party Payments - Private Contractors,09/04/2021,11283231,965.72,Revenue,1007830,Holy Cross Care Homes Ltd
Shropshire,00GG,Adult Services - Social Care Community Purchasing,Third Party Payments - Private Contractors,09/04/2021,11283380,"1,800.00",Revenue,1007830,Holy Cross Care Homes Ltd
Shropshire,00GG,Adult Services - Social Care Community Purchasing,Third Party Payments - Private Contractors,09/04/2021,11283601,"1,938.00",Revenue,1007830,Holy Cross Care Homes Ltd
Shropshire,00GG,Adult Services - Social Care Community Purchasing,Third Party Payments - Private Contractors,09/04/2021,11283643,"1,938.00",Revenue,1007830,Holy Cross Care Homes Ltd
Shropshire,00GG,Adult Services - Social Care Community Purchasing,Third Party Payments - Private Contractors,09/04/2021,11283753,"1,870.08",Revenue,1007830,Holy Cross Care Homes Ltd
Shropshire,00GG,Adult Services - Social Care Community Purchasing,Third Party Payments - Private Contractors,09/04/2021,11283832,"1,920.00",Revenue,1007830,Holy Cross Care Homes Ltd
Shropshire,00GG,Adult Services - Social Care Community Purchasing,Third Party Payments - Private Contractors,09/04/2021,11283933,"2,080.00",Revenue,1007830,Holy Cross Care Homes Ltd
Shropshire,00GG,Adult Services - Social Care Community Purchasing,Third Party Payments - Private Contractors,09/04/2021,11283941,"4,457.14",Revenue,1007830,Holy Cross Care Homes Ltd
Shropshire,00GG,Adult Services - Social Care Community Purchasing,Third Party Payments - Private Contractors,09/04/2021,11284087,"2,057.72",Revenue,1007830,Holy Cross Care Homes Ltd
Shropshire,00GG,Adult Services - Social Care Mental Health Purchasing,Third Party Payments - Private Contractors,09/04/2021,11282774,"1,457.15",Revenue,1007832,Holy Cross Care Home Ltd
Shropshire,00GG,Adult Services - Social Care Community Purchasing,Third Party Payments - Private Contractors,09/04/2021,11282795,"3,400.00",Revenue,1007832,Holy Cross Care Home Ltd
Shropshire,00GG,Adult Services - Social Care Community Purchasing,Third Party Payments - Private Contractors,09/04/2021,11282915,"3,400.00",Revenue,1007832,Holy Cross Care Home Ltd
Shropshire,00GG,Adult Services - Social Care Hospital Interface Purchasing,Third Party Payments - Private Contractors,09/04/2021,11282929,972.15,Revenue,1007832,Holy Cross Care Home Ltd
Shropshire,00GG,Adult Services - Social Care Hospital Interface Purchasing,Third Party Payments - Private Contractors,09/04/2021,11282930,971.43,Revenue,1007832,Holy Cross Care Home Ltd
Shropshire,00GG,Adult Services - Social Care Mental Health Purchasing,Third Party Payments - Private Contractors,09/04/2021,11283070,"3,400.00",Revenue,1007832,Holy Cross Care Home Ltd
Shropshire,00GG,Adult Services - Social Care Community Purchasing,Third Party Payments - Private Contractors,09/04/2021,11283088,"3,400.00",Revenue,1007832,Holy Cross Care Home Ltd
Shropshire,00GG,Adult Services - Social Care Community Purchasing,Third Party Payments - Private Contractors,09/04/2021,11283149,"3,400.00",Revenue,1007832,Holy Cross Care Home Ltd
Shropshire,00GG,Adult Services - Social Care Community Purchasing,Third Party Payments - Private Contractors,09/04/2021,11283176,"2,982.85",Revenue,1007832,Holy Cross Care Home Ltd
Shropshire,00GG,Adult Services - Social Care Community Purchasing,Third Party Payments - Private Contractors,09/04/2021,11283188,"3,000.00",Revenue,1007832,Holy Cross Care Home Ltd
Shropshire,00GG,Adult Services - Social Care Community Purchasing,Third Party Payments - Private Contractors,09/04/2021,11283219,"3,400.00",Revenue,1007832,Holy Cross Care Home Ltd
Shropshire,00GG,Adult Services - Social Care Community Purchasing,Third Party Payments - Private Contractors,09/04/2021,11283366,"3,400.00",Revenue,1007832,Holy Cross Care Home Ltd
Shropshire,00GG,Adult Services - Social Care Community Purchasing,Third Party Payments - Private Contractors,09/04/2021,11283367,"3,375.36",Revenue,1007832,Holy Cross Care Home Ltd
Shropshire,00GG,Adult Services - Social Care Community Purchasing,Third Party Payments - Private Contractors,09/04/2021,11283389,"2,855.88",Revenue,1007832,Holy Cross Care Home Ltd
Shropshire,00GG,Adult Services - Social Care Community Purchasing,Third Party Payments - Private Contractors,09/04/2021,11283518,"3,378.36",Revenue,1007832,Holy Cross Care Home Ltd
Shropshire,00GG,Adult Services - Social Care Hospital Interface Purchasing,Third Party Payments - Private Contractors,09/04/2021,11283520,850.00,Revenue,1007832,Holy Cross Care Home Ltd
Shropshire,00GG,Adult Services - Social Care Community Purchasing,Third Party Payments - Private Contractors,09/04/2021,11283534,"1,805.84",Revenue,1007832,Holy Cross Care Home Ltd
Shropshire,00GG,Adult Services - Social Care Community Purchasing,Third Party Payments - Private Contractors,09/04/2021,11283626,"2,623.24",Revenue,1007832,Holy Cross Care Home Ltd
Shropshire,00GG,Adult Services - Social Care Community Purchasing,Third Party Payments - Private Contractors,09/04/2021,11283650,"3,400.00",Revenue,1007832,Holy Cross Care Home Ltd
Shropshire,00GG,Adult Services - Social Care Community Purchasing,Third Party Payments - Private Contractors,09/04/2021,11283677,"3,400.00",Revenue,1007832,Holy Cross Care Home Ltd
Shropshire,00GG,Adult Services - Social Care Community Purchasing,Third Party Payments - Private Contractors,09/04/2021,11283680,"3,230.60",Revenue,1007832,Holy Cross Care Home Ltd
Shropshire,00GG,Adult Services - Social Care Community Purchasing,Third Party Payments - Private Contractors,09/04/2021,11283703,"3,378.36",Revenue,1007832,Holy Cross Care Home Ltd
Shropshire,00GG,Adult Services - Social Care Hospital Interface Purchasing,Third Party Payments - Private Contractors,09/04/2021,11283715,"1,821.43",Revenue,1007832,Holy Cross Care Home Ltd
Shropshire,00GG,Adult Services - Social Care Community Purchasing,Third Party Payments - Private Contractors,09/04/2021,11283716,"4,492.86",Revenue,1007832,Holy Cross Care Home Ltd
Shropshire,00GG,Adult Services - Social Care Community Purchasing,Third Party Payments - Private Contractors,09/04/2021,11283773,"4,153.60",Revenue,1007832,Holy Cross Care Home Ltd
Shropshire,00GG,Adult Services - Social Care Community Purchasing,Third Party Payments - Private Contractors,09/04/2021,11283776,"4,498.57",Revenue,1007832,Holy Cross Care Home Ltd
Shropshire,00GG,Adult Services - Social Care Community Purchasing,Third Party Payments - Private Contractors,09/04/2021,11283777,"1,208.57",Revenue,1007832,Holy Cross Care Home Ltd
Shropshire,00GG,Adult Services - Social Care Community Purchasing,Third Party Payments - Private Contractors,09/04/2021,11283799,"-2,064.29",Revenue,1007832,Holy Cross Care Home Ltd
Shropshire,00GG,Adult Services - Social Care Community Purchasing,Third Party Payments - Private Contractors,09/04/2021,11283808,"3,642.86",Revenue,1007832,Holy Cross Care Home Ltd
Shropshire,00GG,Adult Services - Social Care Mental Health Purchasing,Third Party Payments - Private Contractors,09/04/2021,11283812,"2,799.88",Revenue,1007832,Holy Cross Care Home Ltd
Shropshire,00GG,Adult Services - Social Care Community Purchasing,Third Party Payments - Private Contractors,09/04/2021,11283850,"3,400.00",Revenue,1007832,Holy Cross Care Home Ltd
Shropshire,00GG,Adult Services - Social Care Community Purchasing,Third Party Payments - Private Contractors,09/04/2021,11283874,"3,400.00",Revenue,1007832,Holy Cross Care Home Ltd
Shropshire,00GG,Adult Services - Social Care Community Purchasing,Third Party Payments - Private Contractors,09/04/2021,11283898,"2,956.12",Revenue,1007832,Holy Cross Care Home Ltd
Shropshire,00GG,Adult Services - Social Care Community Purchasing,Third Party Payments - Private Contractors,09/04/2021,11283907,"3,167.28",Revenue,1007832,Holy Cross Care Home Ltd
Shropshire,00GG,Adult Services - Social Care Community Purchasing,Third Party Payments - Private Contractors,09/04/2021,11283915,"3,167.24",Revenue,1007832,Holy Cross Care Home Ltd
Shropshire,00GG,Adult Services - Social Care Community Purchasing,Third Party Payments - Private Contractors,09/04/2021,11283971,"3,378.40",Revenue,1007832,Holy Cross Care Home Ltd
Shropshire,00GG,Adult Services - Social Care Community Purchasing,Third Party Payments - Private Contractors,09/04/2021,11282717,"4,738.00",Revenue,1007833,Hillcrest Manor Limited
Shropshire,00GG,Adult Services - Social Care Community Purchasing,Third Party Payments - Private Contractors,09/04/2021,11282896,"3,296.00",Revenue,1007833,Hillcrest Manor Limited
Shropshire,00GG,Adult Services - Social Care Community Purchasing,Third Party Payments - Private Contractors,09/04/2021,11282904,"3,200.00",Revenue,1007833,Hillcrest Manor Limited
Shropshire,00GG,Adult Services - Social Care Community Purchasing,Third Party Payments - Private Contractors,09/04/2021,11282918,"3,080.00",Revenue,1007833,Hillcrest Manor Limited
Shropshire,00GG,Adult Services - Social Care Community Purchasing,Third Party Payments - Private Contractors,09/04/2021,11283029,"3,000.00",Revenue,1007833,Hillcrest Manor Limited
Shropshire,00GG,Adult Services - Social Care Community Purchasing,Third Party Payments - Private Contractors,09/04/2021,11283045,"3,764.29",Revenue,1007833,Hillcrest Manor Limited
Shropshire,00GG,Adult Services - Social Care Community Purchasing,Third Party Payments - Private Contractors,09/04/2021,11283048,"3,400.00",Revenue,1007833,Hillcrest Manor Limited
Shropshire,00GG,Adult Services - Social Care Community Purchasing,Third Party Payments - Private Contractors,09/04/2021,11283052,"3,080.00",Revenue,1007833,Hillcrest Manor Limited
Shropshire,00GG,Adult Services - Social Care Community Purchasing,Third Party Payments - Private Contractors,09/04/2021,11283071,"3,000.00",Revenue,1007833,Hillcrest Manor Limited
Shropshire,00GG,Adult Services - Social Care Hospital Interface Purchasing,Third Party Payments - Private Contractors,09/04/2021,11283077,"3,400.00",Revenue,1007833,Hillcrest Manor Limited
Shropshire,00GG,Adult Services - Social Care Community Purchasing,Third Party Payments - Private Contractors,09/04/2021,11283107,"3,120.00",Revenue,1007833,Hillcrest Manor Limited
Shropshire,00GG,Adult Services - Social Care Community Purchasing,Third Party Payments - Private Contractors,09/04/2021,11283197,"3,080.00",Revenue,1007833,Hillcrest Manor Limited
Shropshire,00GG,Adult Services - Social Care Community Purchasing,Third Party Payments - Private Contractors,09/04/2021,11283332,"3,400.00",Revenue,1007833,Hillcrest Manor Limited
Shropshire,00GG,Adult Services - Social Care Community Purchasing,Third Party Payments - Private Contractors,09/04/2021,11283450,"3,600.00",Revenue,1007833,Hillcrest Manor Limited
Shropshire,00GG,Adult Services - Social Care Community Purchasing,Third Party Payments - Private Contractors,09/04/2021,11283536,"3,015.20",Revenue,1007833,Hillcrest Manor Limited
Shropshire,00GG,Adult Services - Social Care Community Purchasing,Third Party Payments - Private Contractors,09/04/2021,11283568,"1,821.43",Revenue,1007833,Hillcrest Manor Limited
Shropshire,00GG,Adult Services - Social Care Community Purchasing,Third Party Payments - Private Contractors,09/04/2021,11283608,"3,090.00",Revenue,1007833,Hillcrest Manor Limited
Shropshire,00GG,Adult Services - Social Care Hospital Interface Purchasing,Third Party Payments - Private Contractors,09/04/2021,11283648,"2,680.00",Revenue,1007833,Hillcrest Manor Limited
Shropshire,00GG,Adult Services - Social Care Community Purchasing,Third Party Payments - Private Contractors,09/04/2021,11283657,"4,885.71",Revenue,1007833,Hillcrest Manor Limited
Shropshire,00GG,Adult Services - Social Care Community Purchasing,Third Party Payments - Private Contractors,09/04/2021,11283670,"2,584.44",Revenue,1007833,Hillcrest Manor Limited
Shropshire,00GG,Adult Services - Social Care Community Purchasing,Third Party Payments - Private Contractors,09/04/2021,11283701,"3,502.00",Revenue,1007833,Hillcrest Manor Limited
Shropshire,00GG,Adult Services - Social Care Community Purchasing,Third Party Payments - Private Contractors,09/04/2021,11283791,"2,369.00",Revenue,1007833,Hillcrest Manor Limited
Shropshire,00GG,Adult Services - Social Care Community Purchasing,Third Party Payments - Private Contractors,09/04/2021,11283793,"2,638.28",Revenue,1007833,Hillcrest Manor Limited
Shropshire,00GG,Adult Services - Social Care Community Purchasing,Third Party Payments - Private Contractors,09/04/2021,11283794,"1,748.57",Revenue,1007833,Hillcrest Manor Limited
Shropshire,00GG,Adult Services - Social Care Community Purchasing,Third Party Payments - Private Contractors,09/04/2021,11283797,"3,167.24",Revenue,1007833,Hillcrest Manor Limited
Shropshire,00GG,Adult Services - Social Care Community Purchasing,Third Party Payments - Private Contractors,09/04/2021,11283819,"3,400.00",Revenue,1007833,Hillcrest Manor Limited
Shropshire,00GG,Adult Services - Social Care Community Purchasing,Third Party Payments - Private Contractors,09/04/2021,11283865,"3,400.00",Revenue,1007833,Hillcrest Manor Limited
Shropshire,00GG,Adult Services - Social Care Community Purchasing,Third Party Payments - Private Contractors,09/04/2021,11284011,"3,080.00",Revenue,1007833,Hillcrest Manor Limited
Shropshire,00GG,Adult Services - Social Care Community Purchasing,Third Party Payments - Private Contractors,09/04/2021,11284046,"3,120.00",Revenue,1007833,Hillcrest Manor Limited
Shropshire,00GG,Adult Services - Social Care Community Purchasing,Third Party Payments - Private Contractors,09/04/2021,11284048,"3,200.00",Revenue,1007833,Hillcrest Manor Limited
Shropshire,00GG,Adult Services - Social Care Community Purchasing,Third Party Payments - Private Contractors,09/04/2021,11283767,"15,600.00",Revenue,1007834,Ferns Residential Home
Shropshire,00GG,Adult Services - Social Care Community Purchasing,Third Party Payments - Private Contractors,09/04/2021,11282581,"1,935.80",Revenue,1007837,Springcare T/A Weston House
Shropshire,00GG,Adult Services - Social Care Community Purchasing,Third Party Payments - Private Contractors,09/04/2021,11282952,"2,240.00",Revenue,1007837,Springcare T/A Weston House
Shropshire,00GG,Adult Services - Social Care Community Purchasing,Third Party Payments - Private Contractors,09/04/2021,11283162,"2,800.00",Revenue,1007837,Springcare T/A Weston House
Shropshire,00GG,Adult Services - Social Care Community Purchasing,Third Party Payments - Private Contractors,09/04/2021,11283299,"1,800.00",Revenue,1007837,Springcare T/A Weston House
Shropshire,00GG,Adult Services - Social Care Community Purchasing,Third Party Payments - Private Contractors,09/04/2021,11283386,"2,121.80",Revenue,1007837,Springcare T/A Weston House
Shropshire,00GG,Adult Services - Social Care Community Purchasing,Third Party Payments - Private Contractors,09/04/2021,11283735,"2,240.00",Revenue,1007837,Springcare T/A Weston House
Shropshire,00GG,Adult Services - Social Care Community Purchasing,Third Party Payments - Private Contractors,09/04/2021,11283869,"2,800.00",Revenue,1007837,Springcare T/A Weston House
Shropshire,00GG,Adult Services - Social Care Community Purchasing,Third Party Payments - Private Contractors,09/04/2021,11283913,"2,800.00",Revenue,1007837,Springcare T/A Weston House
Shropshire,00GG,Adult Services - Social Care Community Purchasing,Third Party Payments - Private Contractors,09/04/2021,11282766,"2,080.00",Revenue,1007838,Cliffdale Ltd
Shropshire,00GG,Adult Services - Social Care Community Purchasing,Third Party Payments - Private Contractors,09/04/2021,11283047,"1,958.40",Revenue,1007838,Cliffdale Ltd
Shropshire,00GG,Adult Services - Social Care Community Purchasing,Third Party Payments - Private Contractors,09/04/2021,11283086,"2,154.29",Revenue,1007838,Cliffdale Ltd
Shropshire,00GG,Adult Services - Social Care Community Purchasing,Third Party Payments - Private Contractors,09/04/2021,11283314,"1,800.00",Revenue,1007838,Cliffdale Ltd
Shropshire,00GG,Adult Services - Social Care Community Purchasing,Third Party Payments - Private Contractors,09/04/2021,11283354,"1,976.84",Revenue,1007838,Cliffdale Ltd
Shropshire,00GG,Adult Services - Social Care Community Purchasing,Third Party Payments - Private Contractors,09/04/2021,11283360,"1,976.84",Revenue,1007838,Cliffdale Ltd
Shropshire,00GG,Adult Services - Social Care Community Purchasing,Third Party Payments - Private Contractors,09/04/2021,11283516,"1,958.40",Revenue,1007838,Cliffdale Ltd
Shropshire,00GG,Adult Services - Social Care Community Purchasing,Third Party Payments - Private Contractors,09/04/2021,11283549,"2,121.60",Revenue,1007838,Cliffdale Ltd
Shropshire,00GG,Adult Services - Social Care Community Purchasing,Third Party Payments - Private Contractors,09/04/2021,11283611,"2,017.12",Revenue,1007838,Cliffdale Ltd
Shropshire,00GG,Adult Services - Social Care Community Purchasing,Third Party Payments - Private Contractors,09/04/2021,11283613,"2,017.12",Revenue,1007838,Cliffdale Ltd
Shropshire,00GG,Adult Services - Social Care Community Purchasing,Third Party Payments - Private Contractors,09/04/2021,11283784,"1,958.40",Revenue,1007838,Cliffdale Ltd
Shropshire,00GG,Adult Services - Social Care Community Purchasing,Third Party Payments - Private Contractors,09/04/2021,11283871,"2,007.44",Revenue,1007838,Cliffdale Ltd
Shropshire,00GG,Adult Services - Social Care Community Purchasing,Third Party Payments - Private Contractors,09/04/2021,11283936,"1,958.40",Revenue,1007838,Cliffdale Ltd
Shropshire,00GG,Adult Services - Social Care Community Purchasing,Third Party Payments - Private Contractors,09/04/2021,11283937,"2,121.60",Revenue,1007838,Cliffdale Ltd
Shropshire,00GG,Adult Services - Social Care Community Purchasing,Third Party Payments - Private Contractors,09/04/2021,11282778,"2,410.20",Revenue,1007839,Lymehurst Residential Home
Shropshire,00GG,Adult Services - Social Care Community Purchasing,Third Party Payments - Private Contractors,09/04/2021,11282883,"2,280.00",Revenue,1007839,Lymehurst Residential Home
Shropshire,00GG,Adult Services - Social Care Community Purchasing,Third Party Payments - Private Contractors,09/04/2021,11283038,"2,162.40",Revenue,1007839,Lymehurst Residential Home
Shropshire,00GG,Adult Services - Social Care Hospital Interface Purchasing,Third Party Payments - Private Contractors,09/04/2021,11283096,"-1,628.57",Revenue,1007839,Lymehurst Residential Home
Shropshire,00GG,Adult Services - Social Care Community Purchasing,Third Party Payments - Private Contractors,09/04/2021,11283152,"2,154.29",Revenue,1007839,Lymehurst Residential Home
Shropshire,00GG,Adult Services - Social Care Hospital Interface Purchasing,Third Party Payments - Private Contractors,09/04/2021,11283167,"1,140.00",Revenue,1007839,Lymehurst Residential Home
Shropshire,00GG,Adult Services - Social Care Community Purchasing,Third Party Payments - Private Contractors,09/04/2021,11283206,"1,547.15",Revenue,1007839,Lymehurst Residential Home
Shropshire,00GG,Adult Services - Social Care Community Purchasing,Third Party Payments - Private Contractors,09/04/2021,11283441,"2,080.00",Revenue,1007839,Lymehurst Residential Home
Shropshire,00GG,Adult Services - Social Care Community Purchasing,Third Party Payments - Private Contractors,09/04/2021,11283512,"2,080.00",Revenue,1007839,Lymehurst Residential Home
Shropshire,00GG,Adult Services - Social Care Community Purchasing,Third Party Payments - Private Contractors,09/04/2021,11283669,-984.29,Revenue,1007839,Lymehurst Residential Home
Shropshire,00GG,Adult Services - Social Care Community Purchasing,Third Party Payments - Private Contractors,09/04/2021,11283811,"2,280.00",Revenue,1007839,Lymehurst Residential Home
Shropshire,00GG,Adult Services - Social Care Community Purchasing,Third Party Payments - Private Contractors,09/04/2021,11283910,"2,451.40",Revenue,1007839,Lymehurst Residential Home
Shropshire,00GG,Adult Services - Social Care Community Purchasing,Third Party Payments - Private Contractors,09/04/2021,11284061,"2,162.40",Revenue,1007839,Lymehurst Residential Home
Shropshire,00GG,Adult Services - Social Care Hospital Interface Purchasing,Third Party Payments - Private Contractors,09/04/2021,11284077,"2,377.14",Revenue,1007839,Lymehurst Residential Home
Shropshire,00GG,Adult Services - Social Care Community Purchasing,Third Party Payments - Private Contractors,09/04/2021,11284085,"2,280.00",Revenue,1007839,Lymehurst Residential Home
Shropshire,00GG,Adult Services - Social Care Community Purchasing,Third Party Payments - Private Contractors,09/04/2021,11284091,"2,040.00",Revenue,1007839,Lymehurst Residential Home
Shropshire,00GG,Adult Services - Social Care Community Purchasing,Third Party Payments - Private Contractors,09/04/2021,11282729,"4,044.32",Revenue,1007840,Arden Grange Residential Care Home
Shropshire,00GG,Adult Services - Social Care Hospital Interface Purchasing,Third Party Payments - Private Contractors,09/04/2021,11282770,"1,818.57",Revenue,1007840,Arden Grange Residential Care Home
Shropshire,00GG,Adult Services - Social Care Mental Health Purchasing,Third Party Payments - Private Contractors,09/04/2021,11282794,"2,006.56",Revenue,1007840,Arden Grange Residential Care Home
Shropshire,00GG,Adult Services - Social Care Community Purchasing,Third Party Payments - Private Contractors,09/04/2021,11282868,"2,660.92",Revenue,1007840,Arden Grange Residential Care Home
Shropshire,00GG,Adult Services - Social Care Community Purchasing,Third Party Payments - Private Contractors,09/04/2021,11282932,"15,345.00",Revenue,1007840,Arden Grange Residential Care Home
Shropshire,00GG,Adult Services - Social Care Community Purchasing,Third Party Payments - Private Contractors,09/04/2021,11283063,"2,680.00",Revenue,1007840,Arden Grange Residential Care Home
Shropshire,00GG,Adult Services - Social Care Hospital Interface Purchasing,Third Party Payments - Private Contractors,09/04/2021,11283074,"7,548.00",Revenue,1007840,Arden Grange Residential Care Home
Shropshire,00GG,Adult Services - Social Care Community Purchasing,Third Party Payments - Private Contractors,09/04/2021,11283108,"2,780.00",Revenue,1007840,Arden Grange Residential Care Home
Shropshire,00GG,Adult Services - Social Care Community Purchasing,Third Party Payments - Private Contractors,09/04/2021,11283119,"2,880.00",Revenue,1007840,Arden Grange Residential Care Home
Shropshire,00GG,Adult Services - Social Care Community Purchasing,Third Party Payments - Private Contractors,09/04/2021,11283129,"3,732.86",Revenue,1007840,Arden Grange Residential Care Home
Shropshire,00GG,Adult Services - Social Care Hospital Interface Purchasing,Third Party Payments - Private Contractors,09/04/2021,11283148,"1,979.87",Revenue,1007840,Arden Grange Residential Care Home
Shropshire,00GG,Adult Services - Social Care Community Purchasing,Third Party Payments - Private Contractors,09/04/2021,11283213,"1,542.86",Revenue,1007840,Arden Grange Residential Care Home
Shropshire,00GG,Adult Services - Social Care Hospital Interface Purchasing,Third Party Payments - Private Contractors,09/04/2021,11283235,"1,645.71",Revenue,1007840,Arden Grange Residential Care Home
Shropshire,00GG,Adult Services - Social Care Community Purchasing,Third Party Payments - Private Contractors,09/04/2021,11283368,"2,804.32",Revenue,1007840,Arden Grange Residential Care Home
Shropshire,00GG,Adult Services - Social Care Community Purchasing,Third Party Payments - Private Contractors,09/04/2021,11283417,"-1,148.57",Revenue,1007840,Arden Grange Residential Care Home
Shropshire,00GG,Adult Services - Social Care Community Purchasing,Third Party Payments - Private Contractors,09/04/2021,11283693,"2,723.64",Revenue,1007840,Arden Grange Residential Care Home
Shropshire,00GG,Adult Services - Social Care Community Purchasing,Third Party Payments - Private Contractors,09/04/2021,11283699,"2,223.00",Revenue,1007840,Arden Grange Residential Care Home
Shropshire,00GG,Adult Services - Social Care Community Purchasing,Third Party Payments - Private Contractors,09/04/2021,11283760,"3,000.00",Revenue,1007840,Arden Grange Residential Care Home
Shropshire,00GG,Adult Services - Social Care Community Purchasing,Third Party Payments - Private Contractors,09/04/2021,11283800,"2,680.00",Revenue,1007840,Arden Grange Residential Care Home
Shropshire,00GG,Adult Services - Social Care Community Purchasing,Third Party Payments - Private Contractors,09/04/2021,11283911,"2,680.00",Revenue,1007840,Arden Grange Residential Care Home
Shropshire,00GG,Adult Services - Social Care Hospital Interface Purchasing,Third Party Payments - Private Contractors,09/04/2021,11283964,"1,435.72",Revenue,1007840,Arden Grange Residential Care Home
Shropshire,00GG,Adult Services - Social Care Hospital Interface Purchasing,Third Party Payments - Private Contractors,09/04/2021,11283983,662.24,Revenue,1007840,Arden Grange Residential Care Home
Shropshire,00GG,Adult Services - Social Care Hospital Interface Purchasing,Third Party Payments - Private Contractors,09/04/2021,11283984,"2,737.76",Revenue,1007840,Arden Grange Residential Care Home
Shropshire,00GG,Adult Services - Social Care Community Purchasing,Third Party Payments - Private Contractors,09/04/2021,11283083,"4,560.00",Revenue,1007841,St Philips Care Caledonia Ltd
Shropshire,00GG,Adult Services - Social Care Community Purchasing,Third Party Payments - Private Contractors,09/04/2021,11283218,"6,388.58",Revenue,1007841,St Philips Care Caledonia Ltd
Shropshire,00GG,Adult Services - Social Care Community Purchasing,Third Party Payments - Private Contractors,09/04/2021,11283502,"4,400.00",Revenue,1007841,St Philips Care Caledonia Ltd
Shropshire,00GG,Adult Services - Social Care Community Purchasing,Third Party Payments - Private Contractors,09/04/2021,11283562,"3,600.00",Revenue,1007841,St Philips Care Caledonia Ltd
Shropshire,00GG,Adult Services - Social Care Community Purchasing,Third Party Payments - Private Contractors,09/04/2021,11283579,"4,560.00",Revenue,1007841,St Philips Care Caledonia Ltd
Shropshire,00GG,Adult Services - Social Care Community Purchasing,Third Party Payments - Private Contractors,09/04/2021,11283628,"4,488.00",Revenue,1007841,St Philips Care Caledonia Ltd
Shropshire,00GG,Adult Services - Social Care Community Purchasing,Third Party Payments - Private Contractors,09/04/2021,11283685,"3,600.00",Revenue,1007841,St Philips Care Caledonia Ltd
Shropshire,00GG,Adult Services - Social Care Community Purchasing,Third Party Payments - Private Contractors,09/04/2021,11283754,"4,151.20",Revenue,1007841,St Philips Care Caledonia Ltd
Shropshire,00GG,Adult Services - Social Care Community Purchasing,Third Party Payments - Private Contractors,09/04/2021,11283918,"3,600.00",Revenue,1007841,St Philips Care Caledonia Ltd
Shropshire,00GG,Adult Services - Social Care Community Purchasing,Third Party Payments - Private Contractors,09/04/2021,11284001,"4,722.86",Revenue,1007841,St Philips Care Caledonia Ltd
Shropshire,00GG,Adult Services - Social Care Community Purchasing,Third Party Payments - Private Contractors,09/04/2021,11283087,"3,040.00",Revenue,1007843,Hinstock Manor Residential Home Ltd
Shropshire,00GG,Adult Services - Social Care Community Purchasing,Third Party Payments - Private Contractors,09/04/2021,11283405,"1,871.60",Revenue,1007843,Hinstock Manor Residential Home Ltd
Shropshire,00GG,Adult Services - Social Care Community Purchasing,Third Party Payments - Private Contractors,09/04/2021,11283583,"2,498.32",Revenue,1007843,Hinstock Manor Residential Home Ltd
Shropshire,00GG,Adult Services - Social Care Community Purchasing,Third Party Payments - Private Contractors,09/04/2021,11283645,"2,855.16",Revenue,1007843,Hinstock Manor Residential Home Ltd
Shropshire,00GG,Adult Services - Social Care Community Purchasing,Third Party Payments - Private Contractors,09/04/2021,11283733,"2,616.20",Revenue,1007843,Hinstock Manor Residential Home Ltd
Shropshire,00GG,Adult Services - Social Care Community Purchasing,Third Party Payments - Private Contractors,09/04/2021,11282482,"5,100.01",Revenue,1007844,Danesford Grange Care Home
Shropshire,00GG,Adult Services - Social Care Community Purchasing,Third Party Payments - Private Contractors,09/04/2021,11282782,"4,037.56",Revenue,1007844,Danesford Grange Care Home
Shropshire,00GG,Adult Services - Social Care Community Purchasing,Third Party Payments - Private Contractors,09/04/2021,11282837,"3,640.00",Revenue,1007844,Danesford Grange Care Home
Shropshire,00GG,Adult Services - Social Care Community Purchasing,Third Party Payments - Private Contractors,09/04/2021,11283031,"3,460.80",Revenue,1007844,Danesford Grange Care Home
Shropshire,00GG,Adult Services - Social Care Community Purchasing,Third Party Payments - Private Contractors,09/04/2021,11283032,"3,360.00",Revenue,1007844,Danesford Grange Care Home
Shropshire,00GG,Adult Services - Social Care Community Purchasing,Third Party Payments - Private Contractors,09/04/2021,11283180,"3,500.00",Revenue,1007844,Danesford Grange Care Home
Shropshire,00GG,Adult Services - Social Care Community Purchasing,Third Party Payments - Private Contractors,09/04/2021,11283312,"1,893.96",Revenue,1007844,Danesford Grange Care Home
Shropshire,00GG,Adult Services - Social Care Community Purchasing,Third Party Payments - Private Contractors,09/04/2021,11283313,"1,278.44",Revenue,1007844,Danesford Grange Care Home
Shropshire,00GG,Adult Services - Social Care Mental Health Purchasing,Third Party Payments - Private Contractors,09/04/2021,11283318,"2,953.28",Revenue,1007844,Danesford Grange Care Home
Shropshire,00GG,Adult Services - Social Care Community Purchasing,Third Party Payments - Private Contractors,09/04/2021,11283342,"2,680.00",Revenue,1007844,Danesford Grange Care Home
Shropshire,00GG,Adult Services - Social Care Community Purchasing,Third Party Payments - Private Contractors,09/04/2021,11283343,820.00,Revenue,1007844,Danesford Grange Care Home
Shropshire,00GG,Adult Services - Social Care Community Purchasing,Third Party Payments - Private Contractors,09/04/2021,11283415,"3,460.76",Revenue,1007844,Danesford Grange Care Home
Shropshire,00GG,Adult Services - Social Care Community Purchasing,Third Party Payments - Private Contractors,09/04/2021,11283418,"3,360.00",Revenue,1007844,Danesford Grange Care Home
Shropshire,00GG,Adult Services - Social Care Community Purchasing,Third Party Payments - Private Contractors,09/04/2021,11283456,"4,140.00",Revenue,1007844,Danesford Grange Care Home
Shropshire,00GG,Adult Services - Social Care Community Purchasing,Third Party Payments - Private Contractors,09/04/2021,11283625,"3,360.00",Revenue,1007844,Danesford Grange Care Home
Shropshire,00GG,Adult Services - Social Care Community Purchasing,Third Party Payments - Private Contractors,09/04/2021,11283631,"2,880.00",Revenue,1007844,Danesford Grange Care Home
Shropshire,00GG,Adult Services - Social Care Community Purchasing,Third Party Payments - Private Contractors,09/04/2021,11283632,620.00,Revenue,1007844,Danesford Grange Care Home
Shropshire,00GG,Adult Services - Social Care Community Purchasing,Third Party Payments - Private Contractors,09/04/2021,11283778,"2,800.00",Revenue,1007844,Danesford Grange Care Home
Shropshire,00GG,Adult Services - Social Care Community Purchasing,Third Party Payments - Private Contractors,09/04/2021,11283789,"7,150.00",Revenue,1007844,Danesford Grange Care Home
Shropshire,00GG,Adult Services - Social Care Community Purchasing,Third Party Payments - Private Contractors,09/04/2021,11283848,"3,028.16",Revenue,1007844,Danesford Grange Care Home
Shropshire,00GG,Adult Services - Social Care Community Purchasing,Third Party Payments - Private Contractors,09/04/2021,11283947,"3,749.16",Revenue,1007844,Danesford Grange Care Home
Shropshire,00GG,Adult Services - Social Care Community Purchasing,Third Party Payments - Private Contractors,09/04/2021,11284008,"3,400.00",Revenue,1007844,Danesford Grange Care Home
Shropshire,00GG,Adult Services - Social Care Community Purchasing,Third Party Payments - Private Contractors,09/04/2021,11284009,600.00,Revenue,1007844,Danesford Grange Care Home
Shropshire,00GG,Adult Services - Social Care Community Purchasing,Third Party Payments - Private Contractors,09/04/2021,11282551,"2,074.88",Revenue,1007845,Sure Care (Uk) Ltd
Shropshire,00GG,Adult Services - Social Care Community Purchasing,Third Party Payments - Private Contractors,09/04/2021,11282689,"2,487.16",Revenue,1007845,Sure Care (Uk) Ltd
Shropshire,00GG,Adult Services - Social Care Community Purchasing,Third Party Payments - Private Contractors,09/04/2021,11282692,"2,035.80",Revenue,1007845,Sure Care (Uk) Ltd
Shropshire,00GG,Adult Services - Social Care Community Purchasing,Third Party Payments - Private Contractors,09/04/2021,11282829,"2,680.00",Revenue,1007845,Sure Care (Uk) Ltd
Shropshire,00GG,Adult Services - Social Care Community Purchasing,Third Party Payments - Private Contractors,09/04/2021,11282876,"2,180.48",Revenue,1007845,Sure Care (Uk) Ltd
Shropshire,00GG,Adult Services - Social Care Community Purchasing,Third Party Payments - Private Contractors,09/04/2021,11282961,"2,584.44",Revenue,1007845,Sure Care (Uk) Ltd
Shropshire,00GG,Adult Services - Social Care Community Purchasing,Third Party Payments - Private Contractors,09/04/2021,11283020,"2,680.00",Revenue,1007845,Sure Care (Uk) Ltd
Shropshire,00GG,Adult Services - Social Care Community Purchasing,Third Party Payments - Private Contractors,09/04/2021,11283033,"2,680.00",Revenue,1007845,Sure Care (Uk) Ltd
Shropshire,00GG,Adult Services - Social Care Community Purchasing,Third Party Payments - Private Contractors,09/04/2021,11283319,"2,472.00",Revenue,1007845,Sure Care (Uk) Ltd
Shropshire,00GG,Adult Services - Social Care Community Purchasing,Third Party Payments - Private Contractors,09/04/2021,11283363,"1,893.96",Revenue,1007845,Sure Care (Uk) Ltd
Shropshire,00GG,Adult Services - Social Care Community Purchasing,Third Party Payments - Private Contractors,09/04/2021,11283375,"2,111.56",Revenue,1007845,Sure Care (Uk) Ltd
Shropshire,00GG,Adult Services - Social Care Community Purchasing,Third Party Payments - Private Contractors,09/04/2021,11283384,"2,488.57",Revenue,1007845,Sure Care (Uk) Ltd
Shropshire,00GG,Adult Services - Social Care Community Purchasing,Third Party Payments - Private Contractors,09/04/2021,11283660,"2,131.96",Revenue,1007845,Sure Care (Uk) Ltd
Shropshire,00GG,Adult Services - Social Care Community Purchasing,Third Party Payments - Private Contractors,09/04/2021,11283717,"2,680.00",Revenue,1007845,Sure Care (Uk) Ltd
Shropshire,00GG,Adult Services - Social Care Hospital Interface Purchasing,Third Party Payments - Private Contractors,09/04/2021,11283827,"2,010.00",Revenue,1007845,Sure Care (Uk) Ltd
Shropshire,00GG,Adult Services - Social Care Community Purchasing,Third Party Payments - Private Contractors,09/04/2021,11283828,"2,680.00",Revenue,1007845,Sure Care (Uk) Ltd
Shropshire,00GG,Adult Services - Social Care Community Purchasing,Third Party Payments - Private Contractors,09/04/2021,11283863,"2,132.00",Revenue,1007845,Sure Care (Uk) Ltd
Shropshire,00GG,Adult Services - Social Care Community Purchasing,Third Party Payments - Private Contractors,09/04/2021,11282894,"3,501.43",Revenue,1007846,Landona House Ltd
Shropshire,00GG,Adult Services - Social Care Community Purchasing,Third Party Payments - Private Contractors,09/04/2021,11283098,"2,280.00",Revenue,1007846,Landona House Ltd
Shropshire,00GG,Adult Services - Social Care Community Purchasing,Third Party Payments - Private Contractors,09/04/2021,11283138,"2,080.00",Revenue,1007846,Landona House Ltd
Shropshire,00GG,Adult Services - Social Care Community Purchasing,Third Party Payments - Private Contractors,09/04/2021,11283151,"2,280.00",Revenue,1007846,Landona House Ltd
Shropshire,00GG,Adult Services - Social Care Community Purchasing,Third Party Payments - Private Contractors,09/04/2021,11283174,"2,080.00",Revenue,1007846,Landona House Ltd
Shropshire,00GG,Adult Services - Social Care Community Purchasing,Third Party Payments - Private Contractors,09/04/2021,11283175,"2,361.43",Revenue,1007846,Landona House Ltd
Shropshire,00GG,Adult Services - Social Care Community Purchasing,Third Party Payments - Private Contractors,09/04/2021,11283184,"3,664.29",Revenue,1007846,Landona House Ltd
Shropshire,00GG,Adult Services - Social Care Community Purchasing,Third Party Payments - Private Contractors,09/04/2021,11283198,"1,221.43",Revenue,1007846,Landona House Ltd
Shropshire,00GG,Adult Services - Social Care Community Purchasing,Third Party Payments - Private Contractors,09/04/2021,11283204,"1,114.29",Revenue,1007846,Landona House Ltd
Shropshire,00GG,Adult Services - Social Care Community Purchasing,Third Party Payments - Private Contractors,09/04/2021,11283217,"2,280.00",Revenue,1007846,Landona House Ltd
Shropshire,00GG,Adult Services - Social Care Hospital Interface Purchasing,Third Party Payments - Private Contractors,09/04/2021,11283227,"2,080.01",Revenue,1007846,Landona House Ltd
Shropshire,00GG,Adult Services - Social Care Hospital Interface Purchasing,Third Party Payments - Private Contractors,09/04/2021,11283232,"1,140.01",Revenue,1007846,Landona House Ltd
Shropshire,00GG,Adult Services - Social Care Mental Health Purchasing,Third Party Payments - Private Contractors,09/04/2021,11283427,"2,480.00",Revenue,1007846,Landona House Ltd
Shropshire,00GG,Adult Services - Social Care Community Purchasing,Third Party Payments - Private Contractors,09/04/2021,11283437,"2,280.00",Revenue,1007846,Landona House Ltd
Shropshire,00GG,Adult Services - Social Care Community Purchasing,Third Party Payments - Private Contractors,09/04/2021,11283451,"2,258.40",Revenue,1007846,Landona House Ltd
Shropshire,00GG,Adult Services - Social Care Community Purchasing,Third Party Payments - Private Contractors,09/04/2021,11283476,"2,280.00",Revenue,1007846,Landona House Ltd
Shropshire,00GG,Adult Services - Social Care Community Purchasing,Third Party Payments - Private Contractors,09/04/2021,11283531,"2,280.00",Revenue,1007846,Landona House Ltd
Shropshire,00GG,Adult Services - Social Care Community Purchasing,Third Party Payments - Private Contractors,09/04/2021,11283577,"2,280.00",Revenue,1007846,Landona House Ltd
Shropshire,00GG,Adult Services - Social Care Community Purchasing,Third Party Payments - Private Contractors,09/04/2021,11283603,"2,245.20",Revenue,1007846,Landona House Ltd
Shropshire,00GG,Adult Services - Social Care Community Purchasing,Third Party Payments - Private Contractors,09/04/2021,11283634,"1,221.43",Revenue,1007846,Landona House Ltd
Shropshire,00GG,Adult Services - Social Care Community Purchasing,Third Party Payments - Private Contractors,09/04/2021,11283696,"3,012.86",Revenue,1007846,Landona House Ltd
Shropshire,00GG,Adult Services - Social Care Community Purchasing,Third Party Payments - Private Contractors,09/04/2021,11283697,"1,221.43",Revenue,1007846,Landona House Ltd
Shropshire,00GG,Adult Services - Social Care Community Purchasing,Third Party Payments - Private Contractors,09/04/2021,11283711,"2,280.00",Revenue,1007846,Landona House Ltd
Shropshire,00GG,Adult Services - Social Care Community Purchasing,Third Party Payments - Private Contractors,09/04/2021,11283763,"2,236.60",Revenue,1007846,Landona House Ltd
Shropshire,00GG,Adult Services - Social Care Community Purchasing,Third Party Payments - Private Contractors,09/04/2021,11283834,"2,280.00",Revenue,1007846,Landona House Ltd
Shropshire,00GG,Adult Services - Social Care Community Purchasing,Third Party Payments - Private Contractors,09/04/2021,11283843,"2,080.00",Revenue,1007846,Landona House Ltd
Shropshire,00GG,Adult Services - Social Care Hospital Interface Purchasing,Third Party Payments - Private Contractors,09/04/2021,11283897,"2,442.86",Revenue,1007846,Landona House Ltd
Shropshire,00GG,Adult Services - Social Care Community Purchasing,Third Party Payments - Private Contractors,09/04/2021,11284025,"2,080.00",Revenue,1007846,Landona House Ltd
Shropshire,00GG,Adult Services - Social Care Community Purchasing,Third Party Payments - Private Contractors,09/04/2021,11284054,"2,245.12",Revenue,1007846,Landona House Ltd
Shropshire,00GG,Adult Services - Social Care Community Purchasing,Third Party Payments - Private Contractors,09/04/2021,11284094,"2,280.00",Revenue,1007846,Landona House Ltd
Shropshire,00GG,Adult Services - Social Care Community Purchasing,Third Party Payments - Private Contractors,09/04/2021,11282646,"2,325.60",Revenue,1007847,Brook House
Shropshire,00GG,Adult Services - Social Care Community Purchasing,Third Party Payments - Private Contractors,09/04/2021,11282955,"2,600.00",Revenue,1007847,Brook House
Shropshire,00GG,Adult Services - Social Care Community Purchasing,Third Party Payments - Private Contractors,09/04/2021,11283214,"2,700.00",Revenue,1007847,Brook House
Shropshire,00GG,Adult Services - Social Care Community Purchasing,Third Party Payments - Private Contractors,09/04/2021,11283783,"2,800.00",Revenue,1007847,Brook House
Shropshire,00GG,Adult Services - Social Care Community Purchasing,Third Party Payments - Private Contractors,09/04/2021,11284084,"2,700.00",Revenue,1007847,Brook House
Shropshire,00GG,Adult Services - Social Care Community Purchasing,Third Party Payments - Private Contractors,09/04/2021,11282844,"5,257.88",Revenue,1007849,Cartref Dyffryn Ceiriog Cheshire Home
Shropshire,00GG,Adult Services - Social Care Community Purchasing,Third Party Payments - Private Contractors,09/04/2021,11282574,"3,200.00",Revenue,1007850,Maesbrook Care Home Ltd
Shropshire,00GG,Adult Services - Social Care Community Purchasing,Third Party Payments - Private Contractors,09/04/2021,11282608,"2,680.00",Revenue,1007850,Maesbrook Care Home Ltd
Shropshire,00GG,Adult Services - Social Care Community Purchasing,Third Party Payments - Private Contractors,09/04/2021,11282644,"1,913.68",Revenue,1007850,Maesbrook Care Home Ltd
Shropshire,00GG,Adult Services - Social Care Community Purchasing,Third Party Payments - Private Contractors,09/04/2021,11282679,"2,800.00",Revenue,1007850,Maesbrook Care Home Ltd
Shropshire,00GG,Adult Services - Social Care Community Purchasing,Third Party Payments - Private Contractors,09/04/2021,11282789,"2,993.48",Revenue,1007850,Maesbrook Care Home Ltd
Shropshire,00GG,Adult Services - Social Care Community Purchasing,Third Party Payments - Private Contractors,09/04/2021,11282916,"5,300.00",Revenue,1007850,Maesbrook Care Home Ltd
Shropshire,00GG,Adult Services - Social Care Community Purchasing,Third Party Payments - Private Contractors,09/04/2021,11282959,"2,588.48",Revenue,1007850,Maesbrook Care Home Ltd
Shropshire,00GG,Adult Services - Social Care Community Purchasing,Third Party Payments - Private Contractors,09/04/2021,11282996,"2,487.12",Revenue,1007850,Maesbrook Care Home Ltd
Shropshire,00GG,Adult Services - Social Care Community Purchasing,Third Party Payments - Private Contractors,09/04/2021,11283066,"2,384.48",Revenue,1007850,Maesbrook Care Home Ltd
Shropshire,00GG,Adult Services - Social Care Community Purchasing,Third Party Payments - Private Contractors,09/04/2021,11283094,"2,588.52",Revenue,1007850,Maesbrook Care Home Ltd
Shropshire,00GG,Adult Services - Social Care Community Purchasing,Third Party Payments - Private Contractors,09/04/2021,11283095,"2,588.52",Revenue,1007850,Maesbrook Care Home Ltd
Shropshire,00GG,Adult Services - Social Care Community Purchasing,Third Party Payments - Private Contractors,09/04/2021,11283160,"2,680.00",Revenue,1007850,Maesbrook Care Home Ltd
Shropshire,00GG,Adult Services - Social Care Community Purchasing,Third Party Payments - Private Contractors,09/04/2021,11283172,"2,680.00",Revenue,1007850,Maesbrook Care Home Ltd
Shropshire,00GG,Adult Services - Social Care Community Purchasing,Third Party Payments - Private Contractors,09/04/2021,11283479,"2,681.20",Revenue,1007850,Maesbrook Care Home Ltd
Shropshire,00GG,Adult Services - Social Care Community Purchasing,Third Party Payments - Private Contractors,09/04/2021,11283525,"3,800.00",Revenue,1007850,Maesbrook Care Home Ltd
Shropshire,00GG,Adult Services - Social Care Community Purchasing,Third Party Payments - Private Contractors,09/04/2021,11283564,"4,020.00",Revenue,1007850,Maesbrook Care Home Ltd
Shropshire,00GG,Adult Services - Social Care Hospital Interface Purchasing,Third Party Payments - Private Contractors,09/04/2021,11283586,"5,011.57",Revenue,1007850,Maesbrook Care Home Ltd
Shropshire,00GG,Adult Services - Social Care Community Purchasing,Third Party Payments - Private Contractors,09/04/2021,11283587,"2,736.52",Revenue,1007850,Maesbrook Care Home Ltd
Shropshire,00GG,Adult Services - Social Care Community Purchasing,Third Party Payments - Private Contractors,09/04/2021,11283588,"2,830.56",Revenue,1007850,Maesbrook Care Home Ltd
Shropshire,00GG,Adult Services - Social Care Community Purchasing,Third Party Payments - Private Contractors,09/04/2021,11283684,"2,588.52",Revenue,1007850,Maesbrook Care Home Ltd
Shropshire,00GG,Adult Services - Social Care Community Purchasing,Third Party Payments - Private Contractors,09/04/2021,11283893,"2,680.00",Revenue,1007850,Maesbrook Care Home Ltd
Shropshire,00GG,Adult Services - Social Care Community Purchasing,Third Party Payments - Private Contractors,09/04/2021,11283906,"2,588.52",Revenue,1007850,Maesbrook Care Home Ltd
Shropshire,00GG,Adult Services - Social Care Community Purchasing,Third Party Payments - Private Contractors,09/04/2021,11283999,"2,850.36",Revenue,1007850,Maesbrook Care Home Ltd
Shropshire,00GG,Adult Services - Social Care Community Purchasing,Third Party Payments - Private Contractors,09/04/2021,11284053,-670.00,Revenue,1007850,Maesbrook Care Home Ltd
Shropshire,00GG,Adult Services - Social Care Community Purchasing,Third Party Payments - Private Contractors,09/04/2021,11282540,"2,600.00",Revenue,1007851,Springcare (Yockleton) Limited
Shropshire,00GG,Adult Services - Social Care Community Purchasing,Third Party Payments - Private Contractors,09/04/2021,11282565,"2,600.00",Revenue,1007851,Springcare (Yockleton) Limited
Shropshire,00GG,Adult Services - Social Care Community Purchasing,Third Party Payments - Private Contractors,09/04/2021,11282584,"2,609.88",Revenue,1007851,Springcare (Yockleton) Limited
Shropshire,00GG,Adult Services - Social Care Community Purchasing,Third Party Payments - Private Contractors,09/04/2021,11282736,"2,600.00",Revenue,1007851,Springcare (Yockleton) Limited
Shropshire,00GG,Adult Services - Social Care Community Purchasing,Third Party Payments - Private Contractors,09/04/2021,11283286,"6,644.57",Revenue,1007851,Springcare (Yockleton) Limited
Shropshire,00GG,Adult Services - Social Care Community Purchasing,Third Party Payments - Private Contractors,09/04/2021,11283336,"2,280.00",Revenue,1007851,Springcare (Yockleton) Limited
Shropshire,00GG,Adult Services - Social Care Community Purchasing,Third Party Payments - Private Contractors,09/04/2021,11283708,"2,080.00",Revenue,1007851,Springcare (Yockleton) Limited
Shropshire,00GG,Adult Services - Social Care Community Purchasing,Third Party Payments - Private Contractors,09/04/2021,11283719,"2,080.00",Revenue,1007851,Springcare (Yockleton) Limited
Shropshire,00GG,Adult Services - Social Care Community Purchasing,Third Party Payments - Private Contractors,09/04/2021,11283823,"2,100.00",Revenue,1007851,Springcare (Yockleton) Limited
Shropshire,00GG,Adult Services - Social Care Community Purchasing,Third Party Payments - Private Contractors,09/04/2021,11284064,"2,469.40",Revenue,1007851,Springcare (Yockleton) Limited
Shropshire,00GG,Adult Services - Social Care Mental Health Purchasing,Third Party Payments - Private Contractors,09/04/2021,11283140,"27,443.60",Revenue,1007852,Radbrook Nursing Home
Shropshire,00GG,Adult Services - Social Care Community Purchasing,Third Party Payments - Private Contractors,09/04/2021,11283181,"4,640.00",Revenue,1007852,Radbrook Nursing Home
Shropshire,00GG,Adult Services - Social Care Community Purchasing,Third Party Payments - Private Contractors,09/04/2021,11283182,"7,712.00",Revenue,1007852,Radbrook Nursing Home
Shropshire,00GG,Adult Services - Social Care Community Purchasing,Third Party Payments - Private Contractors,09/04/2021,11283293,"5,360.00",Revenue,1007852,Radbrook Nursing Home
Shropshire,00GG,Adult Services - Social Care Community Purchasing,Third Party Payments - Private Contractors,09/04/2021,11283327,"6,800.00",Revenue,1007852,Radbrook Nursing Home
Shropshire,00GG,Adult Services - Social Care Community Purchasing,Third Party Payments - Private Contractors,09/04/2021,11283435,"5,986.96",Revenue,1007852,Radbrook Nursing Home
Shropshire,00GG,Adult Services - Social Care Community Purchasing,Third Party Payments - Private Contractors,09/04/2021,11283443,"3,916.80",Revenue,1007852,Radbrook Nursing Home
Shropshire,00GG,Adult Services - Social Care Community Purchasing,Third Party Payments - Private Contractors,09/04/2021,11283444,"3,120.00",Revenue,1007852,Radbrook Nursing Home
Shropshire,00GG,Adult Services - Social Care Community Purchasing,Third Party Payments - Private Contractors,09/04/2021,11283556,"6,000.00",Revenue,1007852,Radbrook Nursing Home
Shropshire,00GG,Adult Services - Social Care Community Purchasing,Third Party Payments - Private Contractors,09/04/2021,11283813,"6,800.00",Revenue,1007852,Radbrook Nursing Home
Shropshire,00GG,Adult Services - Social Care Mental Health Purchasing,Third Party Payments - Private Contractors,09/04/2021,11284052,"6,800.00",Revenue,1007852,Radbrook Nursing Home
Shropshire,00GG,Adult Services - Social Care Community Purchasing,Third Party Payments - Private Contractors,09/04/2021,11282707,"8,575.71",Revenue,1007853,Woodland Residential Care Home Ltd
Shropshire,00GG,Adult Services - Social Care Community Purchasing,Third Party Payments - Private Contractors,09/04/2021,11282833,"2,449.40",Revenue,1007853,Woodland Residential Care Home Ltd
Shropshire,00GG,Adult Services - Social Care Community Purchasing,Third Party Payments - Private Contractors,09/04/2021,11282945,"2,600.00",Revenue,1007853,Woodland Residential Care Home Ltd
Shropshire,00GG,Adult Services - Social Care Community Purchasing,Third Party Payments - Private Contractors,09/04/2021,11283100,"2,600.00",Revenue,1007853,Woodland Residential Care Home Ltd
Shropshire,00GG,Adult Services - Social Care Community Purchasing,Third Party Payments - Private Contractors,09/04/2021,11283123,"2,780.00",Revenue,1007853,Woodland Residential Care Home Ltd
Shropshire,00GG,Adult Services - Social Care Community Purchasing,Third Party Payments - Private Contractors,09/04/2021,11283285,"2,780.00",Revenue,1007853,Woodland Residential Care Home Ltd
Shropshire,00GG,Adult Services - Social Care Community Purchasing,Third Party Payments - Private Contractors,09/04/2021,11283378,"2,780.00",Revenue,1007853,Woodland Residential Care Home Ltd
Shropshire,00GG,Adult Services - Social Care Community Purchasing,Third Party Payments - Private Contractors,09/04/2021,11283403,"2,780.00",Revenue,1007853,Woodland Residential Care Home Ltd
Shropshire,00GG,Adult Services - Social Care Mental Health Purchasing,Third Party Payments - Private Contractors,09/04/2021,11283429,"2,293.76",Revenue,1007853,Woodland Residential Care Home Ltd
Shropshire,00GG,Adult Services - Social Care Mental Health Purchasing,Third Party Payments - Private Contractors,09/04/2021,11283623,"2,780.00",Revenue,1007853,Woodland Residential Care Home Ltd
Shropshire,00GG,Adult Services - Social Care Community Purchasing,Third Party Payments - Private Contractors,09/04/2021,11283786,"2,780.00",Revenue,1007853,Woodland Residential Care Home Ltd
Shropshire,00GG,Adult Services - Social Care Community Purchasing,Third Party Payments - Private Contractors,09/04/2021,11283973,"2,451.56",Revenue,1007853,Woodland Residential Care Home Ltd
Shropshire,00GG,Adult Services - Social Care Mental Health Purchasing,Third Party Payments - Private Contractors,09/04/2021,11284107,"3,000.00",Revenue,1007853,Woodland Residential Care Home Ltd
Shropshire,00GG,Adult Services - Social Care Community Purchasing,Third Party Payments - Private Contractors,09/04/2021,11283616,"2,369.08",Revenue,1007854,Swan Hill House Nursing Home
Shropshire,00GG,Adult Services - Social Care Community Purchasing,Third Party Payments - Private Contractors,09/04/2021,11283691,"2,440.12",Revenue,1007854,Swan Hill House Nursing Home
Shropshire,00GG,Adult Services - Social Care Community Purchasing,Third Party Payments - Private Contractors,09/04/2021,11284026,"2,040.00",Revenue,1007854,Swan Hill House Nursing Home
Shropshire,00GG,Adult Services - Social Care Community Purchasing,Third Party Payments - Private Contractors,09/04/2021,11283090,"2,080.00",Revenue,1007856,Fidelity Care Services T/A Woofferton
Shropshire,00GG,Adult Services - Social Care Community Purchasing,Third Party Payments - Private Contractors,09/04/2021,11283854,"2,183.12",Revenue,1007856,Fidelity Care Services T/A Woofferton
Shropshire,00GG,Adult Services - Social Care Community Purchasing,Third Party Payments - Private Contractors,09/04/2021,11283966,"1,634.29",Revenue,1007856,Fidelity Care Services T/A Woofferton
Shropshire,00GG,Adult Services - Social Care Mental Health Purchasing,Third Party Payments - Private Contractors,09/04/2021,11284033,"2,080.00",Revenue,1007856,Fidelity Care Services T/A Woofferton
Shropshire,00GG,Adult Services - Social Care Mental Health Purchasing,Third Party Payments - Private Contractors,09/04/2021,11282634,"1,800.00",Revenue,1007857,Normanton
Shropshire,00GG,Adult Services - Social Care Community Purchasing,Third Party Payments - Private Contractors,09/04/2021,11283192,"2,080.00",Revenue,1007857,Normanton
Shropshire,00GG,Adult Services - Social Care Community Purchasing,Third Party Payments - Private Contractors,09/04/2021,11283193,720.00,Revenue,1007857,Normanton
Shropshire,00GG,Adult Services - Social Care Mental Health Purchasing,Third Party Payments - Private Contractors,09/04/2021,11283369,"2,369.08",Revenue,1007857,Normanton
Shropshire,00GG,Adult Services - Social Care Community Purchasing,Third Party Payments - Private Contractors,09/04/2021,11283471,"2,800.00",Revenue,1007857,Normanton
Shropshire,00GG,Adult Services - Social Care Community Purchasing,Third Party Payments - Private Contractors,09/04/2021,11283658,"2,600.00",Revenue,1007857,Normanton
Shropshire,00GG,Adult Services - Social Care Community Purchasing,Third Party Payments - Private Contractors,09/04/2021,11283817,"2,280.00",Revenue,1007857,Normanton
Shropshire,00GG,Adult Services - Social Care Community Purchasing,Third Party Payments - Private Contractors,09/04/2021,11282674,"2,651.56",Revenue,1007858,Hilton Brook House
Shropshire,00GG,Adult Services - Social Care Community Purchasing,Third Party Payments - Private Contractors,09/04/2021,11282946,"1,805.84",Revenue,1007858,Hilton Brook House
Shropshire,00GG,Adult Services - Social Care Community Purchasing,Third Party Payments - Private Contractors,09/04/2021,11283042,"2,678.00",Revenue,1007858,Hilton Brook House
Shropshire,00GG,Adult Services - Social Care Community Purchasing,Third Party Payments - Private Contractors,09/04/2021,11283050,"2,080.00",Revenue,1007858,Hilton Brook House
Shropshire,00GG,Adult Services - Social Care Community Purchasing,Third Party Payments - Private Contractors,09/04/2021,11283153,"2,280.00",Revenue,1007858,Hilton Brook House
Shropshire,00GG,Adult Services - Social Care Community Purchasing,Third Party Payments - Private Contractors,09/04/2021,11283207,"2,320.00",Revenue,1007858,Hilton Brook House
Shropshire,00GG,Adult Services - Social Care Community Purchasing,Third Party Payments - Private Contractors,09/04/2021,11283402,"2,850.00",Revenue,1007858,Hilton Brook House
Shropshire,00GG,Adult Services - Social Care Mental Health Purchasing,Third Party Payments - Private Contractors,09/04/2021,11283465,"2,600.00",Revenue,1007858,Hilton Brook House
Shropshire,00GG,Adult Services - Social Care Community Purchasing,Third Party Payments - Private Contractors,09/04/2021,11283484,"2,472.00",Revenue,1007858,Hilton Brook House
Shropshire,00GG,Adult Services - Social Care Community Purchasing,Third Party Payments - Private Contractors,09/04/2021,11283517,"2,080.00",Revenue,1007858,Hilton Brook House
Shropshire,00GG,Adult Services - Social Care Community Purchasing,Third Party Payments - Private Contractors,09/04/2021,11283731,"1,805.84",Revenue,1007858,Hilton Brook House
Shropshire,00GG,Adult Services - Social Care Community Purchasing,Third Party Payments - Private Contractors,09/04/2021,11283745,"1,805.84",Revenue,1007858,Hilton Brook House
Shropshire,00GG,Adult Services - Social Care Community Purchasing,Third Party Payments - Private Contractors,09/04/2021,11283855,"1,800.00",Revenue,1007858,Hilton Brook House
Shropshire,00GG,Adult Services - Social Care Community Purchasing,Third Party Payments - Private Contractors,09/04/2021,11283883,"2,080.00",Revenue,1007858,Hilton Brook House
Shropshire,00GG,Adult Services - Social Care Community Purchasing,Third Party Payments - Private Contractors,09/04/2021,11283929,"2,575.00",Revenue,1007858,Hilton Brook House
Shropshire,00GG,Adult Services - Social Care Community Purchasing,Third Party Payments - Private Contractors,09/04/2021,11283934,"2,307.20",Revenue,1007858,Hilton Brook House
Shropshire,00GG,Adult Services - Social Care Community Purchasing,Third Party Payments - Private Contractors,09/04/2021,11283952,"-4,267.14",Revenue,1007858,Hilton Brook House
Shropshire,00GG,Adult Services - Social Care Community Purchasing,Third Party Payments - Private Contractors,09/04/2021,11283994,"2,575.00",Revenue,1007858,Hilton Brook House
Shropshire,00GG,Adult Services - Social Care Community Purchasing,Third Party Payments - Private Contractors,09/04/2021,11283065,"2,280.00",Revenue,1007859,D Roche Ltd T/A Hartlands Rest Home
Shropshire,00GG,Adult Services - Social Care Community Purchasing,Third Party Payments - Private Contractors,09/04/2021,11283382,"2,340.00",Revenue,1007859,D Roche Ltd T/A Hartlands Rest Home
Shropshire,00GG,Adult Services - Social Care Hospital Interface Purchasing,Third Party Payments - Private Contractors,09/04/2021,11283397,"2,280.00",Revenue,1007859,D Roche Ltd T/A Hartlands Rest Home
Shropshire,00GG,Adult Services - Social Care Community Purchasing,Third Party Payments - Private Contractors,09/04/2021,11283515,"1,834.92",Revenue,1007859,D Roche Ltd T/A Hartlands Rest Home
Shropshire,00GG,Adult Services - Social Care Community Purchasing,Third Party Payments - Private Contractors,09/04/2021,11283664,"2,700.00",Revenue,1007859,D Roche Ltd T/A Hartlands Rest Home
Shropshire,00GG,Adult Services - Social Care Community Purchasing,Third Party Payments - Private Contractors,09/04/2021,11283758,"2,217.40",Revenue,1007859,D Roche Ltd T/A Hartlands Rest Home
Shropshire,00GG,Adult Services - Social Care Community Purchasing,Third Party Payments - Private Contractors,09/04/2021,11283822,"2,327.80",Revenue,1007859,D Roche Ltd T/A Hartlands Rest Home
Shropshire,00GG,Adult Services - Social Care Community Purchasing,Third Party Payments - Private Contractors,09/04/2021,11283824,"2,472.00",Revenue,1007859,D Roche Ltd T/A Hartlands Rest Home
Shropshire,00GG,Adult Services - Social Care Community Purchasing,Third Party Payments - Private Contractors,09/04/2021,11283916,"2,280.00",Revenue,1007859,D Roche Ltd T/A Hartlands Rest Home
Shropshire,00GG,Adult Services - Social Care Community Purchasing,Third Party Payments - Private Contractors,09/04/2021,11283940,"2,040.00",Revenue,1007859,D Roche Ltd T/A Hartlands Rest Home
Shropshire,00GG,Adult Services - Social Care Community Purchasing,Third Party Payments - Private Contractors,09/04/2021,11284075,"2,377.24",Revenue,1007859,D Roche Ltd T/A Hartlands Rest Home
Shropshire,00GG,Adult Services - Social Care Community Purchasing,Third Party Payments - Private Contractors,09/04/2021,11284108,"2,262.64",Revenue,1007859,D Roche Ltd T/A Hartlands Rest Home
Shropshire,00GG,Adult Services - Social Care Community Purchasing,Transfer Payments - Adult Social Services Clients,09/04/2021,11279577,"2,094.51",Revenue,1007860,Hengoed Park Ltd
Shropshire,00GG,Adult Services - Social Care Mental Health Purchasing,Transfer Payments - Adult Social Services Clients,09/04/2021,11281212,874.00,Revenue,1007860,Hengoed Park Ltd
Shropshire,00GG,Adult Services - Social Care Community Purchasing,Transfer Payments - Adult Social Services Clients,09/04/2021,11282458,"3,680.64",Revenue,1007860,Hengoed Park Ltd
Shropshire,00GG,Adult Services - Social Care Mental Health Purchasing,Third Party Payments - Private Contractors,09/04/2021,11282592,"6,787.78",Revenue,1007860,Hengoed Park Ltd
Shropshire,00GG,Adult Services - Social Care Community Purchasing,Third Party Payments - Private Contractors,09/04/2021,11282690,"2,800.00",Revenue,1007860,Hengoed Park Ltd
Shropshire,00GG,Adult Services - Social Care Community Purchasing,Third Party Payments - Private Contractors,09/04/2021,11282842,"2,440.00",Revenue,1007860,Hengoed Park Ltd
Shropshire,00GG,Adult Services - Social Care Mental Health Purchasing,Third Party Payments - Private Contractors,09/04/2021,11282855,"2,912.68",Revenue,1007860,Hengoed Park Ltd
Shropshire,00GG,Adult Services - Social Care Mental Health Purchasing,Third Party Payments - Private Contractors,09/04/2021,11282922,"2,440.00",Revenue,1007860,Hengoed Park Ltd
Shropshire,00GG,Adult Services - Social Care Community Purchasing,Third Party Payments - Private Contractors,09/04/2021,11282967,"3,002.28",Revenue,1007860,Hengoed Park Ltd
Shropshire,00GG,Adult Services - Social Care Mental Health Purchasing,Third Party Payments - Private Contractors,09/04/2021,11283370,"3,462.32",Revenue,1007860,Hengoed Park Ltd
Shropshire,00GG,Adult Services - Social Care Community Purchasing,Third Party Payments - Private Contractors,09/04/2021,11283376,"3,224.28",Revenue,1007860,Hengoed Park Ltd
Shropshire,00GG,Adult Services - Social Care Community Purchasing,Third Party Payments - Private Contractors,09/04/2021,11282524,"5,360.56",Revenue,1007861,Oldbury Grange Nursing Home
Shropshire,00GG,Adult Services - Social Care Community Purchasing,Third Party Payments - Private Contractors,09/04/2021,11282788,"-1,938.34",Revenue,1007861,Oldbury Grange Nursing Home
Shropshire,00GG,Adult Services - Social Care Community Purchasing,Third Party Payments - Private Contractors,09/04/2021,11283111,"9,602.80",Revenue,1007861,Oldbury Grange Nursing Home
Shropshire,00GG,Adult Services - Social Care Hospital Interface Purchasing,Third Party Payments - Private Contractors,09/04/2021,11283164,"9,966.80",Revenue,1007861,Oldbury Grange Nursing Home
Shropshire,00GG,Adult Services - Social Care Community Purchasing,Third Party Payments - Private Contractors,09/04/2021,11283283,"14,400.00",Revenue,1007861,Oldbury Grange Nursing Home
Shropshire,00GG,Adult Services - Social Care Community Purchasing,Third Party Payments - Private Contractors,09/04/2021,11283438,"5,641.52",Revenue,1007861,Oldbury Grange Nursing Home
Shropshire,00GG,Adult Services - Social Care Community Purchasing,Third Party Payments - Private Contractors,09/04/2021,11283492,"7,770.72",Revenue,1007861,Oldbury Grange Nursing Home
Shropshire,00GG,Adult Services - Social Care Community Purchasing,Third Party Payments - Private Contractors,09/04/2021,11283526,"5,927.04",Revenue,1007861,Oldbury Grange Nursing Home
Shropshire,00GG,Adult Services - Social Care Community Purchasing,Third Party Payments - Private Contractors,09/04/2021,11283527,"7,967.20",Revenue,1007861,Oldbury Grange Nursing Home
Shropshire,00GG,Adult Services - Social Care Community Purchasing,Third Party Payments - Private Contractors,09/04/2021,11283532,"4,942.32",Revenue,1007861,Oldbury Grange Nursing Home
Shropshire,00GG,Adult Services - Social Care Community Purchasing,Third Party Payments - Private Contractors,09/04/2021,11283537,"6,000.00",Revenue,1007861,Oldbury Grange Nursing Home
Shropshire,00GG,Adult Services - Social Care Community Purchasing,Third Party Payments - Private Contractors,09/04/2021,11283538,"3,537.04",Revenue,1007861,Oldbury Grange Nursing Home
Shropshire,00GG,Adult Services - Social Care Community Purchasing,Third Party Payments - Private Contractors,09/04/2021,11283662,"5,606.24",Revenue,1007861,Oldbury Grange Nursing Home
Shropshire,00GG,Adult Services - Social Care Community Purchasing,Third Party Payments - Private Contractors,09/04/2021,11283746,"8,403.36",Revenue,1007861,Oldbury Grange Nursing Home
Shropshire,00GG,Adult Services - Social Care Community Purchasing,Third Party Payments - Private Contractors,09/04/2021,11283864,"7,044.24",Revenue,1007861,Oldbury Grange Nursing Home
Shropshire,00GG,Adult Services - Social Care Community Purchasing,Third Party Payments - Private Contractors,09/04/2021,11283922,"9,019.76",Revenue,1007861,Oldbury Grange Nursing Home
Shropshire,00GG,Adult Services - Social Care Community Purchasing,Third Party Payments - Private Contractors,09/04/2021,11284097,"8,953.60",Revenue,1007861,Oldbury Grange Nursing Home
Shropshire,00GG,Adult Services - Social Care Mental Health Purchasing,Third Party Payments - Private Contractors,09/04/2021,11282479,"2,720.00",Revenue,1007862,The Villa Residential Home
Shropshire,00GG,Adult Services - Social Care Mental Health Purchasing,Third Party Payments - Private Contractors,09/04/2021,11282863,"2,880.00",Revenue,1007862,The Villa Residential Home
Shropshire,00GG,Adult Services - Social Care Mental Health Purchasing,Third Party Payments - Private Contractors,09/04/2021,11282931,"2,200.00",Revenue,1007862,The Villa Residential Home
Shropshire,00GG,Adult Services - Social Care Mental Health Purchasing,Third Party Payments - Private Contractors,09/04/2021,11283238,"2,800.00",Revenue,1007862,The Villa Residential Home
Shropshire,00GG,Adult Services - Social Care Mental Health Purchasing,Third Party Payments - Private Contractors,09/04/2021,11283317,"3,120.00",Revenue,1007862,The Villa Residential Home
Shropshire,00GG,Adult Services - Social Care Mental Health Purchasing,Third Party Payments - Private Contractors,09/04/2021,11283355,"2,367.36",Revenue,1007862,The Villa Residential Home
Shropshire,00GG,Adult Services - Social Care Mental Health Purchasing,Third Party Payments - Private Contractors,09/04/2021,11283356,"2,400.00",Revenue,1007862,The Villa Residential Home
Shropshire,00GG,Adult Services - Social Care Mental Health Purchasing,Third Party Payments - Private Contractors,09/04/2021,11283488,"2,880.00",Revenue,1007862,The Villa Residential Home
Shropshire,00GG,Adult Services - Social Care Community Purchasing,Third Party Payments - Private Contractors,09/04/2021,11283503,"2,880.00",Revenue,1007862,The Villa Residential Home
Shropshire,00GG,Adult Services - Social Care Mental Health Purchasing,Third Party Payments - Private Contractors,09/04/2021,11283594,"2,800.00",Revenue,1007862,The Villa Residential Home
Shropshire,00GG,Adult Services - Social Care Mental Health Purchasing,Third Party Payments - Private Contractors,09/04/2021,11284067,"2,800.00",Revenue,1007862,The Villa Residential Home
Shropshire,00GG,Adult Services - Social Care Community Purchasing,Third Party Payments - Private Contractors,09/04/2021,11280433,875.44,Revenue,1007863,Derwen Enterprise
Shropshire,00GG,Adult Services - Social Care Community Purchasing,Third Party Payments - Private Contractors,09/04/2021,11280437,"1,088.60",Revenue,1007863,Derwen Enterprise
Shropshire,00GG,Adult Services - Social Care Community Purchasing,Transfer Payments - Adult Social Services Clients,09/04/2021,11280438,835.36,Revenue,1007863,Derwen Enterprise
Shropshire,00GG,Adult Services - Social Care Community Purchasing,Third Party Payments - Private Contractors,09/04/2021,11280439,948.24,Revenue,1007863,Derwen Enterprise
Shropshire,00GG,Adult Services - Social Care Community Purchasing,Transfer Payments - Adult Social Services Clients,09/04/2021,11280440,526.64,Revenue,1007863,Derwen Enterprise
Shropshire,00GG,Adult Services - Social Care Community Purchasing,Third Party Payments - Private Contractors,09/04/2021,11280441,860.48,Revenue,1007863,Derwen Enterprise
Shropshire,00GG,Adult Services - Social Care Community Purchasing,Transfer Payments - Adult Social Services Clients,09/04/2021,11280443,563.52,Revenue,1007863,Derwen Enterprise
Shropshire,00GG,Adult Services - Social Care Community Purchasing,Third Party Payments - Private Contractors,09/04/2021,11280444,860.48,Revenue,1007863,Derwen Enterprise
Shropshire,00GG,Adult Services - Social Care Community Purchasing,Transfer Payments - Adult Social Services Clients,09/04/2021,11280445,544.80,Revenue,1007863,Derwen Enterprise
Shropshire,00GG,Adult Services - Social Care Community Purchasing,Third Party Payments - Private Contractors,09/04/2021,11280446,"1,023.40",Revenue,1007863,Derwen Enterprise
Shropshire,00GG,Adult Services - Social Care Community Purchasing,Third Party Payments - Private Contractors,09/04/2021,11280447,"1,000.84",Revenue,1007863,Derwen Enterprise
Shropshire,00GG,Adult Services - Social Care Community Purchasing,Transfer Payments - Adult Social Services Clients,09/04/2021,11280448,653.76,Revenue,1007863,Derwen Enterprise
Shropshire,00GG,Adult Services - Social Care Community Purchasing,Third Party Payments - Private Contractors,09/04/2021,11280473,769.72,Revenue,1007863,Derwen Enterprise
Shropshire,00GG,Adult Services - Social Care Community Purchasing,Transfer Payments - Adult Social Services Clients,09/04/2021,11281691,974.00,Revenue,1007863,Derwen Enterprise
Shropshire,00GG,Adult Services - Social Care Community Purchasing,Transfer Payments - Adult Social Services Clients,09/04/2021,11281692,"1,362.00",Revenue,1007863,Derwen Enterprise
Shropshire,00GG,Adult Services - Social Care Community Purchasing,Third Party Payments - Private Contractors,09/04/2021,11282824,"1,805.12",Revenue,1007863,Derwen Enterprise
Shropshire,00GG,Adult Services - Social Care Community Purchasing,Third Party Payments - Private Contractors,09/04/2021,11282980,"1,805.12",Revenue,1007863,Derwen Enterprise
Shropshire,00GG,Adult Services - Social Care Community Purchasing,Third Party Payments - Private Contractors,09/04/2021,11282984,"1,805.12",Revenue,1007863,Derwen Enterprise
Shropshire,00GG,Adult Services - Social Care Community Purchasing,Third Party Payments - Private Contractors,09/04/2021,11282988,"1,805.12",Revenue,1007863,Derwen Enterprise
Shropshire,00GG,Adult Services - Social Care Community Purchasing,Third Party Payments - Private Contractors,09/04/2021,11282990,"1,805.12",Revenue,1007863,Derwen Enterprise
Shropshire,00GG,Adult Services - Social Care Community Purchasing,Third Party Payments - Private Contractors,09/04/2021,11282999,"1,800.00",Revenue,1007863,Derwen Enterprise
Shropshire,00GG,Adult Services - Social Care Community Purchasing,Third Party Payments - Private Contractors,09/04/2021,11283009,"37,806.99",Revenue,1007863,Derwen Enterprise
Shropshire,00GG,Adult Services - Social Care Community Purchasing,Third Party Payments - Private Contractors,09/04/2021,11283300,"2,582.92",Revenue,1007863,Derwen Enterprise
Shropshire,00GG,Adult Services - Social Care Community Purchasing,Third Party Payments - Private Contractors,09/04/2021,11283732,"2,256.56",Revenue,1007863,Derwen Enterprise
Shropshire,00GG,Adult Services - Social Care Mental Health Purchasing,Third Party Payments - Private Contractors,09/04/2021,11282522,"1,805.84",Revenue,1007865,Jubliee Villa
Shropshire,00GG,Adult Services - Social Care Mental Health Purchasing,Third Party Payments - Private Contractors,09/04/2021,11282791,"1,873.68",Revenue,1007865,Jubliee Villa
Shropshire,00GG,Adult Services - Social Care Mental Health Purchasing,Third Party Payments - Private Contractors,09/04/2021,11282821,"2,280.00",Revenue,1007865,Jubliee Villa
Shropshire,00GG,Adult Services - Social Care Mental Health Purchasing,Third Party Payments - Private Contractors,09/04/2021,11282892,"2,280.00",Revenue,1007865,Jubliee Villa
Shropshire,00GG,Adult Services - Social Care Community Purchasing,Third Party Payments - Private Contractors,09/04/2021,11283046,"2,280.00",Revenue,1007865,Jubliee Villa
Shropshire,00GG,Adult Services - Social Care Community Purchasing,Third Party Payments - Private Contractors,09/04/2021,11283303,"1,871.76",Revenue,1007865,Jubliee Villa
Shropshire,00GG,Adult Services - Social Care Mental Health Purchasing,Third Party Payments - Private Contractors,09/04/2021,11283406,"2,280.00",Revenue,1007865,Jubliee Villa
Shropshire,00GG,Adult Services - Social Care Mental Health Purchasing,Third Party Payments - Private Contractors,09/04/2021,11283408,"1,876.52",Revenue,1007865,Jubliee Villa
Shropshire,00GG,Adult Services - Social Care Community Purchasing,Third Party Payments - Private Contractors,09/04/2021,11283409,"1,910.88",Revenue,1007865,Jubliee Villa
Shropshire,00GG,Adult Services - Social Care Community Purchasing,Third Party Payments - Private Contractors,09/04/2021,11283473,"1,805.84",Revenue,1007865,Jubliee Villa
Shropshire,00GG,Adult Services - Social Care Community Purchasing,Third Party Payments - Private Contractors,09/04/2021,11283802,"2,280.00",Revenue,1007865,Jubliee Villa
Shropshire,00GG,Adult Services - Social Care Community Purchasing,Third Party Payments - Private Contractors,09/04/2021,11284005,"2,280.00",Revenue,1007865,Jubliee Villa
Shropshire,00GG,Adult Services - Social Care Community Purchasing,Third Party Payments - Private Contractors,09/04/2021,11284015,"2,280.00",Revenue,1007865,Jubliee Villa
Shropshire,00GG,Adult Services - Social Care Mental Health Purchasing,Third Party Payments - Private Contractors,09/04/2021,11284086,"1,886.88",Revenue,1007865,Jubliee Villa
Shropshire,00GG,Adult Services - Social Care Mental Health Purchasing,Third Party Payments - Private Contractors,09/04/2021,11284102,"1,889.92",Revenue,1007865,Jubliee Villa
Shropshire,00GG,Adult Services - Social Care Community Purchasing,Third Party Payments - Private Contractors,09/04/2021,11283561,"2,680.00",Revenue,1007867,Cheswardine Hall
Shropshire,00GG,Adult Services - Social Care Community Purchasing,Third Party Payments - Private Contractors,09/04/2021,11283955,"2,680.00",Revenue,1007867,Cheswardine Hall
Shropshire,00GG,Adult Services - Social Care Community Purchasing,Third Party Payments - Private Contractors,09/04/2021,11284029,"3,048.80",Revenue,1007867,Cheswardine Hall
Shropshire,00GG,Adult Services - Social Care Community Purchasing,Third Party Payments - Private Contractors,09/04/2021,11284070,"3,400.00",Revenue,1007867,Cheswardine Hall
Shropshire,00GG,Adult Services - Social Care Community Purchasing,Third Party Payments - Private Contractors,09/04/2021,11282498,"2,882.12",Revenue,1007868,Care Ltd
Shropshire,00GG,Adult Services - Social Care Community Purchasing,Third Party Payments - Private Contractors,09/04/2021,11282596,"2,411.96",Revenue,1007868,Care Ltd
Shropshire,00GG,Adult Services - Social Care Community Purchasing,Third Party Payments - Private Contractors,09/04/2021,11282705,"2,364.32",Revenue,1007868,Care Ltd
Shropshire,00GG,Adult Services - Social Care Community Purchasing,Third Party Payments - Private Contractors,09/04/2021,11282754,"3,609.24",Revenue,1007868,Care Ltd
Shropshire,00GG,Adult Services - Social Care Community Purchasing,Third Party Payments - Private Contractors,09/04/2021,11283004,"3,144.00",Revenue,1007869,Barchester Healthcare
Shropshire,00GG,Adult Services - Social Care Community Purchasing,Third Party Payments - Private Contractors,09/04/2021,11283028,"2,897.76",Revenue,1007869,Barchester Healthcare
Shropshire,00GG,Adult Services - Social Care Community Purchasing,Third Party Payments - Private Contractors,09/04/2021,11283030,"2,982.20",Revenue,1007869,Barchester Healthcare
Shropshire,00GG,Adult Services - Social Care Community Purchasing,Third Party Payments - Private Contractors,09/04/2021,11283076,"3,144.32",Revenue,1007869,Barchester Healthcare
Shropshire,00GG,Adult Services - Social Care Community Purchasing,Third Party Payments - Private Contractors,09/04/2021,11283101,"3,144.32",Revenue,1007869,Barchester Healthcare
Shropshire,00GG,Adult Services - Social Care Community Purchasing,Third Party Payments - Private Contractors,09/04/2021,11283116,"2,897.76",Revenue,1007869,Barchester Healthcare
Shropshire,00GG,Adult Services - Social Care Hospital Interface Purchasing,Third Party Payments - Private Contractors,09/04/2021,11283159,"3,144.32",Revenue,1007869,Barchester Healthcare
Shropshire,00GG,Adult Services - Social Care Community Purchasing,Third Party Payments - Private Contractors,09/04/2021,11283166,"3,144.32",Revenue,1007869,Barchester Healthcare
Shropshire,00GG,Adult Services - Social Care Community Purchasing,Third Party Payments - Private Contractors,09/04/2021,11283183,"3,394.28",Revenue,1007869,Barchester Healthcare
Shropshire,00GG,Adult Services - Social Care Community Purchasing,Third Party Payments - Private Contractors,09/04/2021,11283185,"4,042.70",Revenue,1007869,Barchester Healthcare
Shropshire,00GG,Adult Services - Social Care Community Purchasing,Third Party Payments - Private Contractors,09/04/2021,11283346,"2,453.28",Revenue,1007869,Barchester Healthcare
Shropshire,00GG,Adult Services - Social Care Community Purchasing,Third Party Payments - Private Contractors,09/04/2021,11283362,"3,144.32",Revenue,1007869,Barchester Healthcare
Shropshire,00GG,Adult Services - Social Care Community Purchasing,Third Party Payments - Private Contractors,09/04/2021,11283396,"3,198.80",Revenue,1007869,Barchester Healthcare
Shropshire,00GG,Adult Services - Social Care Community Purchasing,Third Party Payments - Private Contractors,09/04/2021,11283404,"2,933.76",Revenue,1007869,Barchester Healthcare
Shropshire,00GG,Adult Services - Social Care Community Purchasing,Third Party Payments - Private Contractors,09/04/2021,11283442,"2,195.76",Revenue,1007869,Barchester Healthcare
Shropshire,00GG,Adult Services - Social Care Community Purchasing,Third Party Payments - Private Contractors,09/04/2021,11283449,"3,144.32",Revenue,1007869,Barchester Healthcare
Shropshire,00GG,Adult Services - Social Care Community Purchasing,Third Party Payments - Private Contractors,09/04/2021,11283483,"2,508.40",Revenue,1007869,Barchester Healthcare
Shropshire,00GG,Adult Services - Social Care Community Purchasing,Third Party Payments - Private Contractors,09/04/2021,11283505,"2,163.80",Revenue,1007869,Barchester Healthcare
Shropshire,00GG,Adult Services - Social Care Community Purchasing,Third Party Payments - Private Contractors,09/04/2021,11283592,"2,862.96",Revenue,1007869,Barchester Healthcare
Shropshire,00GG,Adult Services - Social Care Community Purchasing,Third Party Payments - Private Contractors,09/04/2021,11283600,"2,880.00",Revenue,1007869,Barchester Healthcare
Shropshire,00GG,Adult Services - Social Care Community Purchasing,Third Party Payments - Private Contractors,09/04/2021,11283614,"2,880.00",Revenue,1007869,Barchester Healthcare
Shropshire,00GG,Adult Services - Social Care Mental Health Purchasing,Third Party Payments - Private Contractors,09/04/2021,11283618,"2,470.68",Revenue,1007869,Barchester Healthcare
Shropshire,00GG,Adult Services - Social Care Community Purchasing,Third Party Payments - Private Contractors,09/04/2021,11283644,"3,610.48",Revenue,1007869,Barchester Healthcare
Shropshire,00GG,Adult Services - Social Care Community Purchasing,Third Party Payments - Private Contractors,09/04/2021,11283692,"-2,245.94",Revenue,1007869,Barchester Healthcare
Shropshire,00GG,Adult Services - Social Care Community Purchasing,Third Party Payments - Private Contractors,09/04/2021,11283698,"2,897.76",Revenue,1007869,Barchester Healthcare
Shropshire,00GG,Adult Services - Social Care Community Purchasing,Third Party Payments - Private Contractors,09/04/2021,11283739,"3,217.76",Revenue,1007869,Barchester Healthcare
Shropshire,00GG,Adult Services - Social Care Community Purchasing,Third Party Payments - Private Contractors,09/04/2021,11283787,"3,633.84",Revenue,1007869,Barchester Healthcare
Shropshire,00GG,Adult Services - Social Care Hospital Interface Purchasing,Third Party Payments - Private Contractors,09/04/2021,11283792,-673.78,Revenue,1007869,Barchester Healthcare
Shropshire,00GG,Adult Services - Social Care Community Purchasing,Third Party Payments - Private Contractors,09/04/2021,11283821,"2,855.52",Revenue,1007869,Barchester Healthcare
Shropshire,00GG,Adult Services - Social Care Community Purchasing,Third Party Payments - Private Contractors,09/04/2021,11283844,"2,982.20",Revenue,1007869,Barchester Healthcare
Shropshire,00GG,Adult Services - Social Care Community Purchasing,Third Party Payments - Private Contractors,09/04/2021,11283892,"2,982.20",Revenue,1007869,Barchester Healthcare
Shropshire,00GG,Adult Services - Social Care Community Purchasing,Third Party Payments - Private Contractors,09/04/2021,11283895,"3,593.51",Revenue,1007869,Barchester Healthcare
Shropshire,00GG,Adult Services - Social Care Community Purchasing,Third Party Payments - Private Contractors,09/04/2021,11283917,"2,897.76",Revenue,1007869,Barchester Healthcare
Shropshire,00GG,Adult Services - Social Care Community Purchasing,Third Party Payments - Private Contractors,09/04/2021,11283920,"3,069.92",Revenue,1007869,Barchester Healthcare
Shropshire,00GG,Adult Services - Social Care Community Purchasing,Third Party Payments - Private Contractors,09/04/2021,11283939,"4,417.76",Revenue,1007869,Barchester Healthcare
Shropshire,00GG,Adult Services - Social Care Community Purchasing,Third Party Payments - Private Contractors,09/04/2021,11283985,"3,144.32",Revenue,1007869,Barchester Healthcare
Shropshire,00GG,Adult Services - Social Care Community Purchasing,Third Party Payments - Private Contractors,09/04/2021,11284042,673.79,Revenue,1007869,Barchester Healthcare
Shropshire,00GG,Adult Services - Social Care Community Purchasing,Third Party Payments - Private Contractors,09/04/2021,11284049,"2,995.04",Revenue,1007869,Barchester Healthcare
Shropshire,00GG,Adult Services - Social Care Community Purchasing,Third Party Payments - Private Contractors,09/04/2021,11284059,"2,112.92",Revenue,1007869,Barchester Healthcare
Shropshire,00GG,Adult Services - Social Care Community Purchasing,Third Party Payments - Private Contractors,09/04/2021,11284060,"2,895.36",Revenue,1007869,Barchester Healthcare
Shropshire,00GG,Adult Services - Social Care Community Purchasing,Third Party Payments - Private Contractors,09/04/2021,11282810,"1,977.12",Revenue,1007871,St Philips Care Trinity Ltd
Shropshire,00GG,Adult Services - Social Care Community Purchasing,Third Party Payments - Private Contractors,09/04/2021,11283124,"2,080.00",Revenue,1007871,St Philips Care Trinity Ltd
Shropshire,00GG,Adult Services - Social Care Community Purchasing,Third Party Payments - Private Contractors,09/04/2021,11283125,440.00,Revenue,1007871,St Philips Care Trinity Ltd
Shropshire,00GG,Adult Services - Social Care Community Purchasing,Third Party Payments - Private Contractors,09/04/2021,11283339,"2,322.64",Revenue,1007871,St Philips Care Trinity Ltd
Shropshire,00GG,Adult Services - Social Care Community Purchasing,Third Party Payments - Private Contractors,09/04/2021,11283474,"2,554.40",Revenue,1007871,St Philips Care Trinity Ltd
Shropshire,00GG,Adult Services - Social Care Community Purchasing,Third Party Payments - Private Contractors,09/04/2021,11283508,"2,280.00",Revenue,1007871,St Philips Care Trinity Ltd
Shropshire,00GG,Adult Services - Social Care Community Purchasing,Third Party Payments - Private Contractors,09/04/2021,11283543,"2,520.00",Revenue,1007871,St Philips Care Trinity Ltd
Shropshire,00GG,Adult Services - Social Care Mental Health Purchasing,Third Party Payments - Private Contractors,09/04/2021,11283705,"1,977.08",Revenue,1007871,St Philips Care Trinity Ltd
Shropshire,00GG,Adult Services - Social Care Community Purchasing,Third Party Payments - Private Contractors,09/04/2021,11283725,"2,560.00",Revenue,1007871,St Philips Care Trinity Ltd
Shropshire,00GG,Adult Services - Social Care Community Purchasing,Third Party Payments - Private Contractors,09/04/2021,11283804,"2,369.08",Revenue,1007871,St Philips Care Trinity Ltd
Shropshire,00GG,Adult Services - Social Care Community Purchasing,Third Party Payments - Private Contractors,09/04/2021,11283969,"-1,080.00",Revenue,1007871,St Philips Care Trinity Ltd
Shropshire,00GG,Adult Services - Social Care Community Purchasing,Third Party Payments - Private Contractors,09/04/2021,11282814,"2,322.64",Revenue,1007872,Netherwood Care Home Ltd
Shropshire,00GG,Adult Services - Social Care Community Purchasing,Third Party Payments - Private Contractors,09/04/2021,11283006,"3,200.00",Revenue,1007872,Netherwood Care Home Ltd
Shropshire,00GG,Adult Services - Social Care Community Purchasing,Third Party Payments - Private Contractors,09/04/2021,11283057,"2,796.00",Revenue,1007872,Netherwood Care Home Ltd
Shropshire,00GG,Adult Services - Social Care Community Purchasing,Third Party Payments - Private Contractors,09/04/2021,11283120,"2,280.00",Revenue,1007872,Netherwood Care Home Ltd
Shropshire,00GG,Adult Services - Social Care Community Purchasing,Third Party Payments - Private Contractors,09/04/2021,11283121,"1,220.00",Revenue,1007872,Netherwood Care Home Ltd
Shropshire,00GG,Adult Services - Social Care Community Purchasing,Third Party Payments - Private Contractors,09/04/2021,11283187,"4,532.14",Revenue,1007872,Netherwood Care Home Ltd
Shropshire,00GG,Adult Services - Social Care Hospital Interface Purchasing,Third Party Payments - Private Contractors,09/04/2021,11283196,"4,114.29",Revenue,1007872,Netherwood Care Home Ltd
Shropshire,00GG,Adult Services - Social Care Community Purchasing,Third Party Payments - Private Contractors,09/04/2021,11283752,"2,266.00",Revenue,1007872,Netherwood Care Home Ltd
Shropshire,00GG,Adult Services - Social Care Community Purchasing,Third Party Payments - Private Contractors,09/04/2021,11283759,"2,945.80",Revenue,1007872,Netherwood Care Home Ltd
Shropshire,00GG,Adult Services - Social Care Community Purchasing,Third Party Payments - Private Contractors,09/04/2021,11283803,"2,500.00",Revenue,1007872,Netherwood Care Home Ltd
Shropshire,00GG,Adult Services - Social Care Community Purchasing,Third Party Payments - Private Contractors,09/04/2021,11283919,"2,322.68",Revenue,1007872,Netherwood Care Home Ltd
Shropshire,00GG,Adult Services - Social Care Hospital Interface Purchasing,Third Party Payments - Private Contractors,09/04/2021,11283951,"1,791.43",Revenue,1007872,Netherwood Care Home Ltd
Shropshire,00GG,Adult Services - Social Care Community Purchasing,Third Party Payments - Private Contractors,09/04/2021,11283953,"2,687.14",Revenue,1007872,Netherwood Care Home Ltd
Shropshire,00GG,Adult Services - Social Care Community Purchasing,Third Party Payments - Private Contractors,09/04/2021,11284012,"3,200.00",Revenue,1007872,Netherwood Care Home Ltd
Shropshire,00GG,Adult Services - Social Care Community Purchasing,Third Party Payments - Private Contractors,09/04/2021,11282605,"2,680.00",Revenue,1007874,Springcare (River Meadows) Ltd
Shropshire,00GG,Adult Services - Social Care Community Purchasing,Third Party Payments - Private Contractors,09/04/2021,11282939,"1,897.28",Revenue,1007874,Springcare (River Meadows) Ltd
Shropshire,00GG,Adult Services - Social Care Community Purchasing,Third Party Payments - Private Contractors,09/04/2021,11283126,"3,272.86",Revenue,1007874,Springcare (River Meadows) Ltd
Shropshire,00GG,Adult Services - Social Care Community Purchasing,Third Party Payments - Private Contractors,09/04/2021,11283224,"4,883.57",Revenue,1007874,Springcare (River Meadows) Ltd
Shropshire,00GG,Adult Services - Social Care Community Purchasing,Third Party Payments - Private Contractors,09/04/2021,11283297,"3,015.20",Revenue,1007874,Springcare (River Meadows) Ltd
Shropshire,00GG,Adult Services - Social Care Community Purchasing,Third Party Payments - Private Contractors,09/04/2021,11283302,"3,200.00",Revenue,1007874,Springcare (River Meadows) Ltd
Shropshire,00GG,Adult Services - Social Care Community Purchasing,Third Party Payments - Private Contractors,09/04/2021,11283445,"2,680.00",Revenue,1007874,Springcare (River Meadows) Ltd
Shropshire,00GG,Adult Services - Social Care Community Purchasing,Third Party Payments - Private Contractors,09/04/2021,11283499,"2,680.00",Revenue,1007874,Springcare (River Meadows) Ltd
Shropshire,00GG,Adult Services - Social Care Community Purchasing,Third Party Payments - Private Contractors,09/04/2021,11283672,"2,680.00",Revenue,1007874,Springcare (River Meadows) Ltd
Shropshire,00GG,Adult Services - Social Care Community Purchasing,Third Party Payments - Private Contractors,09/04/2021,11283683,"1,876.16",Revenue,1007874,Springcare (River Meadows) Ltd
Shropshire,00GG,Adult Services - Social Care Community Purchasing,Third Party Payments - Private Contractors,09/04/2021,11283712,"2,680.00",Revenue,1007874,Springcare (River Meadows) Ltd
Shropshire,00GG,Adult Services - Social Care Community Purchasing,Third Party Payments - Private Contractors,09/04/2021,11283740,"2,680.00",Revenue,1007874,Springcare (River Meadows) Ltd
Shropshire,00GG,Adult Services - Social Care Community Purchasing,Third Party Payments - Private Contractors,09/04/2021,11283987,"2,652.00",Revenue,1007874,Springcare (River Meadows) Ltd
Shropshire,00GG,Adult Services - Social Care Community Purchasing,Third Party Payments - Private Contractors,09/04/2021,11283990,"2,080.00",Revenue,1007874,Springcare (River Meadows) Ltd
Shropshire,00GG,Adult Services - Social Care Community Purchasing,Third Party Payments - Private Contractors,09/04/2021,11283991,944.60,Revenue,1007874,Springcare (River Meadows) Ltd
Shropshire,00GG,Adult Services - Social Care Community Purchasing,Third Party Payments - Private Contractors,09/04/2021,11284041,"2,211.76",Revenue,1007874,Springcare (River Meadows) Ltd
Shropshire,00GG,Adult Services - Social Care Community Purchasing,Third Party Payments - Private Contractors,09/04/2021,11284050,"1,876.16",Revenue,1007874,Springcare (River Meadows) Ltd
Shropshire,00GG,Adult Services - Social Care Community Purchasing,Third Party Payments - Private Contractors,09/04/2021,11284068,"3,193.20",Revenue,1007874,Springcare (River Meadows) Ltd
Shropshire,00GG,Adult Services - Social Care Community Purchasing,Third Party Payments - Private Contractors,09/04/2021,11284100,"1,800.00",Revenue,1007874,Springcare (River Meadows) Ltd
Shropshire,00GG,Adult Services - Social Care Community Purchasing,Third Party Payments - Private Contractors,09/04/2021,11284119,"6,107.14",Revenue,1007874,Springcare (River Meadows) Ltd
Shropshire,00GG,Adult Services - Social Care Community Purchasing,Third Party Payments - Private Contractors,09/04/2021,11282817,"1,800.00",Revenue,1007875,High Lea House
Shropshire,00GG,Adult Services - Social Care Community Purchasing,Third Party Payments - Private Contractors,09/04/2021,11283830,"1,800.00",Revenue,1007875,High Lea House
Shropshire,00GG,Adult Services - Social Care Community Purchasing,Third Party Payments - Private Contractors,09/04/2021,11283860,640.00,Revenue,1007875,High Lea House
Shropshire,00GG,Adult Services - Social Care Community Purchasing,Third Party Payments - Private Contractors,09/04/2021,11282535,"9,190.76",Revenue,1007876,Mental Health Care Ltd
Shropshire,00GG,Adult Services - Social Care Mental Health Purchasing,Third Party Payments - Private Contractors,09/04/2021,11282808,"3,937.76",Revenue,1007877,Park House Nursing Home
Shropshire,00GG,Adult Services - Social Care Mental Health Purchasing,Income - Customer and Client Receipts,09/04/2021,11282809,-832.28,Revenue,1007877,Park House Nursing Home
Shropshire,00GG,Adult Services - Social Care Hospital Interface Purchasing,Third Party Payments - Private Contractors,09/04/2021,11283112,"2,357.14",Revenue,1007877,Park House Nursing Home
Shropshire,00GG,Adult Services - Social Care Hospital Interface Purchasing,Third Party Payments - Private Contractors,09/04/2021,11283113,"3,457.14",Revenue,1007877,Park House Nursing Home
Shropshire,00GG,Adult Services - Social Care Community Purchasing,Third Party Payments - Private Contractors,09/04/2021,11283144,"3,500.00",Revenue,1007877,Park House Nursing Home
Shropshire,00GG,Adult Services - Social Care Hospital Interface Purchasing,Third Party Payments - Private Contractors,09/04/2021,11283226,"4,400.00",Revenue,1007877,Park House Nursing Home
Shropshire,00GG,Adult Services - Social Care Community Purchasing,Third Party Payments - Private Contractors,09/04/2021,11283509,"3,897.76",Revenue,1007877,Park House Nursing Home
Shropshire,00GG,Adult Services - Social Care Community Purchasing,Third Party Payments - Private Contractors,09/04/2021,11283521,"3,502.00",Revenue,1007877,Park House Nursing Home
Shropshire,00GG,Adult Services - Social Care Community Purchasing,Third Party Payments - Private Contractors,09/04/2021,11283875,"3,864.32",Revenue,1007877,Park House Nursing Home
Shropshire,00GG,Adult Services - Social Care Community Purchasing,Third Party Payments - Private Contractors,09/04/2021,11283896,"3,766.76",Revenue,1007877,Park House Nursing Home
Shropshire,00GG,Adult Services - Social Care Community Purchasing,Third Party Payments - Private Contractors,09/04/2021,11283957,"3,967.36",Revenue,1007877,Park House Nursing Home
Shropshire,00GG,Adult Services - Social Care Hospital Interface Purchasing,Third Party Payments - Private Contractors,09/04/2021,11284000,"2,514.29",Revenue,1007877,Park House Nursing Home
Shropshire,00GG,Adult Services - Social Care Community Purchasing,Third Party Payments - Private Contractors,09/04/2021,11284017,"3,864.32",Revenue,1007877,Park House Nursing Home
Shropshire,00GG,Adult Services - Social Care Community Purchasing,Third Party Payments - Private Contractors,09/04/2021,11284112,"-8,485.71",Revenue,1007877,Park House Nursing Home
Shropshire,00GG,Adult Services - Social Care Community Purchasing,Third Party Payments - Private Contractors,09/04/2021,11279581,535.92,Revenue,1007881,Pontesbury Project
Shropshire,00GG,Adult Services - Social Care Community Purchasing,Transfer Payments - Adult Social Services Clients,09/04/2021,11279582,"7,179.91",Revenue,1007881,Pontesbury Project
Shropshire,00GG,Adult Services - Social Care Community Purchasing,Third Party Payments - Private Contractors,09/04/2021,11279627,530.68,Revenue,1007881,Pontesbury Project
Shropshire,00GG,Adult Services - Social Care Community Purchasing,Transfer Payments - Adult Social Services Clients,09/04/2021,11279628,"1,844.02",Revenue,1007881,Pontesbury Project
Shropshire,00GG,Adult Services - Social Care Community Purchasing,Transfer Payments - Adult Social Services Clients,09/04/2021,11279629,"3,385.20",Revenue,1007881,Pontesbury Project
Shropshire,00GG,Adult Services - Social Care Community Purchasing,Transfer Payments - Adult Social Services Clients,09/04/2021,11279655,"2,256.96",Revenue,1007881,Pontesbury Project
Shropshire,00GG,Adult Services - Social Care Community Purchasing,Transfer Payments - Adult Social Services Clients,09/04/2021,11279656,779.80,Revenue,1007881,Pontesbury Project
Shropshire,00GG,Adult Services - Social Care Community Purchasing,Transfer Payments - Adult Social Services Clients,09/04/2021,11279657,"2,574.60",Revenue,1007881,Pontesbury Project
Shropshire,00GG,Adult Services - Social Care Community Purchasing,Transfer Payments - Adult Social Services Clients,09/04/2021,11279729,"1,176.96",Revenue,1007881,Pontesbury Project
Shropshire,00GG,Adult Services - Social Care Community Purchasing,Transfer Payments - Adult Social Services Clients,09/04/2021,11279730,779.80,Revenue,1007881,Pontesbury Project
Shropshire,00GG,Adult Services - Social Care Community Purchasing,Transfer Payments - Adult Social Services Clients,09/04/2021,11279731,"3,126.30",Revenue,1007881,Pontesbury Project
Shropshire,00GG,Adult Services - Social Care Community Purchasing,Third Party Payments - Private Contractors,09/04/2021,11279732,530.68,Revenue,1007881,Pontesbury Project
Shropshire,00GG,Adult Services - Social Care Community Purchasing,Transfer Payments - Adult Social Services Clients,09/04/2021,11279733,"1,844.02",Revenue,1007881,Pontesbury Project
Shropshire,00GG,Adult Services - Social Care Community Purchasing,Transfer Payments - Adult Social Services Clients,09/04/2021,11279734,"3,640.00",Revenue,1007881,Pontesbury Project
Shropshire,00GG,Adult Services - Social Care Community Purchasing,Transfer Payments - Adult Social Services Clients,09/04/2021,11279756,"2,100.00",Revenue,1007881,Pontesbury Project
Shropshire,00GG,Adult Services - Social Care Community Purchasing,Transfer Payments - Adult Social Services Clients,09/04/2021,11279757,"8,652.00",Revenue,1007881,Pontesbury Project
Shropshire,00GG,Adult Services - Social Care Community Purchasing,Third Party Payments - Private Contractors,09/04/2021,11279761,535.36,Revenue,1007881,Pontesbury Project
Shropshire,00GG,Adult Services - Social Care Community Purchasing,Transfer Payments - Adult Social Services Clients,09/04/2021,11279762,"1,516.20",Revenue,1007881,Pontesbury Project
Shropshire,00GG,Adult Services - Social Care Community Purchasing,Transfer Payments - Adult Social Services Clients,09/04/2021,11279763,"7,732.20",Revenue,1007881,Pontesbury Project
Shropshire,00GG,Adult Services - Social Care Community Purchasing,Transfer Payments - Adult Social Services Clients,09/04/2021,11279794,"2,427.04",Revenue,1007881,Pontesbury Project
Shropshire,00GG,Adult Services - Social Care Community Purchasing,Transfer Payments - Adult Social Services Clients,09/04/2021,11279795,"12,978.00",Revenue,1007881,Pontesbury Project
Shropshire,00GG,Adult Services - Social Care Community Purchasing,Third Party Payments - Private Contractors,09/04/2021,11279837,822.08,Revenue,1007881,Pontesbury Project
Shropshire,00GG,Adult Services - Social Care Community Purchasing,Transfer Payments - Adult Social Services Clients,09/04/2021,11279838,"7,736.40",Revenue,1007881,Pontesbury Project
Shropshire,00GG,Adult Services - Social Care Community Purchasing,Third Party Payments - Private Contractors,09/04/2021,11279865,530.68,Revenue,1007881,Pontesbury Project
Shropshire,00GG,Adult Services - Social Care Community Purchasing,Transfer Payments - Adult Social Services Clients,09/04/2021,11279866,"1,552.82",Revenue,1007881,Pontesbury Project
Shropshire,00GG,Adult Services - Social Care Community Purchasing,Transfer Payments - Adult Social Services Clients,09/04/2021,11279867,"4,950.40",Revenue,1007881,Pontesbury Project
Shropshire,00GG,Adult Services - Social Care Community Purchasing,Third Party Payments - Private Contractors,09/04/2021,11279918,"1,071.60",Revenue,1007881,Pontesbury Project
Shropshire,00GG,Adult Services - Social Care Community Purchasing,Transfer Payments - Adult Social Services Clients,09/04/2021,11279919,"1,516.20",Revenue,1007881,Pontesbury Project
Shropshire,00GG,Adult Services - Social Care Community Purchasing,Transfer Payments - Adult Social Services Clients,09/04/2021,11279920,"7,732.20",Revenue,1007881,Pontesbury Project
Shropshire,00GG,Adult Services - Social Care Community Purchasing,Third Party Payments - Private Contractors,09/04/2021,11279953,535.92,Revenue,1007881,Pontesbury Project
Shropshire,00GG,Adult Services - Social Care Community Purchasing,Transfer Payments - Adult Social Services Clients,09/04/2021,11279954,"7,179.91",Revenue,1007881,Pontesbury Project
Shropshire,00GG,Adult Services - Social Care Community Purchasing,Transfer Payments - Adult Social Services Clients,09/04/2021,11280058,"3,150.00",Revenue,1007881,Pontesbury Project
Shropshire,00GG,Adult Services - Social Care Community Purchasing,Third Party Payments - Private Contractors,09/04/2021,11280078,"1,071.60",Revenue,1007881,Pontesbury Project
Shropshire,00GG,Adult Services - Social Care Community Purchasing,Transfer Payments - Adult Social Services Clients,09/04/2021,11280079,"1,516.20",Revenue,1007881,Pontesbury Project
Shropshire,00GG,Adult Services - Social Care Community Purchasing,Transfer Payments - Adult Social Services Clients,09/04/2021,11280080,"7,732.20",Revenue,1007881,Pontesbury Project
Shropshire,00GG,Adult Services - Social Care Community Purchasing,Third Party Payments - Private Contractors,09/04/2021,11280088,"15,726.24",Revenue,1007881,Pontesbury Project
Shropshire,00GG,Adult Services - Social Care Community Purchasing,Transfer Payments - Adult Social Services Clients,09/04/2021,11280089,"1,564.36",Revenue,1007881,Pontesbury Project
Shropshire,00GG,Adult Services - Social Care Community Purchasing,Transfer Payments - Adult Social Services Clients,09/04/2021,11280137,"3,530.00",Revenue,1007881,Pontesbury Project
Shropshire,00GG,Adult Services - Social Care Community Purchasing,Transfer Payments - Adult Social Services Clients,09/04/2021,11280138,"12,978.00",Revenue,1007881,Pontesbury Project
Shropshire,00GG,Adult Services - Social Care Community Purchasing,Transfer Payments - Adult Social Services Clients,09/04/2021,11280258,"1,515.36",Revenue,1007881,Pontesbury Project
Shropshire,00GG,Adult Services - Social Care Community Purchasing,Transfer Payments - Adult Social Services Clients,09/04/2021,11280259,803.60,Revenue,1007881,Pontesbury Project
Shropshire,00GG,Adult Services - Social Care Community Purchasing,Transfer Payments - Adult Social Services Clients,09/04/2021,11280260,"7,732.20",Revenue,1007881,Pontesbury Project
Shropshire,00GG,Adult Services - Social Care Community Purchasing,Third Party Payments - Private Contractors,09/04/2021,11280453,"2,451.40",Revenue,1007881,Pontesbury Project
Shropshire,00GG,Adult Services - Social Care Community Purchasing,Transfer Payments - Adult Social Services Clients,09/04/2021,11280454,"8,652.00",Revenue,1007881,Pontesbury Project
Shropshire,00GG,Adult Services - Social Care Community Purchasing,Transfer Payments - Adult Social Services Clients,09/04/2021,11280455,"8,652.00",Revenue,1007881,Pontesbury Project
Shropshire,00GG,Adult Services - Social Care Mental Health Purchasing,Third Party Payments - Private Contractors,09/04/2021,11282676,"7,581.00",Revenue,1007881,Pontesbury Project
Shropshire,00GG,Adult Services - Social Care Mental Health Purchasing,Third Party Payments - Private Contractors,09/04/2021,11282677,526.20,Revenue,1007881,Pontesbury Project
Shropshire,00GG,Adult Services - Social Care Community Purchasing,Third Party Payments - Private Contractors,09/04/2021,11283486,"5,000.00",Revenue,1007884,The Wheatlands Residential Home
Shropshire,00GG,Adult Services - Social Care Community Purchasing,Third Party Payments - Private Contractors,09/04/2021,11283578,"2,280.00",Revenue,1007884,The Wheatlands Residential Home
Shropshire,00GG,Adult Services - Social Care Community Purchasing,Third Party Payments - Private Contractors,09/04/2021,11283665,"2,348.40",Revenue,1007884,The Wheatlands Residential Home
Shropshire,00GG,Adult Services - Social Care Community Purchasing,Third Party Payments - Private Contractors,09/04/2021,11283713,"2,440.12",Revenue,1007884,The Wheatlands Residential Home
Shropshire,00GG,Adult Services - Social Care Community Purchasing,Third Party Payments - Private Contractors,09/04/2021,11283782,"2,600.00",Revenue,1007884,The Wheatlands Residential Home
Shropshire,00GG,Adult Services - Social Care Community Purchasing,Third Party Payments - Private Contractors,09/04/2021,11283001,"4,200.00",Revenue,1007885,Jubilee Care Ltd
Shropshire,00GG,Adult Services - Social Care Community Purchasing,Third Party Payments - Private Contractors,09/04/2021,11283501,"3,543.20",Revenue,1007885,Jubilee Care Ltd
Shropshire,00GG,Adult Services - Social Care Community Purchasing,Third Party Payments - Private Contractors,09/04/2021,11283663,"2,988.28",Revenue,1007885,Jubilee Care Ltd
Shropshire,00GG,Adult Services - Social Care Community Purchasing,Third Party Payments - Private Contractors,09/04/2021,11283738,"2,660.88",Revenue,1007885,Jubilee Care Ltd
Shropshire,00GG,Adult Services - Social Care Community Purchasing,Third Party Payments - Private Contractors,09/04/2021,11283872,"3,137.76",Revenue,1007885,Jubilee Care Ltd
Shropshire,00GG,Adult Services - Social Care Community Purchasing,Third Party Payments - Private Contractors,09/04/2021,11283928,"2,657.40",Revenue,1007885,Jubilee Care Ltd
Shropshire,00GG,Adult Services - Social Care Community Purchasing,Third Party Payments - Private Contractors,09/04/2021,11282733,"2,568.20",Revenue,1007887,Personal redaction
Shropshire,00GG,Adult Services - Social Care Mental Health Purchasing,Third Party Payments - Private Contractors,09/04/2021,11282536,"2,369.08",Revenue,1007889,Ellesmere House
Shropshire,00GG,Adult Services - Social Care Community Purchasing,Third Party Payments - Private Contractors,09/04/2021,11282609,"2,740.00",Revenue,1007889,Ellesmere House
Shropshire,00GG,Adult Services - Social Care Community Purchasing,Third Party Payments - Private Contractors,09/04/2021,11282777,"2,600.00",Revenue,1007889,Ellesmere House
Shropshire,00GG,Adult Services - Social Care Community Purchasing,Third Party Payments - Private Contractors,09/04/2021,11282866,"2,480.00",Revenue,1007889,Ellesmere House
Shropshire,00GG,Adult Services - Social Care Community Purchasing,Third Party Payments - Private Contractors,09/04/2021,11283209,"2,900.00",Revenue,1007889,Ellesmere House
Shropshire,00GG,Adult Services - Social Care Community Purchasing,Third Party Payments - Private Contractors,09/04/2021,11283230,"5,357.14",Revenue,1007889,Ellesmere House
Shropshire,00GG,Adult Services - Social Care Community Purchasing,Third Party Payments - Private Contractors,09/04/2021,11283305,"2,740.00",Revenue,1007889,Ellesmere House
Shropshire,00GG,Adult Services - Social Care Community Purchasing,Third Party Payments - Private Contractors,09/04/2021,11283390,"3,000.00",Revenue,1007889,Ellesmere House
Shropshire,00GG,Adult Services - Social Care Mental Health Purchasing,Third Party Payments - Private Contractors,09/04/2021,11283436,"2,660.00",Revenue,1007889,Ellesmere House
Shropshire,00GG,Adult Services - Social Care Community Purchasing,Third Party Payments - Private Contractors,09/04/2021,11283604,"2,369.08",Revenue,1007889,Ellesmere House
Shropshire,00GG,Adult Services - Social Care Community Purchasing,Third Party Payments - Private Contractors,09/04/2021,11283612,"2,428.20",Revenue,1007889,Ellesmere House
Shropshire,00GG,Adult Services - Social Care Community Purchasing,Third Party Payments - Private Contractors,09/04/2021,11283702,"2,266.00",Revenue,1007889,Ellesmere House
Shropshire,00GG,Adult Services - Social Care Community Purchasing,Third Party Payments - Private Contractors,09/04/2021,11283809,"2,472.00",Revenue,1007889,Ellesmere House
Shropshire,00GG,Adult Services - Social Care Community Purchasing,Third Party Payments - Private Contractors,09/04/2021,11283835,"2,600.00",Revenue,1007889,Ellesmere House
Shropshire,00GG,Adult Services - Social Care Community Purchasing,Third Party Payments - Private Contractors,09/04/2021,11284103,"2,449.32",Revenue,1007889,Ellesmere House
Shropshire,00GG,Adult Services - Social Care Community Purchasing,Third Party Payments - Private Contractors,09/04/2021,11283056,"2,680.00",Revenue,1007890,Cloverfield Care Ltd
Shropshire,00GG,Adult Services - Social Care Community Purchasing,Third Party Payments - Private Contractors,09/04/2021,11283301,"2,680.00",Revenue,1007890,Cloverfield Care Ltd
Shropshire,00GG,Adult Services - Social Care Community Purchasing,Third Party Payments - Private Contractors,09/04/2021,11283347,"2,080.00",Revenue,1007890,Cloverfield Care Ltd
Shropshire,00GG,Adult Services - Social Care Community Purchasing,Third Party Payments - Private Contractors,09/04/2021,11283454,"2,080.00",Revenue,1007890,Cloverfield Care Ltd
Shropshire,00GG,Adult Services - Social Care Community Purchasing,Third Party Payments - Private Contractors,09/04/2021,11283750,"2,883.96",Revenue,1007890,Cloverfield Care Ltd
Shropshire,00GG,Adult Services - Social Care Community Purchasing,Third Party Payments - Private Contractors,09/04/2021,11283997,"2,080.00",Revenue,1007890,Cloverfield Care Ltd
Shropshire,00GG,Adult Services - Social Care Community Purchasing,Third Party Payments - Private Contractors,09/04/2021,11284035,"3,000.00",Revenue,1007890,Cloverfield Care Ltd
Shropshire,00GG,Adult Services - Social Care Community Purchasing,Third Party Payments - Private Contractors,09/04/2021,11284065,"2,680.00",Revenue,1007890,Cloverfield Care Ltd
Shropshire,00GG,Adult Services - Social Care Community Purchasing,Third Party Payments - Private Contractors,09/04/2021,11282593,"1,800.00",Revenue,1007891,Coverage Care Ltd
Shropshire,00GG,Adult Services - Social Care Community Purchasing,Third Party Payments - Private Contractors,09/04/2021,11282822,"2,476.12",Revenue,1007891,Coverage Care Ltd
Shropshire,00GG,Adult Services - Social Care Community Purchasing,Third Party Payments - Private Contractors,09/04/2021,11283037,"2,520.00",Revenue,1007891,Coverage Care Ltd
Shropshire,00GG,Adult Services - Social Care Community Purchasing,Third Party Payments - Private Contractors,09/04/2021,11283081,"2,080.00",Revenue,1007891,Coverage Care Ltd
Shropshire,00GG,Adult Services - Social Care Community Purchasing,Third Party Payments - Private Contractors,09/04/2021,11283410,"1,945.96",Revenue,1007891,Coverage Care Ltd
Shropshire,00GG,Adult Services - Social Care Community Purchasing,Third Party Payments - Private Contractors,09/04/2021,11283455,"2,284.00",Revenue,1007891,Coverage Care Ltd
Shropshire,00GG,Adult Services - Social Care Community Purchasing,Third Party Payments - Private Contractors,09/04/2021,11283459,"2,214.40",Revenue,1007891,Coverage Care Ltd
Shropshire,00GG,Adult Services - Social Care Community Purchasing,Third Party Payments - Private Contractors,09/04/2021,11283651,"2,284.88",Revenue,1007891,Coverage Care Ltd
Shropshire,00GG,Adult Services - Social Care Community Purchasing,Third Party Payments - Private Contractors,09/04/2021,11283727,"2,288.00",Revenue,1007891,Coverage Care Ltd
Shropshire,00GG,Adult Services - Social Care Community Purchasing,Third Party Payments - Private Contractors,09/04/2021,11284130,"11,373.15",Revenue,1007891,Coverage Care Ltd
Shropshire,00GG,Adult Services - Social Care Community Purchasing,Third Party Payments - Private Contractors,09/04/2021,11282687,"2,912.28",Revenue,1007892,Coverage Care Ltd
Shropshire,00GG,Adult Services - Social Care Community Purchasing,Third Party Payments - Private Contractors,09/04/2021,11283122,"3,400.00",Revenue,1007892,Coverage Care Ltd
Shropshire,00GG,Adult Services - Social Care Community Purchasing,Third Party Payments - Private Contractors,09/04/2021,11283132,"3,200.00",Revenue,1007892,Coverage Care Ltd
Shropshire,00GG,Adult Services - Social Care Hospital Interface Purchasing,Third Party Payments - Private Contractors,09/04/2021,11283163,"2,311.72",Revenue,1007892,Coverage Care Ltd
Shropshire,00GG,Adult Services - Social Care Community Purchasing,Third Party Payments - Private Contractors,09/04/2021,11283260,"7,320.42",Revenue,1007892,Coverage Care Ltd
Shropshire,00GG,Adult Services - Social Care Community Purchasing,Third Party Payments - Private Contractors,09/04/2021,11283273,"2,912.28",Revenue,1007892,Coverage Care Ltd
Shropshire,00GG,Adult Services - Social Care Community Purchasing,Third Party Payments - Private Contractors,09/04/2021,11283284,"2,965.68",Revenue,1007892,Coverage Care Ltd
Shropshire,00GG,Adult Services - Social Care Community Purchasing,Third Party Payments - Private Contractors,09/04/2021,11283290,"-36,286.90",Revenue,1007892,Coverage Care Ltd
Shropshire,00GG,Adult Services - Social Care Community Purchasing,Third Party Payments - Private Contractors,09/04/2021,11283385,"2,912.28",Revenue,1007892,Coverage Care Ltd
Shropshire,00GG,Adult Services - Social Care Community Purchasing,Third Party Payments - Private Contractors,09/04/2021,11283563,"2,912.28",Revenue,1007892,Coverage Care Ltd
Shropshire,00GG,Adult Services - Social Care Mental Health Purchasing,Third Party Payments - Private Contractors,09/04/2021,11283571,"3,349.72",Revenue,1007892,Coverage Care Ltd
Shropshire,00GG,Adult Services - Social Care Community Purchasing,Third Party Payments - Private Contractors,09/04/2021,11283624,"4,461.96",Revenue,1007892,Coverage Care Ltd
Shropshire,00GG,Adult Services - Social Care Community Purchasing,Third Party Payments - Private Contractors,09/04/2021,11283636,"2,912.28",Revenue,1007892,Coverage Care Ltd
Shropshire,00GG,Adult Services - Social Care Community Purchasing,Third Party Payments - Private Contractors,09/04/2021,11283653,"3,940.00",Revenue,1007892,Coverage Care Ltd
Shropshire,00GG,Adult Services - Social Care Community Purchasing,Third Party Payments - Private Contractors,09/04/2021,11283655,"3,120.00",Revenue,1007892,Coverage Care Ltd
Shropshire,00GG,Adult Services - Social Care Community Purchasing,Third Party Payments - Private Contractors,09/04/2021,11283761,"3,800.00",Revenue,1007892,Coverage Care Ltd
Shropshire,00GG,Adult Services - Social Care Community Purchasing,Third Party Payments - Private Contractors,09/04/2021,11283768,"3,940.00",Revenue,1007892,Coverage Care Ltd
Shropshire,00GG,Adult Services - Social Care Community Purchasing,Third Party Payments - Private Contractors,09/04/2021,11283774,"3,631.80",Revenue,1007892,Coverage Care Ltd
Shropshire,00GG,Adult Services - Social Care Community Purchasing,Third Party Payments - Private Contractors,09/04/2021,11283781,"3,400.00",Revenue,1007892,Coverage Care Ltd
Shropshire,00GG,Adult Services - Social Care Community Purchasing,Third Party Payments - Private Contractors,09/04/2021,11283806,"3,940.00",Revenue,1007892,Coverage Care Ltd
Shropshire,00GG,Adult Services - Social Care Community Purchasing,Third Party Payments - Private Contractors,09/04/2021,11283852,"3,967.80",Revenue,1007892,Coverage Care Ltd
Shropshire,00GG,Adult Services - Social Care Community Purchasing,Third Party Payments - Private Contractors,09/04/2021,11283931,"3,810.96",Revenue,1007892,Coverage Care Ltd
Shropshire,00GG,Adult Services - Social Care Community Purchasing,Third Party Payments - Private Contractors,09/04/2021,11283978,"3,540.00",Revenue,1007892,Coverage Care Ltd
Shropshire,00GG,Adult Services - Social Care Community Purchasing,Third Party Payments - Private Contractors,09/04/2021,11283992,"3,400.00",Revenue,1007892,Coverage Care Ltd
Shropshire,00GG,Adult Services - Social Care Hospital Interface Purchasing,Third Party Payments - Private Contractors,09/04/2021,11284010,"-6,036.14",Revenue,1007892,Coverage Care Ltd
Shropshire,00GG,Adult Services - Social Care Community Purchasing,Third Party Payments - Private Contractors,09/04/2021,11284123,"3,553.72",Revenue,1007892,Coverage Care Ltd
Shropshire,00GG,Adult Services - Social Care Community Purchasing,Third Party Payments - Private Contractors,09/04/2021,11284128,"8,843.64",Revenue,1007892,Coverage Care Ltd
Shropshire,00GG,Adult Services - Social Care Community Purchasing,Third Party Payments - Private Contractors,09/04/2021,11282478,"2,781.96",Revenue,1007893,Coverage Care Ltd
Shropshire,00GG,Adult Services - Social Care Community Purchasing,Third Party Payments - Private Contractors,09/04/2021,11282720,"2,863.40",Revenue,1007893,Coverage Care Ltd
Shropshire,00GG,Adult Services - Social Care Community Purchasing,Third Party Payments - Private Contractors,09/04/2021,11282816,"2,266.00",Revenue,1007893,Coverage Care Ltd
Shropshire,00GG,Adult Services - Social Care Mental Health Purchasing,Third Party Payments - Private Contractors,09/04/2021,11282832,"4,955.68",Revenue,1007893,Coverage Care Ltd
Shropshire,00GG,Adult Services - Social Care Hospital Interface Purchasing,Third Party Payments - Private Contractors,09/04/2021,11283134,"3,700.71",Revenue,1007893,Coverage Care Ltd
Shropshire,00GG,Adult Services - Social Care Hospital Interface Purchasing,Third Party Payments - Private Contractors,09/04/2021,11283205,"3,140.00",Revenue,1007893,Coverage Care Ltd
Shropshire,00GG,Adult Services - Social Care Community Purchasing,Third Party Payments - Private Contractors,09/04/2021,11283208,"1,877.15",Revenue,1007893,Coverage Care Ltd
Shropshire,00GG,Adult Services - Social Care Hospital Interface Purchasing,Third Party Payments - Private Contractors,09/04/2021,11283229,"2,110.16",Revenue,1007893,Coverage Care Ltd
Shropshire,00GG,Adult Services - Social Care Community Purchasing,Third Party Payments - Private Contractors,09/04/2021,11283262,560.71,Revenue,1007893,Coverage Care Ltd
Shropshire,00GG,Adult Services - Social Care Hospital Interface Purchasing,Third Party Payments - Private Contractors,09/04/2021,11283288,"3,925.00",Revenue,1007893,Coverage Care Ltd
Shropshire,00GG,Adult Services - Social Care Community Purchasing,Third Party Payments - Private Contractors,09/04/2021,11283464,"2,112.48",Revenue,1007893,Coverage Care Ltd
Shropshire,00GG,Adult Services - Social Care Community Purchasing,Third Party Payments - Private Contractors,09/04/2021,11283467,"2,112.48",Revenue,1007893,Coverage Care Ltd
Shropshire,00GG,Adult Services - Social Care Community Purchasing,Third Party Payments - Private Contractors,09/04/2021,11283468,"3,167.24",Revenue,1007893,Coverage Care Ltd
Shropshire,00GG,Adult Services - Social Care Community Purchasing,Third Party Payments - Private Contractors,09/04/2021,11283475,"3,581.12",Revenue,1007893,Coverage Care Ltd
Shropshire,00GG,Adult Services - Social Care Community Purchasing,Third Party Payments - Private Contractors,09/04/2021,11283507,"2,112.48",Revenue,1007893,Coverage Care Ltd
Shropshire,00GG,Adult Services - Social Care Community Purchasing,Third Party Payments - Private Contractors,09/04/2021,11283558,"2,112.48",Revenue,1007893,Coverage Care Ltd
Shropshire,00GG,Adult Services - Social Care Community Purchasing,Third Party Payments - Private Contractors,09/04/2021,11283573,"2,112.48",Revenue,1007893,Coverage Care Ltd
Shropshire,00GG,Adult Services - Social Care Community Purchasing,Third Party Payments - Private Contractors,09/04/2021,11283591,"1,876.16",Revenue,1007893,Coverage Care Ltd
Shropshire,00GG,Adult Services - Social Care Community Purchasing,Third Party Payments - Private Contractors,09/04/2021,11283620,"2,880.00",Revenue,1007893,Coverage Care Ltd
Shropshire,00GG,Adult Services - Social Care Community Purchasing,Third Party Payments - Private Contractors,09/04/2021,11283621,"1,340.00",Revenue,1007893,Coverage Care Ltd
